Workbook

Sheet 2021年3月期
A1: カルビー株式会社 2021年３月期 第１四半期 決算補足資料
A2: Calbee, Inc. FY2021/3 Q1 Supplementary Information
B3: FY2021/3およびFY'21/3は2021年3月期を指しており、他の事業年度も同様に表記しております。
B4: The fiscal year ending March 31, 2021 is refered to throughout this sheet as "FY2021/3" and "FY'21/3" and the previous fiscal year is refered to in a corresponding manner.
A6: 主な連結財務指標Ⅰ Financial performanceⅠ (consolidated) | G6: FY’20/３ Q1 | J6: FY’21/３ Q1
B8: 自己資本利益率 ROE (%) | G8: =ROUND(StravisData取り込み!O6,1) -> 0 | J8: =ROUND(StravisData取り込み!X6,1) -> 0
B9: 1株当たり当期純利益 EPS (円 Yen) | G9: 31.76 | J9: 30.3
B10: 1株当たり純資産額 Net assets per share (円 Yen) | G10: 0 | J10: 0
B11: 営業活動によるキャッシュフロー Operating CF (百万円 Million yen) | G11: 5102 | J11: 6367
B12: 投資活動によるキャッシュフロー Investing CF (百万円 Million yen) | G12: 666 | J12: -6196
B13: 財務活動によるキャッシュフロー Financial CF (百万円 Million yen) | G13: -5979 | J13: -6775
B14: 現金及び現金同等物期末残高 Cash and cash equivalents at end of period (百万円 Million yen) | G14: 34975 | J14: 49240
A16: 主な連結財務指標Ⅱ Financial performanceⅡ (consolidated) | G16: As of March 31, 2020 | J16: As of June 30, 2020
B18: 総資産 Total assets (百万円 Million yen) | G18: 214967 | J18: 214990
B19: 純資産 Net assets (百万円 Million yen) | G19: 169632 | J19: 167784
B20: 自己資本比率 Equity ratio (%) | G20: 75.9 | J20: 74.9
A22: 連結損益計算書 Consolidated statements of income (百万円 Million yen) | G22: FY’20/３ Q1 | H22: 構成比(％) Percent of Net sales | I22: 伸び率(%) Change in % | J22: FY’21/３ Q1 | K22: 構成比(％) Percent of Net sales | L22: 伸び率(%) Change in %
B24: 売上高 Net sales | G24: 61912 | H24: 100 | I24: 1.1 | J24: 64385 | K24: 100 | L24: 4
B25: 売上原価 Cost of sales | G25: 34291 | H25: 55.4 | I25: -0.7 | J25: 36125 | K25: 56.1 | L25: 5.3
B26: 売上総利益 Gross profit | G26: 27621 | H26: 44.6 | I26: 3.4 | J26: 28260 | K26: 43.9 | L26: 2.3
B27: 販売管理費 SG&A | G27: 21172 | H27: 34.2 | I27: 1.1 | J27: 21707 | K27: 33.7 | L27: 2.5
C28: 販売費 Selling | G28: 9746 | H28: 15.7 | I28: 3.8 | J28: 9582 | K28: 14.9 | L28: -1.7
C29: 物流費 Distribution | G29: 4534 | H29: 7.3 | I29: 9.9 | J29: 4876 | K29: 7.6 | L29: 7.5
C30: 人件費 Labor | G30: 4344 | H30: 7 | I30: -7.4 | J30: 4551 | K30: 7.1 | L30: 4.8
C31: その他 Others | G31: 2547 | H31: 4.1 | I31: -6.7 | J31: 2697 | K31: 4.2 | L31: 5.9
B32: 営業利益 Operating profit | G32: 6448 | H32: 10.4 | I32: 11.7 | J32: 6552 | K32: 10.2 | L32: 1.6
B33: 経常利益 Ordinary profit | G33: 6069 | H33: 9.8 | I33: -2.6 | J33: 6415 | K33: 10 | L33: 5.7
B34: 特別損益 Extraordinary income/loss | G34: -17 | H34: － | I34: － | J34: -129 | K34: － | L34: －
B35: 非支配株主利益 Profit attributable to non-controlling interests | G35: 38 | H35: － | I35: － | J35: 266 | K35: － | L35: －
B36: 当期純利益* Net profit* | G36: 4245 | H36: 6.9 | I36: 0.7 | J36: 4050 | K36: 6.3 | L36: -4.6
B37: *当期純利益は、親会社株主に帰属する当期純利益になります *Profit attributable to owners of parent
A39: 製品別売上高 Sales by product （百万円 Million yen) | G39: FY’20/３ Q1 | H39: 構成比(％) Percent of Net sales | I39: 伸び率(%) Change in % | J39: FY’21/３ Q1 | K39: 構成比(％) Percent of Net sales | L39: 伸び率(%) Change in %
C41: 国内スナック Domestic snack foods | G41: 44634 | H41: 72.1 | I41: 0.1 | J41: 41345 | K41: 64.2 | L41: -7.4
C42: 国内シリアル Domestic cereals | G42: 6209 | H42: 10 | I42: 1.2 | J42: 7973 | K42: 12.4 | L42: 28.4
C43: 国内その他食品（甘しょ・馬鈴しょ） Domestic other foods(sweet potatoes and potatoes) | G43: 285 | H43: 0.5 | I43: 14 | J43: 1817 | K43: 2.8 | L43: 535.9
B44: 国内食品計 Domestic foods business | G44: 51129 | H44: 82.6 | I44: 0.3 | J44: 51136 | K44: 79.4 | L44: 0
C45: 海外スナック Overseas snack foods | G45: 8950 | H45: 14.5 | I45: 8.2 | J45: 10978 | K45: 17.1 | L45: 22.7
C46: 海外シリアル Overseas cereals | G46: 1481 | H46: 2.4 | I46: 45.3 | J46: 1952 | K46: 3 | L46: 31.8
B47: 海外食品計 Overseas foods business | G47: 10432 | H47: 16.8 | I47: 12.3 | J47: 12931 | K47: 20.1 | L47: 24
B48: 食品製造販売事業計 Snacks and other foods business | G48: 61561 | H48: 99.4 | I48: 2.1 | J48: 64067 | K48: 99.5 | L48: 4.1
B49: その他事業 Other businesses | G49: 351 | H49: 0.6 | I49: -62.7 | J49: 317 | K49: 0.5 | L49: -9.6
B50: 売上高合計 Total sales | G50: 61912 | H50: 100 | I50: 1.1 | J50: 64385 | K50: 100 | L50: 4
C51: ＜国内スナック内訳 Breakdown of domestic snack foods＞
C52: ポテト系スナック Potato-based snacks | G52: 32342 | H52: 52.2 | I52: -0.9 | J52: 29120 | K52: 45.2 | L52: -10
D53: ポテトチップス Potato Chips | G53: 20122 | H53: 32.5 | I53: -2.5 | J53: 19461 | K53: 30.2 | L53: -3.3
D54: じゃがりこ Jagarico | G54: 9327 | H54: 15.1 | I54: 2.9 | J54: 7865 | K54: 12.2 | L54: -15.7
D55: Jagabee/じゃがポックル Jagabee/Jagapokkuru | G55: 2892 | H55: 4.7 | I55: -1 | J55: 1794 | K55: 2.8 | L55: -38
C56: 小麦系スナック Flour-based snacks | G56: 5334 | H56: 8.6 | I56: 4.5 | J56: 5501 | K56: 8.5 | L56: 3.1
D57: かっぱえびせん Kappa Ebisen | G57: 2363 | H57: 3.8 | I57: -0.1 | J57: 2366 | K57: 3.7 | L57: 0.1
D58: サッポロポテト等 Sapporo potato and others | G58: 2971 | H58: 4.8 | I58: 8.5 | J58: 3134 | K58: 4.9 | L58: 5.5
C59: コーン系・豆系スナック Corn- and bean-based snacks | G59: 4449 | H59: 7.2 | I59: 7.5 | J59: 4763 | K59: 7.4 | L59: 7
C60: その他スナック Other snacks | G60: 2506 | H60: 4 | I60: -8.5 | J60: 1959 | K60: 3 | L60: -21.8
B61: * | C61: 1:前期まで「その他スナック」に含まれていた一部の豆系スナックを、当期から「コーン系・豆系スナック」に含め、前期の数値も組み替えて表記しています。
C62: 1: A part of products of bean-based snacks, which were included in "Other snacks" until the previous fiscal year, are included in "corn-and bean-based snacks"
D63: from this fiscal year. The figures for the previous fiscal year are reclassified.
A67: 海外国・地域別売上高 Sales by country/area | G67: FY’20/３ Q1 | H67: 伸び率(%) Change in % | J67: FY’21/３ Q1 | K67: 伸び率(%) Change in %
B69: 北米*1North America*1 | E69: 百万円 | F69: M JPY | G69: 2258 | H69: -18.2 | J69: 3530 | K69: 56.3
E70: 千USD | F70: K USD | G70: 20531 | H70: -19.1 | J70: 32764 | K70: 59.6
B71: 中華圏 Greater China | E71: 百万円 | F71: M JPY | G71: 2789 | H71: 8.3 | J71: 4028 | K71: 44.4
C72: 中国 China | E72: 百万円 | F72: M JPY | G72: 1025 | H72: 92.6 | J72: 2244 | K72: 118.8
E73: 千RMB | F73: K RMB | G73: 63632 | H73: 102.6 | J73: 148025 | K73: 132.6
C74: 香港*2 Hong Kong*2 | E74: 百万円 | F74: M JPY | G74: 1763 | H74: -2.2 | J74: 1784 | K74: 1.2
E75: 千HKD | F75: K HKD | G75: 125702 | H75: -3.5 | J75: 128362 | K75: 2.1
B76: 英国 United Kingdom | E76: 百万円 | F76: M JPY | G76: 1436 | H76: 257.9 | J76: 1568 | K76: 9.2
E77: 千GBP | F77: K GBP | G77: 10193 | H77: 274.8 | J77: 11805 | K77: 15.8
B78: インドネシア Indonesia | E78: 百万円 | F78: M JPY | G78: 1200 | H78: 33.8 | J78: 855 | K78: -28.7
E79: 百万IDR | F79: M IDR | G79: 155859 | H79: 35.5 | J79: 120549 | K79: -22.7
B80: その他地域 Other regions | E80: 百万円 | F80: M JPY | G80: 2748 | H80: 3.3 | J80: 2948 | K80: 7.3
C81: 韓国 South Korea | E81: 百万円 | F81: M JPY | G81: 959 | H81: -9.6 | J81: 924 | K81: -3.7
E82: 百万KRW | F82: M KRW | G82: 10113 | H82: -4.4 | J82: 10432 | K82: 3.2
C83: タイ Thailand | E83: 百万円 | F83: M JPY | G83: 908 | H83: 11.1 | J83: 805 | K83: -11.3
E84: 千THB | F84: K THB | G84: 261876 | H84: 8.6 | J84: 239107 | K84: -8.7
C85: シンガポール Singapore | E85: 百万円 | F85: M JPY | G85: 338 | H85: -3.6 | J85: 409 | K85: 21.1
E86: 千SPD | F86: K SPD | G86: 4193 | H86: -2.9 | J86: 5371 | K86: 28.1
C87: 豪州 Australia | E87: 百万円 | F87: M JPY | G87: 541 | H87: 120.4 | J87: 808 | K87: 49.4
E88: 千AUD | F88: K AUD | G88: 7028 | H88: 134.5 | J88: 11507 | K88: 63.7
A89: * | B89: 1:2019年10月にWarnock Food Products, Inc.を買収し連結子会社化 1:Acquired Warnock Food Products, Inc. in October 2019 and made it a consolidated subsidiary
B90: 2:香港のうち、カルビーイーコマースの採用通貨はJPY 2:Within Hong Kong, Calbee E-commerce uses JPY
A92: 国内営業利益、海外営業利益 Domestic and Overseas operating profit （百万円 Million yen） | G92: FY’20/３ Q1 | H92: 営業利益率(%) Operating margin | J92: FY’21/３ Q1 | K92: 営業利益率(%) Operating margin
B94: 国内営業利益 Domestic operating profit | G94: 6135 | H94: 11.9 | J94: 5603 | K94: 10.9
B95: 海外営業利益 Overseas operating profit | G95: 313 | H95: 3 | J95: 949 | K95: 7.3
C96: 北米 North America | G96: -21 | H96: -0.9 | J96: 111 | K96: 3.2
C97: 中華圏 Greater China | G97: 176 | H97: 6.3 | J97: 483 | K97: 12
C98: 英国 United Kingdom | G98: 9 | H98: 0.7 | J98: 15 | K98: 1
C99: インドネシア Indonesia | G99: -144 | H99: -12 | J99: -64 | K99: -7.5
A100: @
C101: その他地域 Other regions | G101: 293 | H101: 10.7 | J101: 402 | K101: 13.7
A102: @
A103: @
A104: @
A105: @
A106: @
A108: @
A109: @
A110: @
A112: 為替レート Exchange rate | G112: FY’20/３ Q1 | J112: FY’21/３ Q1
B114: 期中平均レート Average rate during the period
C115: USD/JPY | G115: 109.99 | J115: 107.74
C116: RMB/JPY | G116: 16.12 | J116: 15.16
C117: GBP/JPY | G117: 140.88 | J117: 132.83
C118: IDR/JPY | G118: 0.0077 | J118: 0.0071
A119: @ | C119: HKD/JPY
A120: @ | C120: TWD/JPY
C121: KRW/JPY | G121: 0.0925 | J121: 0
A122: @ | C122: THB/JPY
A123: @ | C123: PHP/JPY
A124: @ | C124: SGD/JPY
A125: @ | C125: AUD/JPY
A126: @ | C126: EUR/JPY
B127: 期末日レート Current rate | G127: As of June 30, 2019 | J127: As of June 30, 2020
C128: USD/JPY | G128: 107.79 | J128: 107.74
C129: RMB/JPY | G129: 15.69 | J129: 15.23
C130: GBP/JPY | G130: 136.57 | J130: 132.51
C131: IDR/JPY | G131: 0.0077 | J131: 0.0076
A132: 設備投資・減価償却 Capex and depreciation （百万円 Million yen） | G132: FY'20/3 (累計) (YTD) | H132: 増減 YoY | J132: FY'20/3 (累計) (YTD) | K132: 増減 YoY
B134: 設備投資 Capex | G134: =ROUNDDOWN(StravisData取り込み!U134,0) -> 9004 | H134: =ROUNDDOWN((StravisData取り込み!U134-StravisData取り込み!N134),0) -> -941 | J134: =ROUNDDOWN(StravisData取り込み!X134,0) -> 0 | K134: =ROUNDDOWN((StravisData取り込み!X134-StravisData取り込み!Q134),0) -> 0
C135: 国内 Domestic | G135: =ROUNDDOWN(StravisData取り込み!U135,0) -> 7765 | H135: =ROUNDDOWN((StravisData取り込み!U135-StravisData取り込み!N135),0) -> 8 | J135: =ROUNDDOWN(StravisData取り込み!X135,0) -> 0 | K135: =ROUNDDOWN((StravisData取り込み!X135-StravisData取り込み!Q135),0) -> 0
C136: 海外 Overseas | G136: =ROUNDDOWN(StravisData取り込み!U136,0) -> 1239 | H136: =ROUNDDOWN((StravisData取り込み!U136-StravisData取り込み!N136),0) -> -949 | J136: =ROUNDDOWN(StravisData取り込み!X136,0) -> 0 | K136: =ROUNDDOWN((StravisData取り込み!X136-StravisData取り込み!Q136),0) -> 0
B137: 減価償却費 Depreciation | G137: =ROUNDDOWN(StravisData取り込み!U137/1000000,0) -> 8449 | H137: =ROUNDDOWN((StravisData取り込み!U137-StravisData取り込み!N137)/1000000,0) -> 425 | J137: =ROUNDDOWN(StravisData取り込み!X137/1000000,0) -> 0 | K137: =ROUNDDOWN((StravisData取り込み!X137-StravisData取り込み!Q137)/1000000,0) -> 0
C138: 国内 Domestic | G138: =ROUNDDOWN(StravisData取り込み!U138/1000000,0) -> 6416 | H138: =ROUNDDOWN((StravisData取り込み!U138-StravisData取り込み!N138)/1000000,0) -> 217 | J138: =ROUNDDOWN(StravisData取り込み!X138/1000000,0) -> 0 | K138: =ROUNDDOWN((StravisData取り込み!X138-StravisData取り込み!Q138)/1000000,0) -> 0
C139: 海外 Overseas | G139: =ROUNDDOWN(StravisData取り込み!U139/1000000,0) -> 2033 | H139: =ROUNDDOWN((StravisData取り込み!U139-StravisData取り込み!N139)/1000000,0) -> 207 | J139: =ROUNDDOWN(StravisData取り込み!X139/1000000,0) -> 0 | K139: =ROUNDDOWN((StravisData取り込み!X139-StravisData取り込み!Q139)/1000000,0) -> 0
A141: @
A142: @
A143: 研究開発費 Research and development costs（百万円 Million yen) | G143: FY'20/3 (累計) (YTD) | H143: 構成比(％) Percent of Net sales | I143: 伸び率(%) Change in % | J143: FY'20/3 (累計) (YTD) | K143: 構成比(％) Percent of Net sales | L143: 伸び率(%) Change in %
B145: 研究開発費 Research and development costs | G145: =ROUNDDOWN(StravisData取り込み!U145/1000000,0) -> 2745 | H145: =ROUND(StravisData取り込み!U145/StravisData取り込み!U$19 *100,1) -> 1.1 | I145: =ROUND((StravisData取り込み!U145/StravisData取り込み!N145-1)*100,1) -> 3.2 | J145: =ROUNDDOWN(StravisData取り込み!X145/1000000,0) -> 0 | K145: =ROUND(StravisData取り込み!X145/StravisData取り込み!X$19 *100,1) ->  | L145: =ROUND((StravisData取り込み!X145/StravisData取り込み!Q145-1)*100,1) -> 
A147: 配当状況 Dividends | G147: FY'20/3 (累計) (YTD) | H147: 増減 YoY | J147: FY'20/3 (累計) (YTD) | K147: 増減 YoY
B149: 1株当たり年間配当金 Annual dividend per share (円 Yen) | G149: =ROUNDDOWN(StravisData取り込み!U149,2) -> 50 | H149: =ROUNDDOWN(StravisData取り込み!U149,2)-ROUNDDOWN(StravisData取り込み!N149,2) -> 2 | J149: =ROUNDDOWN(StravisData取り込み!X149,2) -> 0 | K149: =ROUNDDOWN(StravisData取り込み!X149,2)-ROUNDDOWN(StravisData取り込み!Q149,2) -> 0
B150: 配当性向 Dividend payout ratio (%) | G150: =ROUND(StravisData取り込み!U150,1) -> 38.1 | H150: =ROUND(G150-#REF!,1) ->  | J150: =ROUND(StravisData取り込み!X150,1) -> 0 | K150: =ROUND(J150-G150,1) -> -38.1
B151: 配当金総額 Total dividend amount (百万円 Million yen) | G151: =ROUNDDOWN(StravisData取り込み!U151/1000000,0) -> 6696 | H151: =ROUNDDOWN((StravisData取り込み!U151-StravisData取り込み!N151)/1000000,0) -> 268 | J151: =ROUNDDOWN(StravisData取り込み!X151/1000000,0) -> 0 | K151: =ROUNDDOWN((StravisData取り込み!X151-StravisData取り込み!Q151)/1000000,0) -> 0

Sheet StravisData取り込み (hidden)
E1: 会計期間 | H1: 2019年3月期 | O1: 2020年3月期 | V1: 2020年3月期
E2: 会計期間 | F2: 201709T | G2: 201712T | H2: 201803T | J2: 201806T | L2: 201809T | N2: 201812T | O2: 201903T | Q2: 201906T | S2: 201909T | U2: 201912T | V2: 202003T | X2: 202006T | Z2: 202009T | AB2: 202012T
A4: 財務指標
H5: １Q | I5: ２Q | J5: 上期 | K5: ３Q | L5: 3Q累計 | M5: 4Q | N5: ４Q累計 | O5: １Q | P5: ２Q | Q5: ２Q累計 | R5: ３Q | S5: 3Q累計 | T5: 4Q | U5: ４Q累計 | V5: １Q | W5: ２Q | X5: ２Q累計 | Y5: ３Q | Z5: 3Q累計 | AA5: 4Q | AB5: ４Q累計
B6: 自己資本利益率 ROE (%) | G6: 12.95781691 | N6: 13.24863608
B7: 1株あたり当期純利益 EPS (円 yen) | G7: 129.72 | L7: 112.4 | N7: 145.39 | O7: 31.76 | Q7: 65.99 | U7: 131.22 | V7: 30.3
B8: 1株当たり純資産額 | G8: 1043.37 | N8: 1151.71 | U8: 1221.19
B9: 営業活動によるCF | G9: 9358968238 | H9: 5730343440 | J9: 12283757461 | L9: 11380668418 | N9: 27620969848 | O9: 5102000942 | Q9: 25154702760 | S9: 13812220516 | U9: 40449269550 | V9: 6367608100 | X9: 0 | Z9: 0 | AB9: 0
B10: 投資活動によるCF | G10: -6258088694 | H10: -3992357429 | J10: -14600111851 | L10: -19170063947 | N10: -28347343393 | O10: 666703600 | Q10: -10567437003 | S10: -3872805097 | U10: -13462393139 | V10: -6196256367 | X10: 0 | Z10: 0 | AB10: 0
B11: 財務活動によるCF | G11: -5450518221 | H11: -5389823189 | J11: -1421811982 | L11: -3393656906 | N11: -6227483517 | O11: -5979511468 | Q11: -6125098617 | S11: -1183642110 | U11: -6278860084 | V11: -6775214636 | X11: 0 | Z11: 0 | AB11: 0
B12: 現金及び現金同等物残高 | G12: 42195201303 | H12: 38581259049 | J12: 38723215248 | L12: 31157610051 | N12: 35425891287 | O12: 34975485536 | Q12: 43579277146 | S12: 44187906251 | U12: 55742996094 | V12: 49240128821 | X12: 0 | Z12: 0 | AB12: 0
B13: 総資産 | G13: 192034489170 | H13: 184994336019 | J13: 196890619877 | L13: 197360646748 | N13: 202750168779 | O13: 196475347658 | Q13: 204449080835 | S13: 213653124881 | U13: 214967413153 | V13: 214990265851 | X13: 0 | Z13: 0 | AB13: 0
B14: 純資産 | G14: 146667727737 | H14: 145411475603 | J14: 150987272976 | L14: 155569294711 | N14: 160490065970 | O14: 157688435318 | Q14: 161903026009 | S14: 169156507730 | U14: 169632656900 | V14: 167784886882 | X14: 0 | Z14: 0 | AB14: 0
B15: 自己資本比率 | G15: 72.6 | H15: 74.82315337 | J15: 73.24586155 | L15: 75.48639374 | N15: 75.92154021 | O15: 76.83557268 | Q15: 75.94272225 | S15: 75.82023552 | U15: 75.93828636 | V15: 74.85819104
A17: 損益計算書 P/L (百万円 Million yen)
B19: 売上高 Net sales | F19: 186691413673 | G19: 251575543134 | H19: 61231784366 | I19: 59835235808 | J19: 121067020174 | K19: 65955177686 | L19: 187022197860 | M19: 61633085245 | N19: 248655283105 | O19: 61912847708 | P19: =Q19-O19 -> 63333480281 | Q19: 125246327989 | R19: =S19-Q19 -> 66858128183 | S19: 192104456172 | T19: =U19-S19 -> 63834512981 | U19: 255938969153 | V19: 64385224826 | W19: =X19-V19 -> -64385224826 | X19: 0 | Y19: =Z19-X19 -> 0 | Z19: 0 | AA19: =AB19-Z19 -> 0 | AB19: 0
B20: 売上原価 | F20: 106614473972 | G20: 142671175421 | H20: 34524162494 | I20: 33209628196 | J20: 67733790690 | K20: 35716171526 | L20: 103449962216 | M20: 34084323865 | N20: 137534286081 | O20: 34291757747 | P20: =Q20-O20 -> 34949260153 | Q20: 69241017900 | R20: =S20-Q20 -> 36179629303 | S20: 105420647203 | T20: =U20-S20 -> 35431426865 | U20: 140852074068 | V20: 36125218950 | W20: =X20-V20 -> -36125218950 | X20: 0 | Y20: =Z20-X20 -> 0 | Z20: 0 | AA20: =AB20-Z20 -> 0 | AB20: 0
B21: 売上総利益率 Gross profit | F21: 80076939701 | G21: 108904367713 | H21: 26707621872 | I21: 26625607612 | J21: 53333229484 | K21: 30239006160 | L21: 83572235644 | M21: 27548761380 | N21: 111120997024 | O21: 27621089961 | P21: 28384220128 | Q21: 56005310089 | R21: 30678498880 | S21: 86683808969 | T21: 28403086116 | U21: 115086895085 | V21: 28260005876 | W21: -28260005876 | X21: 0 | Y21: 0 | Z21: 0 | AA21: 0 | AB21: 0
B22: 販売管理費 SG&A | F22: 60886668286 | G22: 82075529936 | H22: 20933332905 | I22: 20658935279 | J22: 41592268184 | K22: 21538484772 | L22: 63130752956 | M22: 21025979974 | N22: 84156732930 | O22: 21172227858 | P22: 21574622933 | Q22: 42746850791 | R22: 22057639992 | S22: 64804490783 | T22: 22617806287 | U22: 87422297070 | V22: 21707304845 | W22: -21707304845 | X22: 0 | Y22: 0 | Z22: 0 | AA22: 0 | AB22: 0
C23: 販売費 Selling | F23: 26709904776 | G23: 36921361826 | H23: 9388826864 | I23: 9554853731 | J23: 18943680595 | K23: 10047029539 | L23: 28990710134 | M23: 10060917261 | N23: 39051627395 | O23: 9746212555 | P23: 10242470075 | Q23: 19988682630 | R23: 9988180653 | S23: 29976863283 | T23: 10836036544 | U23: 40812899827 | V23: 9582056453 | W23: -9582056453 | X23: 0 | Y23: 0 | Z23: 0 | AA23: 0 | AB23: 0
C24: 物流費 Distribution | F24: 12849211963 | G24: 17345087203 | H24: 4124081078 | I24: 4079893314 | J24: 8203974392 | K24: 4658681781 | L24: 12862656173 | M24: 4365879926 | N24: 17228536099 | O24: 4534306880 | P24: 4452443853 | Q24: 8986750733 | R24: 4785494672 | S24: 13772245405 | T24: 4662927539 | U24: 18435172944 | V24: 4876456579 | W24: -4876456579 | X24: 0 | Y24: 0 | Z24: 0 | AA24: 0 | AB24: 0
C25: 人件費 Labor | F25: 13691737636 | G25: 17686829040 | H25: 4691935449 | I25: 4435813011 | J25: 9127748460 | K25: 4309483289 | L25: 13437231749 | M25: 4195159309 | N25: 17632391058 | O25: 4344675808 | P25: 4547218532 | Q25: 8891894340 | R25: 4625559647 | S25: 13517453987 | T25: 4431354875 | U25: 17948808862 | V25: 4551607999 | W25: -4551607999 | X25: 0 | Y25: 0 | Z25: 0 | AA25: 0 | AB25: 0
C26: その他 Others | F26: 7635813911 | G26: 10122251867 | H26: 2728489514 | I26: 2588375223 | J26: 5316864737 | K26: 2523290163 | L26: 7840154900 | M26: 2404023478 | N26: 10244178378 | O26: 2547032615 | P26: 2332490473 | Q26: 4879523088 | R26: 2658405020 | S26: 7537928108 | T26: 2687487329 | U26: 10225415437 | V26: 2697183814 | W26: -2697183814 | X26: 0 | Y26: 0 | Z26: 0 | AA26: 0 | AB26: 0
B27: 営業利益 Operating income | F27: 19190271415 | G27: 26828837777 | H27: 5774288967 | I27: 5966672333 | J27: 11740961300 | K27: 8700521388 | L27: 20441482688 | M27: 6522781406 | N27: 26964264094 | O27: 6448862103 | P27: 6809597195 | Q27: 13258459298 | R27: 8620858888 | S27: 21879318186 | T27: 5785279829 | U27: 27664598015 | V27: 6552701031 | W27: -6552701031 | X27: 0 | Y27: 0 | Z27: 0 | AA27: 0 | AB27: 0
B28: 経常利益 Ordinary income | F28: 19426860591 | G28: 26179600807 | H28: 6232176196 | I28: 6327963689 | J28: 12560139885 | K28: 8280116984 | L28: 20840256869 | M28: 6591821301 | N28: 27432078170 | O28: 6069012507 | P28: 6750545420 | Q28: 12819557927 | R28: 8943057323 | S28: 21762615250 | T28: 5629069567 | U28: 27391684817 | V28: 6415059051 | W28: -6415059051 | X28: 0 | Y28: 0 | Z28: 0 | AA28: 0 | AB28: 0
B29: 特別損益 Extraordinary income/loss | F29: -125808991 | G29: -80461182 | H29: 114677063 | I29: 1506538087 | J29: 1621215150 | K29: -269506562 | L29: 1351708588 | M29: -313924034 | N29: 1037784554 | O29: -17860707 | P29: -43930962 | Q29: -61791669 | R29: -84391257 | S29: -146182926 | T29: -1501964936 | U29: -1648147862 | V29: -129190452 | W29: 129190452 | X29: 0 | Y29: 0 | Z29: 0 | AA29: 0 | AB29: 0
B30: 非支配株主利益 Non-controlling interests profit | F30: -86196152 | G30: -258326668 | H30: 48376408 | I30: -1296080 | J30: 47080328 | K30: -61971641 | L30: -14891313 | M30: -38801450 | N30: -53692763 | O30: 38964865 | P30: 31997581 | Q30: 70962446 | R30: 35807681 | S30: 106770127 | T30: -434416272 | U30: -327646145 | V30: 266282969 | W30: -266282969 | X30: 0 | Y30: 0 | Z30: 0 | AA30: 0 | AB30: 0
B31: 当期純利益* Net profit* | F31: 13067294377 | G31: 17330900497 | H31: 4213870466 | I31: 5414972315 | J31: 9628842781 | K31: 5390821716 | L31: 15019664497 | M31: 4409913237 | N31: 19429577734 | O31: 4245211826 | P31: 4574943737 | Q31: 8820155563 | R31: 5860794055 | S31: 14680949618 | T31: 2858730348 | U31: 17539679966 | V31: 4050360518 | W31: -4050360518 | X31: 0 | Y31: 0 | Z31: 0 | AA31: 0 | AB31: 0
B32: *当期純利益は、親会社株主に帰属する当期純利益になります *Profit attributable to owners of parent
A34: 製品別売上高 Sales by product （百万円 Million yen)
B36: 国内スナック Domestic snack foods | F36: 129374890282 | G36: 175575195689 | H36: 44608786101 | I36: 43583334024 | J36: 88192120125 | K36: 47565345796 | L36: 135757465921 | M36: 44742244749 | N36: 180499710670 | O36: 44634086220 | P36: =Q36-O36 -> 44595067971 | Q36: 89229154191 | R36: =S36-Q36 -> 48369464468 | S36: 137598618659 | T36: =U36-S36 -> 44488042392 | U36: 182086661051 | V36: 41345898585
B37: 国内シリアル Domestic cereals | F37: 18409867350 | G37: 23836995254 | H37: 6138150214 | I37: 6270314023 | J37: 12408464237 | K37: 5914523086 | L37: 18322987323 | M37: 5494069033 | N37: 23817056356 | O37: 6209365527 | P37: =Q37-O37 -> 6390106713 | Q37: 12599472240 | R37: =S37-Q37 -> 6015524331 | S37: 18614996571 | T37: =U37-S37 -> 6542096549 | U37: 25157093120 | V37: 7973460255
B38: 国内その他食品*1 Domestic other foods*1 | F38: 10726009730 | G38: 14363562023 | H38: 250583950 | I38: 295639469 | J38: 546223419 | K38: 452733580 | L38: 998956999 | M38: 286836764 | N38: 1285793763 | O38: 285761263 | P38: 327677486 | Q38: 613438749 | R38: 443278142 | S38: 1056716891 | T38: 323643958 | U38: 1380360849 | V38: 1817032072
B39: 国内食品計 Domestic foods business | F39: 158510767362 | G39: 213775752966 | H39: 50997520265 | I39: 50149287516 | J39: 101146807781 | K39: 53932602462 | L39: 155079410243 | M39: 50523150546 | N39: 205602560789 | O39: 51129213010 | P39: 51312852170 | Q39: 102442065180 | R39: 54828266941 | S39: 157270332121 | T39: 51353782899 | U39: 208624115020 | V39: 51136390912
B40: 海外スナック Overseas snack foods | F40: 23541998602 | G40: 31266988621 | H40: 8272724645 | I40: 8026627322 | J40: 16299351967 | K40: 9435035751 | L40: 25734387718 | M40: 9444247823 | N40: 35178635541 | O40: 8950232330 | P40: 9908670178 | Q40: 18858902508 | R40: 9450942339 | S40: 28309844847 | T40: 10688372247 | U40: 38998217094 | V40: 10978664166
B41: 海外シリアル Overseas cereals | F41: 1656471477 | G41: 2534475229 | H41: 1020089711 | I41: 1160977274 | J41: 2181066985 | K41: 1815972817 | L41: 3997039802 | M41: 1286312951 | N41: 5283352753 | O41: 1481872270 | P41: 1783713782 | Q41: 3265586052 | R41: 1816837974 | S41: 5082424026 | T41: 1387477519 | U41: 6469901545 | V41: 1952492412
B42: 海外食品計 Overseas foods business | F42: 25198470079 | G42: 33801463850 | H42: 9292814356 | I42: 9187604596 | J42: 18480418952 | K42: 11251008568 | L42: 29731427520 | M42: 10730560774 | N42: 40461988294 | O42: 10432104600 | P42: 11692383960 | Q42: 22124488560 | R42: 11267780313 | S42: 33392268873 | T42: 12075849766 | U42: 45468118639 | V42: 12931156578
B43: 食品製造販売事業計 Snacks and other foods business | F43: 183709237441 | G43: 247577216816 | H43: 60290334621 | I43: 59336892112 | J43: 119627226733 | K43: 65183611030 | L43: 184810837763 | M43: 61253711320 | N43: 246064549083 | O43: 61561317610 | P43: 63005236130 | Q43: 124566553740 | R43: 66096047254 | S43: 190662600994 | T43: 63429632665 | U43: 254092233659 | V43: 64067547490
B44: その他事業 Other businesses | F44: 2982176232 | G44: 3998326318 | H44: 941449745 | I44: 498343696 | J44: 1439793441 | K44: 771566656 | L44: 2211360097 | M44: 379373925 | N44: 2590734022 | O44: 351530098 | P44: 328244151 | Q44: 679774249 | R44: 762080929 | S44: 1441855178 | T44: 404880316 | U44: 1846735494 | V44: 317677336
B45: 売上高合計 Total sales | F45: 186691413673 | G45: 251575543134 | H45: 61231784366 | I45: 59835235808 | J45: 121067020174 | K45: 65955177686 | L45: 187022197860 | M45: 61633085245 | N45: 248655283105 | O45: 61912847708 | P45: 63333480281 | Q45: 125246327989 | R45: 66858128183 | S45: 192104456172 | T45: 63834512981 | U45: 255938969153 | V45: 64385224826
C46: ＜国内スナック内訳＞ | F46: =円!AJ46 -> 0 | G46: =円!AK46 -> 0 | H46: 0 | K46: 0 | M46: 0 | P46: 0 | R46: 0 | T46: 0
C47: ポテト系スナック Potato-based snacks | F47: 91914861592 | G47: 126305753715 | H47: 32627031567 | I47: 31977075930 | J47: 64604107497 | K47: 35186169548 | L47: 99790277045 | M47: 33278316818 | N47: 133068593863 | O47: 32342911269 | P47: 32561669554 | Q47: 64904580823 | R47: 35847657337 | S47: 100752238160 | T47: 32902725576 | U47: 133654963736 | V47: 29120673078
D48: ポテトチップス Potato Chips | F48: 54880255505 | G48: 77007273145 | H48: 20635035470 | I48: 19332480540 | J48: 39967516010 | K48: 23096207315 | L48: 63063723325 | M48: 21065642636 | N48: 84129365961 | O48: 20122752256 | P48: 20253128749 | Q48: 40375881005 | R48: 23290296777 | S48: 63666177782 | T48: 22523012770 | U48: 86189190552 | V48: 19461138696
D49: じゃがりこ Jagarico | F49: 26536249647 | G49: 35695615982 | H49: 9068730138 | I49: 9686434799 | J49: 18755164937 | K49: 9289636863 | L49: 28044801800 | M49: 9357298077 | N49: 37402099877 | O49: 9327356719 | P49: 9277164961 | Q49: 18604521680 | R49: 9507764495 | S49: 28112286175 | T49: 8277973059 | U49: 36390259234 | V49: 7865223291
D50: Jabagee/じゃがポックル Jagabee/Jagapokkuru | F50: 10498356440 | G50: 13602864588 | H50: 2923265959 | I50: 2958160591 | J50: 5881426550 | K50: 2800325370 | L50: 8681751920 | M50: 2855376105 | N50: 11537128025 | O50: 2892802294 | P50: 3031375844 | Q50: 5924178138 | R50: 3049596065 | S50: 8973774203 | T50: 2101739747 | U50: 11075513950 | V50: 1794311091
C51: 小麦系スナック Flour-based snacks | F51: 17052854698 | G51: 22405120696 | H51: 5103163556 | I51: 5156285653 | J51: 10259449209 | K51: 5373518806 | L51: 15632968015 | M51: 5142071980 | N51: 20775039995 | O51: 5334920155 | P51: 5460400543 | Q51: 10795320698 | R51: 5515787293 | S51: 16311107991 | T51: 5352548523 | U51: 21663656514 | V51: 5501642690
D52: かっぱえびせん Kappa Ebisen | F52: 8060912749 | G52: 10707860062 | H52: 2365048455 | I52: 2274440487 | J52: 4639488942 | K52: 2655775721 | L52: 7295264663 | M52: 2410338469 | N52: 9705603132 | O52: 2363696858 | P52: 2586398750 | Q52: 4950095608 | R52: 2627520410 | S52: 7577616018 | T52: 2491403694 | U52: 10069019712 | V52: 2366806855
D53: サッポロポテト等 Sapporo potato and others | F53: 8991941949 | G53: 11697260634 | H53: 2738115101 | I53: 2881845166 | J53: 5619960267 | K53: 2717743085 | L53: 8337703352 | M53: 2731733511 | N53: 11069436863 | O53: 2971223297 | P53: 2874001793 | Q53: 5845225090 | R53: 2888266883 | S53: 8733491973 | T53: 2861144829 | U53: 11594636802 | V53: 3134835835
C54: コーン系・豆系スナック Corn- and bean-based snacks | F54: 12954447803 | G54: 16785761056 | H54: 4138577356 | I54: 3769151150 | J54: 7907728506 | K54: 4247986373 | L54: 12155714879 | M54: 3727070163 | N54: 15882785042 | O54: 4449995943 | P54: 4175538339 | Q54: 8625534282 | R54: 4516714586 | S54: 13142248868 | T54: 4101762056 | U54: 17244010924 | V54: 4763605580
C55: その他スナック*2 Other snacks*2 | F55: 7452726189 | G55: 10078560222 | H55: 2740013622 | I55: 2680821291 | J55: 5420834913 | K55: 2757671069 | L55: 8178505982 | M55: 2594785788 | N55: 10773291770 | O55: 2506258853 | P55: 2397459535 | Q55: 4903718388 | R55: 2489305252 | S55: 7393023640 | T55: 2131006237 | U55: 9524029877 | V55: 1959977237
B56: *1 「シリアル、ベーカリー等」の「ベーカリー」と「その他」を「国内その他食品」にまとめて表記 *1 "Bread" and "Others" of "Cereals, Bread and Others" have been summarized in "Other domestic foods".
B57: *2 「その他新規スナック等」の名称を「その他スナック」に変更 *2 "Other new snacks" have been restated as "Other snacks".
A59: 海外国別売上高 Sales by country
B61: 北米 North America | E61: M JPY | F61: =F62 -> 7239507870 | G61: 9843936220 | H61: 2759866911 | I61: 2418526198 | J61: 5178393109 | K61: 2144713728 | L61: 7323106837 | M61: 2618892524 | N61: 9941999361 | O61: =O62 -> 2258283443 | P61: =Q61-O61 -> 2625824745 | Q61: =Q62 -> 4884108188 | R61: =S61-Q61 -> 2226238032 | S61: =S62 -> 7110346220 | T61: =U61-S61 -> 3466003034 | U61: =U62 -> 10576349254 | V61: =V62 -> 3530022678 | W61: =X61-V61 -> -3530022678 | X61: =X62 -> 0 | Y61: =Z61-X61 -> 0 | Z61: =Z62 -> 0 | AA61: =AB61-Z61 -> 0 | AB61: =AB62 -> 0
C62: 北米 North America | E62: M JPY | F62: 7239507870 | G62: 9843936220 | H62: 2759866911 | I62: 2418526198 | J62: 5178393109 | K62: 2144713728 | L62: 7323106837 | M62: 2618892524 | N62: 9941999361 | O62: 2258283443 | P62: =Q62-O62 -> 2625824745 | Q62: 4884108188 | R62: 2226238032 | S62: 7110346220 | T62: =U62-S62 -> 3466003034 | U62: 10576349254 | V62: 3530022678 | W62: =X62-V62 -> -3530022678 | X62: 0 | Y62: 0 | Z62: 0 | AA62: =AB62-Z62 -> 0 | AB62: 0
E63: K USD | F63: =F62/F114 -> 64748304 | G63: 88836172.01 | H63: 25389759.99 | I63: 21660877.02 | J63: 47050637.01 | K63: 19030456.99 | L63: 66081094 | M63: 23737312.01 | N63: 89818406.01 | O63: =O62/O114 -> 20531716 | P63: 24276616 | Q63: =Q62/Q114 -> 44808332 | R63: 20364410.62 | S63: =S62/S114 -> 65172742.62 | T63: =U63-S63 -> 31769047.06 | U63: =U62/U114 -> 96941789.68 | V63: =V62/V114 -> 32764272.12 | X63: =X62/X114 ->  | Z63: =Z62/Z114 ->  | AA63: =AB63-Z63 ->  | AB63: =AB62/AB114 -> 
B64: 中華圏 Greater China | E64: M JPY | F64: =F65+F67+#REF! ->  | G64: 8718460277 | H64: 2574436879 | I64: 2603183498 | J64: 5177620377 | K64: 3578012858 | L64: 8755633235 | M64: 2583961450 | N64: 11339594685 | O64: =O65+O67 -> 2789359327 | P64: 3341948535 | Q64: =Q65+Q67 -> 6131307862 | R64: 3540174804 | S64: =S65+S67 -> 9671482666 | T64: =U64-S64 -> 3099658778 | U64: =U65+U67 -> 12771141444 | V64: =V65+V67 -> 4028298952 | X64: =X65+X67+#REF! ->  | Z64: =Z65+Z67+#REF! ->  | AA64: =AB64-Z64 ->  | AB64: =AB65+AB67+#REF! -> 
C65: 中国 China | E65: M JPY | F65: 1259223274 | G65: 1636411796 | H65: 532674965 | I65: 853646644 | J65: 1386321609 | K65: 1377922313 | L65: 2764243922 | M65: 1053919696 | N65: 3818163618 | O65: 1025755141 | P65: 1611782332 | Q65: 2637537473 | R65: 1783707426 | S65: 4421244899 | T65: =U65-S65 -> 1753884231 | U65: 6175129130 | V65: 2244063013 | W65: -2244063013 | X65: 0 | Y65: 0 | Z65: 0 | AA65: =AB65-Z65 -> 0 | AB65: 0
E66: K RMB | F66: =F65/F115 -> 75629025.47 | G66: 97754587.57 | H66: 31407721.99 | I66: 51705084.3 | J66: 83112806.29 | K66: 83910995.64 | L66: 167023801.9 | M66: 64099903.76 | N66: 231123705.7 | O66: =O65/O115 -> 63632452.92 | P66: 103830243.8 | Q66: =Q65/Q115 -> 167462696.7 | R66: 114145258.7 | S66: =S65/S115 -> 281607955.4 | T66: 112717021 | U66: =U65/U115 -> 394324976.4 | V66: =V65/V115 -> 148025264.7 | X66: =X65/X115 ->  | Z66: =Z65/Z115 ->  | AB66: =AB65/AB115 -> 
C67: 香港* Hong Kong* | E67: M JPY | F67: 4717250597 | G67: 6461094170 | H67: 1803528089 | I67: 1649613219 | J67: 3453141308 | K67: 2125312224 | L67: 5578453532 | M67: 1504870309 | N67: 7083323841 | O67: 1763604186 | P67: 1730166203 | Q67: 3493770389 | R67: 1756467378 | S67: 5250237767 | T67: 1345774547 | U67: 6596012314 | V67: 1784235939 | W67: -1784235939 | X67: 0 | Y67: 0 | Z67: 0 | AA67: 0 | AB67: 0
E68: K HKD | F68: =F67/F116 -> 329187061.9 | G68: 455327284.7 | H68: 130218634.6 | I68: 115906904.1 | J68: 246125538.7 | K68: 148669474.2 | L68: 394795012.9 | M68: 107212346.5 | N68: 502007359.4 | O68: =O67/O116 -> 125702365.4 | P68: 125648022.3 | Q68: =Q67/Q116 -> 251350387.7 | R68: 125551103.1 | S68: =S67/S116 -> 376901490.8 | T68: 95930933.13 | U68: =U67/U116 -> 472832423.9 | V68: =V67/V116 -> 128362297.8 | X68: =X67/X116 ->  | Z68: =Z67/Z116 ->  | AB68: =AB67/AB116 -> 
B69: 英国 UK | E69: M JPY | F69: =F70 -> 1040695702 | G69: =G70 -> 1390971599 | H69: 401305615 | I69: 425846123 | J69: 827151738 | K69: 1686121348 | L69: 2513273086 | M69: 1680454635 | N69: 4193727721 | O69: =O70+O86 -> 1436127354 | P69: 1495228085 | Q69: =Q70+Q86 -> 2931355439 | R69: 1570088755 | S69: =S70+S86 -> 4501444194 | T69: 1546522633 | U69: =U70+U86 -> 6047966827 | V69: =V70+V86 -> 1568113503 | W69: -1568113503 | X69: =X70+X86 -> 0 | Y69: 0 | Z69: =Z70+Z86 -> 0 | AA69: 0 | AB69: =AB70+AB86 -> 0
C70: UK United Kingdom | E70: M JPY | F70: 1040695702 | G70: 1390971599 | H70: 401305615 | I70: 425846123 | J70: 827151738 | K70: 1686121348 | L70: 2513273086 | M70: 1680454635 | N70: 4193727721 | O70: 1436127354 | P70: 1495228085 | Q70: 2931355439 | R70: 1570088755 | S70: 4501444194 | T70: 1546522633 | U70: 6047966827 | V70: 1568113503 | W70: -1568113503 | X70: 0 | Y70: 0 | Z70: 0 | AA70: 0 | AB70: 0
E71: K GBP | F71: =F70/F124 -> 7116841.291 | G71: 9445685 | H71: 2719978.413 | I71: 2907286.966 | J71: 5627265.379 | K71: 11607001.14 | L71: 17234266.52 | M71: 11554967.51 | N71: 28789234.03 | O71: =O70/O124 -> 10193976.11 | P71: 11229362.63 | Q71: =Q70/Q124 -> 21423338.73 | R71: 11118005.83 | S71: =S70/S124 -> 32541344.57 | T71: 11123133.28 | U71: =U70/U124 -> 43664477.85 | V71: =V70/V124 -> 11805416.72 | X71: =X70/X124 ->  | Z71: =Z70/Z124 ->  | AB71: =AB70/AB124 -> 
B72: インドネシア Indonesia | E72: M JPY | F72: =F73 -> 2396111048 | G72: =G73 -> 2965341768 | H72: 897075822 | I72: 958248748 | J72: 1855324570 | K72: 1012976686 | L72: 2868301256 | M72: 986651208 | N72: 3854952464 | O72: =O73 -> 1200121982 | P72: 1235837555 | Q72: 2435959537 | R72: 957243678 | S72: =S73 -> 3393203215 | T72: 958260924 | U72: =U73 -> 4351464139 | V72: =V73 -> 855903829 | W72: -855903829 | X72: 0 | Y72: 0 | Z72: =Z73 -> 0 | AA72: 0 | AB72: =AB73 -> 0
C73: インドネシア Indonesia | E73: M JPY | F73: 2396111048 | G73: 2965341768 | H73: 897075822 | I73: 958248748 | J73: 1855324570 | K73: 1012976686 | L73: 2868301256 | M73: 986651208 | N73: 3854952464 | O73: 1200121982 | P73: 1235837555 | Q73: 2435959537 | R73: 957243678 | S73: 3393203215 | T73: 958260924 | U73: 4351464139 | V73: 855903829 | W73: -855903829 | X73: 0 | Y73: 0 | Z73: 0 | AA73: 0 | AB73: 0
E74: M IDR | F74: =F73/F122 -> 2.886880781e+11 | G74: 3.616270449e+11 | H74: 1.150097208e+11 | I74: 1.259415221e+11 | J74: 2.409512429e+11 | K74: 1.315554138e+11 | L74: 3.725066566e+11 | M74: 1.281365205e+11 | N74: 5.006431771e+11 | O74: =O73/O122 -> 1.558599977e+11 | P74: 1.604983838e+11 | Q74: =Q73/Q122 -> 3.163583814e+11 | R74: 1.243173608e+11 | S74: =S73/S122 -> 4.406757422e+11 | T74: 1.318853287e+11 | U74: =U73/U122 -> 5.725610709e+11 | V74: =V73/V122 -> 1.205498351e+11 | X74: =X73/X122 ->  | Z74: =Z73/Z122 ->  | AB74: =AB73/AB122 -> 
B75: その他アジア・豪州 Other Asian regions and Australia | E75: M JPY | F75: =F78+F84+F80+F76+F82 -> 8195155230 | G75: =G78+G84+G80+G76+G82 -> 10869177289 | H75: 2660129129 | I75: 2781800029 | J75: 5441929158 | K75: 2829183948 | L75: 8271113106 | M75: 2860600957 | N75: 11131714063 | O75: =O78+O84+O80+O76+O82 -> 2748212494 | P75: 2993545040 | Q75: =Q78+Q84+Q80+Q76+Q82 -> 5741757534 | R75: 2974035044 | S75: =S78+S84+S80+S76+S82 -> 8715792578 | T75: 3005404397 | U75: =U78+U84+U80+U76+U82 -> 11721196975 | V75: =V78+V84+V80+V76+V82 -> 2948817616 | W75: -2948817616 | X75: =X78+X84+X80+X76+X82 -> 0 | Y75: 0 | Z75: =Z78+Z84+Z80+Z76+Z82 -> 0 | AA75: 0 | AB75: =AB78+AB84+AB80+AB76+AB82 -> 0
C76: 韓国 South Korea | E76: M JPY | F76: 4089957625 | G76: 5283263283 | H76: 1062233236 | I76: 1129295001 | J76: 2191528237 | K76: 1206488497 | L76: 3398016734 | M76: 1238156911 | N76: 4636173645 | O76: 959729265 | P76: 983386155 | Q76: 1943115420 | R76: 905995779 | S76: 2849111199 | T76: 1081427060 | U76: 3930538259 | V76: 924319964 | W76: -924319964 | X76: 0 | Y76: 0 | Z76: 0 | AA76: 0 | AB76: 0
E77: M KRW | F77: =F76/F118 -> 4.081794037e+10 | G77: 5.2674609e+10 | H77: 1.058001231e+10 | I77: 1.124795818e+10 | J77: 2.182797049e+10 | K77: 1.205056126e+10 | L77: 3.387853174e+10 | M77: 1.252961285e+10 | N77: 4.640814459e+10 | O77: =O76/O118 -> 1.011305864e+10 | P77: 1.082568511e+10 | Q77: =Q76/Q118 -> 20938743750 | R77: 9663954413 | S77: =S76/S118 -> 3.060269816e+10 | T77: 1.188960734e+10 | U77: =U76/U118 -> 4.24923055e+10 | V77: =V76/V118 -> 1.043250524e+10 | X77: =X76/X118 ->  | Z77: =Z76/Z118 ->  | AB77: =AB76/AB118 -> 
C78: タイ Thailand | E78: M JPY | F78: 2468844370 | G78: 3325683531 | H78: 817798187 | I78: 771534251 | J78: 1589332438 | K78: 911593428 | L78: 2500925866 | M78: 859003382 | N78: 3359929248 | O78: 908711638 | P78: 948659612 | Q78: 1857371250 | R78: 1024257458 | S78: 2881628708 | T78: 810653111 | U78: 3692281819 | V78: 805793804 | W78: -805793804 | X78: 0 | Y78: 0 | Z78: 0 | AA78: 0 | AB78: 0
E79: K THB | F79: =F78/F119 -> 741394705.7 | G79: 992741352.5 | H79: 241238403.2 | I79: 227591224.5 | J79: 468829627.7 | K79: 266736803.4 | L79: 735566431.2 | M79: 246869021.5 | N79: 982435452.6 | O79: =O78/O119 -> 261876552.7 | P79: 270321513.2 | Q79: =Q78/Q119 -> 532198065.9 | R79: 284127347.1 | S79: =S78/S119 -> 816325413 | T79: =U79-S79 -> 238612249.5 | U79: =U78/U119 -> 1054937663 | V79: =V78/V119 -> 239107953.7 | X79: =X78/X119 ->  | Z79: =Z78/Z119 ->  | AA79: =AB79-Z79 ->  | AB79: =AB78/AB119 -> 
C80: シンガポール Singapore | E80: M JPY | F80: 995328729 | G80: 1303712800 | H80: 351037485 | I80: 347506861 | J80: 698544346 | K80: 339257927 | L80: 1037802273 | M80: 303726816 | N80: 1341529089 | O80: 338470487 | P80: 352807096 | Q80: 691277583 | R80: 360558328 | S80: 1051835911 | T80: =U80-S80 -> 319382485 | U80: 1371218396 | V80: 409820578 | W80: -409820578 | X80: 0 | Y80: 0 | Z80: 0 | AA80: =AB80-Z80 -> 0 | AB80: 0
E81: K SPD | F81: =F80/F121 -> 12170808.62 | G81: 15945606.65 | H81: 4316742.314 | I81: 4245948.86 | J81: 8562691.174 | K81: 4144573.097 | L81: 12707264.27 | M81: 3718952.075 | N81: 16426216.35 | O81: =O80/O121 -> 4193662.334 | P81: 4496187.861 | Q81: =Q80/Q121 -> 8689850.195 | R81: 4489399.41 | S81: =S80/S121 -> 13179249.61 | T81: 4075291.681 | U81: =U80/U121 -> 17254541.29 | V81: =V80/V121 -> 5371174.024 | X81: =X80/X121 ->  | Z81: =Z80/Z121 ->  | AA81: =AB81-Z81 ->  | AB81: =AB80/AB121 -> 
C82: オーストラリア Australia | E82: M JPY | F82: 278942498 | G82: 437470055 | H82: 245641833 | I82: 359728645 | J82: 605370478 | K82: 371844096 | L82: 977214574 | M82: 459713848 | N82: 1436928422 | O82: 541301104 | P82: 708692177 | Q82: 1249993281 | R82: 683223479 | S82: 1933216760 | T82: 793941741 | U82: 2727158501 | V82: 808883270 | W82: -808883270 | X82: 0 | Y82: 0 | Z82: 0 | AA82: 0 | AB82: 0
E83: K AUD | F83: =F82/F123 -> 3236367.305 | G83: 5100501.982 | H83: 2997825.641 | I83: 4405506.608 | J83: 7403332.249 | K83: 4603235.806 | L83: 12006568.06 | M83: 5770599.111 | N83: 17777167.17 | O83: =O82/O123 -> 7028971.614 | P83: 9571204.76 | Q83: =Q82/Q123 -> 16600176.37 | R83: 9073352.975 | S83: =S82/S123 -> 25673529.35 | T83: 11090537.8 | U83: =U82/U123 -> 36764067.15 | V83: =V82/V123 -> 11507800.11 | X83: =X82/X123 ->  | Z83: =Z82/Z123 ->  | AB83: =AB82/AB123 -> 
C84: フィリピン Philippines | E84: M JPY | F84: 362082008 | G84: 519047620 | H84: 183418388 | I84: 173735271 | J84: 357153659 | K84: 0 | L84: 357153659 | M84: 0 | N84: 357153659 | O84: 0 | P84: 0 | Q84: 0 | R84: 0 | S84: 0 | T84: 0 | U84: 0 | V84: 0 | W84: 0 | X84: 0 | Y84: 0 | Z84: 0 | AA84: 0 | AB84: 0
E85: K PHP | F85: 163100003.2 | G85: 237008045.7 | H85: 88181917.31 | I85: 82705000.87 | J85: 170886918.2 | K85: 0 | L85: 170886918.2 | M85: 0 | N85: 170886918.2 | O85: 170886918.2 | P85: 0 | Q85: 170886918.2 | R85: -170886918.2 | S85: =S84/S120 -> 0 | T85: 0 | U85: =U84/U120 -> 0 | V85: 170886918.2 | W85: 0 | X85: 170886918.2 | Z85: =Z84/Z120 ->  | AB85: =AB84/AB120 -> 
C86: スペイン Spain | E86: M JPY | F86: 13576697 | G86: 13576697 | H86: 0 | I86: 0 | J86: 0 | K86: 0 | L86: 0 | M86: 0 | N86: 0 | O86: 0 | P86: 0 | Q86: 0 | R86: 0 | S86: 0 | T86: 0 | U86: 0 | V86: 0 | W86: 0 | X86: 0 | Y86: 0 | Z86: 0 | AA86: 0 | AB86: 0
E87: K EUR | F87: =F86/F125 -> 105581.2816 | G87: 107223 | H87: 0 | I87: 0 | J87: 0 | K87: 0 | L87: 0 | M87: 0 | N87: 0 | O87: =O86/O125 -> 0 | P87: 0 | Q87: =Q86/Q125 -> 0 | R87: 0 | S87: =S86/S125 -> 0 | T87: 0 | U87: =U86/U125 -> 0 | V87: =V86/V125 -> 0 | X87: =X86/X125 ->  | Z87: =Z86/Z125 ->  | AB87: =AB86/AB125 -> 
B88: *香港のうち、カルビーイーコマースの採用通貨はJPY *Within Hong Kong, Calbee E-commerce uses JPY
A90: 国内営業利益、海外営業利益 Domestic operating income, Overseas operating income
B92: 国内営業利益 Domestic operating income | F92: =F109-F93 -> 19924225482 | G92: =G109-G93 -> 28316940112 | H92: 5790561089 | I92: 5991013997 | J92: 11781575086 | K92: 8872331130 | L92: 20653906216 | M92: 6415978129 | N92: 27069884345 | O92: =O109-O93 -> 6135018640 | P92: =Q92-O92 -> 6462088339 | Q92: =Q109-Q93 -> 12597106979 | R92: =S92-Q92 -> 8523255683 | S92: =S109-S93 -> 21120362662 | T92: =U92-S92 -> 5573447471 | U92: =U109-U93 -> 26693810133 | V92: =V109-V93 -> 5603168475 | W92: =X92-V92 -> -5603168475 | X92: =X109-X93 -> 0 | Y92: =Z92-X92 -> 0 | Z92: =Z109-Z93 -> 0 | AA92: =AB92-Z92 ->  | AB92: =AB109-AB93 -> 
B93: 海外営業利益 Overseas operating income | F93: =SUM(F94,F95,F99,F100,F101,F107) -> -733954067 | G93: =SUM(G94,G95,G99,G100,G101,G107) -> -1488102335 | H93: -16272122 | I93: -24341664 | J93: -40613786 | K93: -171809742 | L93: -212423528 | M93: 106803277 | N93: -105620251 | O93: =SUM(O94,O95,O99,O100,O101,O107) -> 313843463 | P93: =Q93-O93 -> 347508856 | Q93: =SUM(Q94,Q95,Q99,Q100,Q101,Q107) -> 661352319 | R93: 97603205 | S93: =SUM(S94,S95,S99,S100,S101,S107) -> 758955524 | T93: =U93-S93 -> 211832358 | U93: =SUM(U94,U95,U99,U100,U101,U107) -> 970787882 | V93: =SUM(V94,V95,V99,V100,V101,V107) -> 949532556.3 | W93: =X93-V93 -> -949532556.3 | X93: =SUM(X94,X95,X99,X100,X101,X107) -> 0 | Y93: 0 | Z93: =SUM(Z94,Z95,Z99,Z100,Z101,Z107) -> 0 | AA93: =AB93-Z93 ->  | AB93: =SUM(AB94,AB95,AB99,AB100,AB101,AB107) -> 
C94: 北米 North America | F94: -427494428 | G94: -706716993 | H94: 159244464 | I94: 20888285 | J94: 180132749 | K94: -123411420 | L94: 56721329 | M94: 14825083 | N94: 71546412 | O94: -21111829 | P94: 25219573 | Q94: 4107744 | R94: -416927406 | S94: -412819662 | T94: 2713023 | U94: -410106639 | V94: 111866873 | W94: -111866873 | X94: 0 | Y94: 0 | Z94: 0 | AA94: 0 | AB94: 0
C95: 中華圏 Greater China | F95: =SUM(F96:F98) -> 471145045 | G95: =SUM(G96:G98) -> 161141142 | H95: -58866923 | I95: 156807716 | J95: 97940793 | K95: 238379986 | L95: 336320779 | M95: 24802881 | N95: 361123660 | O95: =SUM(O96:O98) -> 176175077 | P95: 233748675 | Q95: =SUM(Q96:Q98) -> 409923752 | R95: 324395470 | S95: =SUM(S96:S98) -> 734319222 | T95: 169677483 | U95: =SUM(U96:U98) -> 903996705 | V95: =SUM(V96:V98) -> 483207632 | W95: -483207632 | X95: =SUM(X96:X98) -> 0 | Y95: 0 | Z95: =SUM(Z96:Z98) -> 0 | AA95: 0 | AB95: =SUM(AB96:AB98) -> 0
D96: 中国 | F96: 181514263 | G96: 158447292 | H96: -15030691 | I96: 13825917 | J96: -1204774 | K96: 119626321 | L96: 118421547 | M96: -16046112 | N96: 102375435 | O96: 23949486 | P96: 113266974 | Q96: 137216460 | R96: 198712388 | S96: 335928848 | T96: 76696511 | U96: 412625359 | V96: 252895187 | W96: -252895187 | X96: 0 | Y96: 0 | Z96: 0 | AA96: 0 | AB96: 0
D97: 香港 | F97: 415477627 | G97: 354352916 | H97: 132051194 | I97: 134184298 | J97: 266235492 | K97: 128648883 | L97: 394884375 | M97: 36545984 | N97: 431430359 | O97: 152240199 | P97: 120553467 | Q97: 272793666 | R97: 125689117 | S97: 398482783 | T97: 92888563 | U97: 491371346 | V97: 230317845 | W97: -230317845 | X97: 0 | Y97: 0 | Z97: 0 | AA97: 0 | AB97: 0
D98: 台湾 | F98: -125846845 | G98: -351659066 | H98: -175887426 | I98: 8797501 | J98: -167089925 | K98: -9895218 | L98: -176985143 | M98: 4303009 | N98: -172682134 | O98: -14608 | P98: -71766 | Q98: -86374 | R98: -6035 | S98: -92409 | T98: 92409 | U98: 0 | V98: -5400 | W98: 5400 | X98: 0 | Y98: 0 | Z98: 0 | AA98: 0 | AB98: 0
C99: UK | F99: -285614463 | G99: -396417044 | H99: -109685208 | I99: -142919911 | J99: -252605119 | K99: -132718971 | L99: -385324090 | M99: -58824588 | N99: -444148678 | O99: 9616453 | P99: 27826732 | Q99: 37443185 | R99: -32238114 | S99: 5205071 | T99: -34640952 | U99: -29435881 | V99: 15965494.32 | W99: -15965494.32 | X99: 0 | Y99: 0 | Z99: 0
C100: インドネシア | F100: -526477451 | G100: -720376418 | H100: -153923191 | I100: -152479340 | J100: -306402531 | K100: -292058482 | L100: -598461013 | M100: -187403483 | N100: -785864496 | O100: -144186192 | P100: -135639263 | Q100: -279825455 | R100: -119625789 | S100: -399451244 | T100: -123431452 | U100: -522882696 | V100: -64278262 | W100: 64278262 | X100: 0 | Y100: 0 | Z100: 0 | AA100: 0 | AB100: 0
C101: その他アジア・豪州 Other Asian reagions and Australia | F101: =SUM(F102:F107) -> 73827751 | G101: =SUM(G102:G107) -> 213789435 | H101: 146958736 | I101: 93361586 | J101: 240320322 | K101: 137999145 | L101: 378319467 | M101: 313403384 | N101: 691722851 | O101: =SUM(O102:O107) -> 293349954 | P101: 196353139 | Q101: =SUM(Q102:Q107) -> 489703093 | R101: 341999044 | S101: =SUM(S102:S107) -> 831702137 | T101: 197514256 | U101: =SUM(U102:U107) -> 1029216393 | V101: =SUM(V102:V107) -> 402770819 | W101: -402770819 | X101: =SUM(X102:X107) -> 0 | Y101: 0 | Z101: =SUM(Z102:Z107) -> 0 | AA101: 0 | AB101: =SUM(AB102:AB107) -> 0
D102: 韓国 South Korea | F102: -48131215 | G102: -42126893 | H102: -14181275 | I102: -8705666 | J102: -22886941 | K102: 6082265 | L102: -16804676 | M102: 48338053 | N102: 31533377 | O102: 7568558 | P102: 372077 | Q102: 7940635 | R102: 7824820 | S102: 15765455 | T102: 41769928 | U102: 57535383 | V102: 34377346 | W102: -34377346 | X102: 0 | Y102: 0 | Z102: 0 | AA102: 0 | AB102: 0
D103: タイ | F103: 286823880 | G103: 421784024 | H103: 144832940 | I103: 75766705 | J103: 220599645 | K103: 54192569 | L103: 274792214 | M103: 199688131 | N103: 474480345 | O103: 161822582 | P103: 72449672 | Q103: 234272254 | R103: 156883860 | S103: 391156114 | T103: 151466251 | U103: 542622365 | V103: 176971451 | W103: -176971451 | X103: 0 | Y103: 0 | Z103: 0 | AA103: 0 | AB103: 0
D104: フィリピン | F104: -177763766 | G104: -200704547 | H104: -9182272 | I104: -27165125 | J104: -36347397 | K104: 0 | L104: -36347397 | M104: 0 | N104: -36347397 | O104: 0 | P104: 0 | Q104: 0 | R104: 0 | S104: 0 | T104: 0 | U104: 0 | V104: 0 | W104: 0 | X104: 0 | Y104: 0 | Z104: 0 | AA104: 0 | AB104: 0
D105: シンガポール | F105: 61362774 | G105: 68621850 | H105: 19897294 | I105: 26774806 | J105: 46672100 | K105: 12900776 | L105: 59572876 | M105: 13030404 | N105: 72603280 | O105: 28860918 | P105: 26692576 | Q105: 55553494 | R105: 25921105 | S105: 81474599 | T105: 14473334 | U105: 95947933 | V105: 57616444 | W105: -57616444 | X105: 0 | Y105: 0 | Z105: 0 | AA105: 0 | AB105: 0
D106: オーストラリア | F106: -9123401 | G106: 5737458 | H106: 5592049 | I106: 26690866 | J106: 32282915 | K106: 64823535 | L106: 97106450 | M106: 52346796 | N106: 149453246 | O106: 95097896 | P106: 96838814 | Q106: 191936710 | R106: 151369259 | S106: 343305969 | T106: -10195257 | U106: 333110712 | V106: 133805578 | W106: -133805578 | X106: 0 | Y106: 0 | Z106: 0 | AA106: 0 | AB106: 0
C107: 欧州 Europe | F107: =SUM(F108) -> -39340521 | G107: =SUM(G108) -> -39522457 | H107: 0 | I107: 0 | J107: 0 | K107: 0 | L107: 0 | M107: 0 | N107: 0 | O107: =SUM(O108) -> 0 | P107: 0 | Q107: 0 | R107: 0 | S107: 0 | T107: 0 | U107: 0 | V107: 0 | W107: 0 | X107: 0 | Y107: 0 | Z107: 0 | AA107: 0 | AB107: 0
D108: スペイン | F108: -39340521 | G108: -39522457 | H108: 0 | I108: 0 | J108: 0 | K108: 0 | L108: 0 | M108: 0 | N108: 0 | O108: 0 | P108: 0 | Q108: 0 | R108: 0 | S108: 0 | T108: 0 | U108: 0 | V108: 0 | W108: 0 | X108: 0 | Y108: 0 | Z108: 0 | AA108: 0 | AB108: 0
B109: 連結営業利益 | F109: =F27 -> 19190271415 | G109: =G27 -> 26828837777 | H109: 5774288967 | J109: 11740961300 | K109: 8700521388 | L109: 20441482688 | M109: 6522781406 | N109: 26964264094 | O109: =O27 -> 6448862103 | P109: 6809597195 | Q109: =Q27 -> 13258459298 | R109: 8620858888 | S109: =S27 -> 21879318186 | T109: 5785279829 | U109: =U27 -> 27664598015 | V109: =V27 -> 6552701031 | W109: -6552701031 | X109: =X27 -> 0 | Y109: 0 | Z109: =Z27 -> 0 | AA109: 0 | AB109: =AB27 -> 0
A111: 為替レート Exchange rate
B113: 期中平均レート Average rate during the period
C114: USD/JPY | F114: 111.81 | G114: 111.81 | H114: 108.7 | J114: 110.06 | L114: 110.82 | N114: 110.69 | O114: 109.99 | Q114: 109 | S114: 109.1 | U114: 109.1 | V114: 107.74 | X114: 0 | Z114: 0 | AB114: 0
C115: RMB/JPY | F115: 16.65 | G115: 16.65 | H115: 16.96 | J115: 16.68 | L115: 16.55 | N115: 16.52 | O115: 16.12 | Q115: 15.75 | S115: 15.7 | U115: 15.66 | V115: 15.16 | X115: 0 | Z115: 0 | AB115: 0
C116: HKD/JPY | F116: 14.33 | G116: 14.33 | H116: 13.85 | J116: 14.03 | L116: 14.13 | N116: 14.11 | O116: 14.03 | Q116: 13.9 | S116: 13.93 | U116: 13.95 | V116: 13.9 | X116: 0 | Z116: 0 | AB116: 0
C117: TWD/JPY | F117: 3.7 | G117: 3.7 | H117: 3.64 | J117: 3.64 | L117: 3.64 | N117: 3.63 | O117: 3.53 | Q117: 3.5 | S117: 3.53 | U117: 3.54 | V117: 3.6 | X117: 0 | Z117: 0 | AB117: 0
C118: KRW/JPY | F118: 0.1002 | G118: 0.1002 | H118: 0.1004 | J118: 0.1004 | L118: 0.1003 | N118: 0.0999 | O118: 0.0949 | Q118: 0.0928 | S118: 0.0931 | U118: 0.0925 | V118: 0.0886 | X118: 0 | Z118: 0 | AB118: 0
C119: THB/JPY | F119: 3.33 | G119: 3.33 | H119: 3.39 | J119: 3.39 | L119: 3.4 | N119: 3.42 | O119: 3.47 | Q119: 3.49 | S119: 3.53 | U119: 3.5 | V119: 3.37 | X119: 0 | Z119: 0 | AB119: 0
C120: PHP/JPY | F120: 2.22 | G120: 2.22 | H120: 2.08 | J120: 2.09 | L120: 2.11 | N120: 2.11 | O120: 2.12 | Q120: 2.11 | S120: 2.13 | U120: 2.14 | V120: 2.15 | X120: 0 | Z120: 0 | AB120: 0
C121: SGD/JPY | F121: 81.78 | G121: 81.78 | H121: 81.32 | J121: 81.58 | L121: 81.67 | N121: 81.67 | O121: 80.71 | Q121: 79.55 | S121: 79.81 | U121: 79.47 | V121: 76.3 | X121: 0 | Z121: 0 | AB121: 0
C122: IDR/JPY | F122: 0.0083 | G122: 0.0083 | H122: 0.0078 | J122: 0.0077 | L122: 0.0077 | N122: 0.0077 | O122: 0.0077 | Q122: 0.0077 | S122: 0.0077 | U122: 0.0076 | V122: 0.0071 | X122: 0 | Z122: 0 | AB122: 0
C123: AUD/JPY | F123: 86.19 | G123: 86.19 | H123: 81.94 | J123: 81.77 | L123: 81.39 | N123: 80.83 | O123: 77.01 | Q123: 75.3 | S123: 75.3 | U123: 74.18 | V123: 70.29 | X123: 0 | Z123: 0 | AB123: 0
C124: GBP/JPY | F124: 146.23 | G124: 146.23 | H124: 147.54 | J124: 146.99 | L124: 145.83 | N124: 145.67 | O124: 140.88 | Q124: 136.83 | S124: 138.33 | U124: 138.51 | V124: 132.83 | X124: 0 | Z124: 0 | AB124: 0
C125: EUR/JPY | F125: 128.59 | G125: 128.59 | H125: 129.38 | J125: 129.88 | L125: 129.38 | N125: 128.43 | O125: 123.29 | Q125: 121.43 | S125: 121.46 | U125: 121.13 | V125: 118.94 | X125: 0 | Z125: 0 | AB125: 0
B126: 期末日レート Current rate
C127: USD/JPY | F127: 113 | G127: 113 | H127: 110.54 | J127: 113.57 | L127: 111 | N127: 110.99 | O127: 107.79 | Q127: 107.92 | S127: 109.56 | U127: 108.83 | V127: 107.74 | X127: 0 | Z127: 0 | AB127: 0
C128: RMB/JPY | F128: 17.29 | G128: 17.29 | H128: 16.66 | J128: 16.5 | L128: 16.16 | N128: 16.47 | O128: 15.69 | Q128: 15.13 | S128: 15.67 | U128: 15.31 | V128: 15.23 | X128: 0 | Z128: 0 | AB128: 0
C129: GBP/JPY | F129: 151.95 | G129: 151.95 | H129: 144.59 | J129: 148.53 | L129: 140.46 | N129: 144.98 | O129: 136.57 | Q129: 132.69 | S129: 143.48 | U129: 133.32 | V129: 132.51 | X129: 0 | Z129: 0 | AB129: 0
C130: IDR/JPY | F130: 0.0084 | G130: 0.0084 | H130: 0.0077 | J130: 0.0076 | L130: 0.0077 | N130: 0.0078 | O130: 0.0077 | Q130: 0.0076 | S130: 0.0079 | U130: 0.0067 | V130: 0.0076 | X130: 0 | Z130: 0 | AB130: 0
A132: 設備投資・減価償却 Capex and depreciation （百万円 Million yen）
B134: 設備投資 Capex | G134: 11009.44534 | N134: 9945 | U134: 9004 | AB134: 9004
C135: 国内 Domestic | G135: 9338.712073 | N135: 7757 | U135: 7765 | AB135: 7765
C136: 海外 Overseas | G136: 1670.733264 | N136: 2188 | U136: 1239 | AB136: 1239
B137: 減価償却費 Depreciation | G137: 7845712180 | N137: 8023956174 | U137: =SUM(U138:U139) -> 8449437288 | AB137: =SUM(AB138:AB139) -> 8449437288
C138: 国内 Domestic | G138: 6241545320 | N138: 6198345139 | U138: 6416098791 | AB138: 6416098791
C139: 海外 Overseas | G139: 1604166860 | N139: 1825611035 | U139: 2033338497 | AB139: 2033338497
B141: 有形固定資産取得 | F141: 9234477126 | G141: 9234477126 | H141: 3305912994 | J141: 6017792823 | L141: 7404199518 | N141: 9390346115 | O141: 1691308209 | Q141: 3832909793 | S141: 6062414251 | U141: 8392924832 | V141: 2179978590 | X141: 0 | Z141: 0 | AB141: 0
B142: 無形固定資産取得 | F142: 318685423 | G142: 318685423 | H142: 144072131 | J142: 279105782 | L142: 463443412 | N142: 555207814 | O142: 172169876 | Q142: 305031518 | S142: 471285065 | U142: 612035081 | V142: 153795386 | X142: 0 | Z142: 0 | AB142: 0
A143: 研究開発費 Research and development costs（百万円 Million yen)
B145: 研究開発費 | G145: 2469539399 | N145: 2660631540 | U145: 2745947698 | AB145: 2745947698
A147: 配当状況 Dividends
B149: 1株当たり年間配当金 Annual dividend per share (円 Yen) | G149: 42 | N149: 48 | U149: 50 | AB149: 50
B150: 配当性向 Dividend payout ratio (%) | G150: 32.4 | N150: 33 | U150: 38.1 | AB150: 38.1
B151: 配当金総額 Total dividend amount (百万円 Million yen) | F151: 5620480656 | G151: 5622748656 | H151: 5622748656 | J151: 5622748656 | L151: 5622748656 | N151: 6428206464 | U151: 6696444450 | AB151: 6696444450

Sheet 円 (hidden)
A4: 財務指標 | L4: FY2014 | M4: 2015年3月期 FY2015 | T4: 2016年3月期 FY2016 | AA4: 2017年3月期 FY2017 | AH4: 2018年3月期 FY2018 | AO4: 2019年3月期 FY2019 | AV4: 2020年3月期 FY2019 | BC4: 20**年3月期
S5: FY2015 | Z5: FY2016 | AG5: FY2017 | AH5: Q1 | AI5: Q2 | AJ5: 上期 | AK5: Q3 | AL5: 9ヶ月 | AM5: Q4 | AN5: FY2018 | AO5: Q1 | AP5: Q2 | AQ5: 上期 | AR5: Q3 | AS5: 9ヶ月 | AT5: Q4 | AU5: FY2019 | AV5: Q1 | AW5: Q2 | AX5: 上期 | AY5: Q3 | AZ5: 9ヶ月 | BA5: Q4 | BB5: FY2020 | BC5: 計画
B6: 自己資本利益率 ROE (%) | S6: 13.7 | Z6: 14.6 | AA6: 3.221956157 | AG6: 14.9 | AH6: 1.831097435 | AL6: 9.626359558 | AN6: 12.95781691 | AO6: 3.044295055 | AP6: 6.676763261 | AS6: 10.08163556 | AU6: 13.2
B7: 1株あたり当期純利益 EPS (円 yen) | S7: 105.82 | Z7: 125.88 | AA7: 28.69 | AG7: 139.24 | AH7: 17.12 | AL7: 97.8 | AN7: 129.72 | AO7: 31.54 | AP7: 72.06 | AS7: 112.4 | AU7: 145.39 | AV7: 31.76 | AW7: 65.99
B8: 1株当たり純資産額 | S8: 821.97 | Z8: 905.2 | AG8: 958.6 | AN8: 1043.37 | AO8: 0 | AP8: 0 | AS8: 0 | AU8: 1151.71
B9: 営業活動によるCF | S9: 22266440600 | Z9: 22541679868 | AA9: 6840094363 | AG9: 25958438445 | AH9: 281757072 | AL9: -6766416403 | AN9: 9358968238 | AO9: 5730343440 | AP9: 12283757461 | AS9: 11380668418 | AU9: 27620969848
B10: 投資活動によるCF | S10: -9422099792 | Z10: -14270272595 | AA10: -2137267392 | AG10: -13404126108 | AH10: -108312921 | AL10: -10505692195 | AN10: -6258088694 | AO10: -3992357429 | AP10: -14600111851 | AS10: -19170063947 | AU10: -28347343393
B11: 財務活動によるCF | S11: -2878118521 | Z11: -2859478218 | AA11: -4446515659 | AG11: -14711942372 | AH11: -5424434843 | AL11: -1726103111 | AN11: -5450518221 | AO11: -5389823189 | AP11: -1421811982 | AS11: -3393656906 | AU11: -6227483517
B12: 現金及び現金同等物残高 | S12: 4.257236191e+10 | Z12: 47323583228 | AA12: 44627296366 | AB12: 44627296366 | AC12: 44627296366 | AD12: 44627296366 | AE12: 44627296366 | AF12: 44627296366 | AG12: 44627296366 | AH12: 39427138953 | AI12: 42195201303 | AJ12: 42195201303 | AK12: 42195201303 | AL12: 25900469306 | AM12: 42195201303 | AN12: 42195201303 | AO12: 38581259049 | AP12: 38723215248 | AS12: 31157610051 | AU12: 35425891287
B13: 総資産 | S13: 161968549919 | Z13: 174878549357 | AA13: 181945803864 | AB13: 181945803864 | AC13: 181945803864 | AD13: 181945803864 | AE13: 181945803864 | AF13: 181945803864 | AG13: 181945803864 | AH13: 192034489170 | AI13: 192034489170 | AJ13: 192034489170 | AK13: 192034489170 | AL13: 187584701136 | AM13: 192034489170 | AN13: 192034489170 | AO13: 184994336019 | AP13: 196890619877 | AS13: 197360646748 | AU13: 202750168779
B14: 純資産 | S14: 118800452580 | Z14: 131469689286 | AA14: 135056717053 | AB14: 135056717053 | AC14: 135056717053 | AD14: 135056717053 | AE14: 135056717053 | AF14: 135056717053 | AG14: 135056717053 | AH14: 146667727737 | AI14: 146667727737 | AJ14: 146667727737 | AK14: 146667727737 | AL14: 143300642464 | AM14: 146667727737 | AN14: 146667727737 | AO14: 145411475603 | AP14: 150987272976 | AS14: 155569294711 | AU14: 160490065970
B15: 自己資本比率 | S15: 67.7 | Z15: 69.1 | AA15: 70.4 | AB15: 70.4 | AC15: 70.4 | AD15: 70.4 | AE15: 70.4 | AF15: 70.4 | AG15: 70.4 | AH15: 72.6 | AI15: 72.6 | AJ15: 72.6 | AK15: 72.6 | AL15: 72.36460236 | AM15: 72.6 | AN15: 72.6 | AO15: 74.82315337 | AP15: 73.24586155 | AS15: 75.48639374 | AU15: 75.92154021
A17: 損益計算書 P/L (百万円 Million yen) | F17: FY2014 | M17: 2015年3月期 FY2015 | T17: 2016年3月期 FY2016 | AA17: 2017年3月期 FY2017 | AH17: 2018年3月期 FY2018 | AO17: 2019年3月期 FY2019 | AV17: 2020年3月期 FY2020 | BC17: 2019年3月期
M18: Q1 | N18: Q2 | O18: 上期 | P18: Q3 | Q18: 9ヶ月 | R18: Q4 | S18: FY2015 | T18: Q1 | U18: Q2 | V18: 上期 | W18: Q3 | X18: 9ヶ月 | Y18: Q4 | Z18: FY2016 | AA18: Q1 | AB18: Q2 | AC18: 上期 | AD18: Q3 | AE18: 9ヶ月 | AF18: Q4 | AG18: FY2017 | AH18: Q1 | AI18: Q2 | AJ18: 上期 | AK18: Q3 | AL18: 9ヶ月 | AM18: Q4 | AN18: 通期 | AO18: Q1 | AP18: Q2 | AQ18: 上期 | AR18: Q3 | AS18: 9ヶ月 | AT18: Q4 | AU18: 通期 | AV18: Q1 | AW18: Q2 | AX18: 上期 | AY18: Q3 | AZ18: 9ヶ月 | BA18: Q4 | BB18: 通期 | BC18: 計画
B19: 売上高 Net sales | M19: 52269128304 | N19: 54000913240 | O19: =M19+N19 -> 106270041544 | P19: 58369776806 | Q19: =O19+P19 -> 164639818350 | R19: 57510464031 | S19: 222150282381 | T19: 59831572066 | U19: 61111289166 | V19: =T19+U19 -> 120942861232 | W19: 64224115559 | X19: =V19+W19 -> 185166976791 | Y19: =Z19-X19 -> 60962162562 | Z19: 246129139353 | AA19: 61756959347 | AB19: 61897457020 | AC19: =AA19+AB19 -> 123654416367 | AD19: 65290512936 | AE19: =AC19+AD19 -> 188944929303 | AF19: =AG19-AE19 -> 63475661910 | AG19: 252420591213 | AH19: 56519952177 | AI19: 62302203230 | AJ19: =AH19+AI19 -> 118822155407 | AK19: 67869258266 | AL19: =AJ19+AK19 -> 186691413673 | AM19: =AN19-AL19 -> 64884129461 | AN19: 251575543134 | AO19: 61231784366 | AP19: 59835235808 | AQ19: =AO19+AP19 -> 121067020174 | AR19: =AS19-AQ19 -> 65955177686 | AS19: 187022197860 | AT19: =AU19-AS19 -> 61633085245 | AU19: 248655283105 | AV19: 61912847708 | AW19: =AX19-AV19 -> 63333480281 | AX19: 125246327989 | AY19: =AZ19-AX19 -> 66858128183 | AZ19: 192104456172 | BA19: =BB19-AZ19 -> -192104456172 | BB19: =StravisData取り込み!AB19 -> 0
B20: 売上原価 | M20: 29174707426 | N20: 30324731749 | O20: =M20+N20 -> 59499439175 | P20: 32187445969 | Q20: 91686885144 | R20: 32901982967 | S20: 124588868111 | T20: 34725038490 | U20: 34630539332 | V20: =T20+U20 -> 69355577822 | W20: 35549712807 | X20: 104905290629 | Y20: =Z20-X20 -> 34190328823 | Z20: 139095619452 | AA20: 34646985477 | AB20: 34429607822 | AC20: =AA20+AB20 -> 69076593299 | AD20: 36044916542 | AE20: 105121509841 | AF20: =AG20-AE20 -> 35725650948 | AG20: 140847160789 | AH20: 33390769032 | AI20: 35907702721 | AJ20: =AH20+AI20 -> 69298471753 | AK20: 37316002219 | AL20: =AJ20+AK20 -> 106614473972 | AM20: =AN20-AL20 -> 36056701449 | AN20: 142671175421 | AO20: 34524162494 | AP20: 33209628196 | AQ20: =AO20+AP20 -> 67733790690 | AR20: =AS20-AQ20 -> 35716171526 | AS20: 103449962216 | AT20: =AU20-AS20 -> 34084323865 | AU20: 137534286081 | AV20: 34291757747 | AW20: =AX20-AV20 -> 34949260153 | AX20: 69241017900 | AY20: =AZ20-AX20 -> 36179629303 | AZ20: 105420647203 | BA20: =BB20-AZ20 -> -105420647203 | BB20: =StravisData取り込み!AB20 -> 0
B21: 売上総利益率 Gross profit | M21: 23094420878 | N21: 23676181491 | O21: 46770602369 | P21: 26182330837 | Q21: 72952933206 | R21: 24608481064 | S21: 97561414270 | T21: 25106533576 | U21: 26480749834 | V21: 51587283410 | W21: 28674402752 | X21: 80261686162 | Y21: 26771833739 | Z21: 107033519901 | AA21: 27109973870 | AB21: 27467849198 | AC21: 54577823068 | AD21: 29245596394 | AE21: =AC21+AD21 -> 83823419462 | AF21: 27750010962 | AG21: 111573430424 | AH21: 23129183145 | AI21: 26394500509 | AJ21: 49523683654 | AK21: 30553256047 | AL21: =AJ21+AK21 -> 80076939701 | AM21: 28827428012 | AN21: 108904367713 | AO21: 26707621872 | AP21: 26625607612 | AQ21: 53333229484 | AR21: 30239006160 | AS21: 83572235644 | AT21: 27548761380 | AU21: 111120997024 | AV21: 27621089961 | AW21: 28384220128 | AX21: 56005310089 | AY21: 30678498880 | AZ21: 86683808969 | BA21: -86683808969 | BB21: =StravisData取り込み!AB21 -> 0
B22: 販売管理費 SG&A | M22: 17226681549 | N22: 18076787600 | O22: 35303469149 | P22: 18338182527 | Q22: 53641651676 | R22: 19736526864 | S22: 73378178540 | T22: 19008288399 | U22: 19770655954 | V22: 38778944353 | W22: 19572836033 | X22: 58351780386 | Y22: 20556247497 | Z22: 78908027883 | AA22: 19979419747 | AB22: 20844614579 | AC22: 40824034326 | AD22: 20754665300 | AE22: 61578699626 | AF22: 21153585271 | AG22: 82732284897 | AH22: 19715781446 | AI22: 19469768615 | AJ22: 39185550061 | AK22: 21701118225 | AL22: =AJ22+AK22 -> 60886668286 | AM22: 21188861650 | AN22: 82075529936 | AO22: 20933332905 | AP22: 20658935279 | AQ22: 41592268184 | AR22: 21538484772 | AS22: 63130752956 | AT22: 21025979974 | AU22: 84156732930 | AV22: 21172227858 | AW22: 21574622933 | AX22: 42746850791 | AY22: 22057639992 | AZ22: 64804490783 | BA22: =BB22-AZ22 -> -64804490783 | BB22: =StravisData取り込み!AB22 -> 0
C23: 販売費 Selling | M23: 7361425396 | N23: 7953513969 | O23: 15314939365 | P23: 7857653218 | Q23: 23172592583 | R23: 9094038961 | S23: 32266631544 | T23: 8228736407 | U23: 8679185534 | V23: 16907921941 | W23: 8372667350 | X23: 25280589291 | Y23: 9372338025 | Z23: 34652927316 | AA23: 8848071656 | AB23: 9364721499 | AC23: 18212793155 | AD23: 9660758527 | AE23: 27873551682 | AF23: 10484199733 | AG23: 38357751415 | AH23: 8380770311 | AI23: 8424658313 | AJ23: 16805428624 | AK23: 9904476152 | AL23: =AJ23+AK23 -> 26709904776 | AM23: 10211457050 | AN23: 36921361826 | AO23: 9388826864 | AP23: 9554853731 | AQ23: 18943680595 | AR23: 10047029539 | AS23: 28990710134 | AT23: 10060917261 | AU23: 39051627395 | AV23: 9746212555 | AW23: 10242470075 | AX23: 19988682630 | AY23: 9988180653 | AZ23: 29976863283 | BA23: -29976863283 | BB23: =StravisData取り込み!AB23 -> 0
C24: 物流費 Distribution | M24: 3365599303 | N24: 3469741086 | O24: 6835340389 | P24: 3868303952 | Q24: 10703644341 | R24: 3722162857 | S24: 14425807198 | T24: 3934110875 | U24: 3913820216 | V24: 7847931091 | W24: 4269910228 | X24: 12117841319 | Y24: 4091742378 | Z24: 16209583697 | AA24: 4077733100 | AB24: 4248851125 | AC24: 8326584225 | AD24: 4340216588 | AE24: 12666800813 | AF24: 4207418693 | AG24: 16874219506 | AH24: 4168903581 | AI24: 4115404987 | AJ24: 8284308568 | AK24: 4564903395 | AL24: 12849211963 | AM24: 4495875240 | AN24: 17345087203 | AO24: 4124081078 | AP24: 4079893314 | AQ24: 8203974392 | AR24: 4658681781 | AS24: 12862656173 | AT24: 4365879926 | AU24: 17228536099 | AV24: 4534306880 | AW24: =AX24-AV24 -> 4452443853 | AX24: 8986750733 | AY24: 4785494672 | AZ24: 13772245405 | BA24: -13772245405 | BB24: =StravisData取り込み!AB24 -> 0
C25: 人件費 Labor | M25: 4192770917 | N25: 4487603017 | O25: 8680373934 | P25: 4531371874 | Q25: 13211745808 | R25: 4660805661 | S25: 17872551469 | T25: 4393560045 | U25: 4609075952 | V25: 9002635997 | W25: 4566147824 | X25: 13568783821 | Y25: 4183368484 | Z25: 17752152305 | AA25: 4391749428 | AB25: 4762648066 | AC25: 9154397494 | AD25: 4353716008 | AE25: 13508113502 | AF25: 4064875225 | AG25: 17572988727 | AH25: 4497671202 | AI25: 4390375157 | AJ25: 8888046359 | AK25: 4803691277 | AL25: 13691737636 | AM25: 3995091404 | AN25: 17686829040 | AO25: 4691935449 | AP25: 4435813011 | AQ25: 9127748460 | AR25: 4309483289 | AS25: 13437231749 | AT25: 4195159309 | AU25: 17632391058 | AV25: 4344675808 | AW25: 4547218532 | AX25: 8891894340 | AY25: 4625559647 | AZ25: 13517453987 | BA25: -13517453987 | BB25: =StravisData取り込み!AB25 -> 0
C26: その他 Others | M26: 2306885933 | N26: 2165929528 | O26: 4472815461 | P26: 2080853483 | Q26: 6553668944 | R26: 2259519385 | S26: 8813188329 | T26: 2451881072 | U26: 2568574252 | V26: 5020455324 | W26: 2364110631 | X26: 7384565955 | Y26: 2908798610 | Z26: 10293364565 | AA26: 2661865563 | AB26: 2468393889 | AC26: 5130259452 | AD26: 2399974177 | AE26: 7530233629 | AF26: 2397091620 | AG26: 9927325249 | AH26: 2668436352 | AI26: 2539330158 | AJ26: 5207766510 | AK26: 2428047401 | AL26: 7635813911 | AM26: 2486437956 | AN26: 10122251867 | AO26: 2728489514 | AP26: 2588375223 | AQ26: 5316864737 | AR26: 2523290163 | AS26: 7840154900 | AT26: 2404023478 | AU26: 10244178378 | AV26: 2547032615 | AW26: 2332490473 | AX26: 4879523088 | AY26: 2658405020 | AZ26: 7537928108 | BA26: -7537928108 | BB26: =StravisData取り込み!AB26 -> 0
B27: 営業利益 Operating income | M27: 5867739329 | N27: 5599393891 | O27: 11467133220 | P27: 7844148310 | Q27: 19311281530 | R27: 4871954200 | S27: 24183235730 | T27: 6098245177 | U27: 6710093880 | V27: 12808339057 | W27: 9101566719 | X27: 21909905776 | Y27: 6215586242 | Z27: 28125492018 | AA27: 7130554123 | AB27: 6623234619 | AC27: 13753788742 | AD27: 8490931094 | AE27: 22244719836 | AF27: 6596425691 | AG27: 28841145527 | AH27: 3413401699 | AI27: 6924731894 | AJ27: 10338133593 | AK27: 8852137822 | AL27: 19190271415 | AM27: 7638566362 | AN27: 26828837777 | AO27: 5774288967 | AP27: 5966672333 | AQ27: 11740961300 | AR27: 8700521388 | AS27: 20441482688 | AT27: 6522781406 | AU27: 26964264094 | AV27: 6448862103 | AW27: 6809597195 | AX27: 13258459298 | AY27: 8620858888 | AZ27: 21879318186 | BA27: -21879318186 | BB27: =StravisData取り込み!AB27 -> 0
B28: 経常利益 Ordinary income | M28: 5891717120 | N28: 6326781394 | O28: 12218498514 | P28: 8718039029 | Q28: 20936537543 | R28: 4679182957 | S28: 25615720500 | T28: 6061436718 | U28: 6271773506 | V28: 12333210224 | W28: 8896967509 | X28: 21230177733 | Y28: 5315409508 | Z28: 26545587241 | AA28: 6339457537 | AB28: 6438354932 | AC28: 12777812469 | AD28: 9551044403 | AE28: 22328856872 | AF28: 6297058441 | AG28: 28625915313 | AH28: 3501844356 | AI28: 7055374795 | AJ28: 10557219151 | AK28: 8869641440 | AL28: 19426860591 | AM28: 6752740216 | AN28: 26179600807 | AO28: 6232176196 | AP28: 6327963689 | AQ28: 12560139885 | AR28: 8280116984 | AS28: 20840256869 | AT28: 6591821301 | AU28: 27432078170 | AV28: 6069012507 | AW28: 6750545420 | AX28: 12819557927 | AY28: 8943057323 | AZ28: 21762615250 | BA28: -21762615250 | BB28: =StravisData取り込み!AB28 -> 0
B29: 特別損益 Extraordinary income/loss | M29: -34531785 | N29: -63689115 | O29: -98220900 | P29: -964531567 | Q29: -1062752467 | R29: -335119350 | S29: -1397871817 | T29: -40649348 | U29: -69804968 | V29: -110454316 | W29: 313303883 | X29: 202849567 | Y29: -625398784 | Z29: -422549217 | AA29: -116378566 | AB29: -81117429 | AC29: -197495995 | AD29: -116306904 | AE29: -313802899 | AF29: -611656354 | AG29: -925459253 | AH29: -38067508 | AI29: -37988392 | AJ29: -76055900 | AK29: -49753091 | AL29: -125808991 | AM29: 45347809 | AN29: -80461182 | AO29: 114677063 | AP29: 1506538087 | AQ29: 1621215150 | AR29: -269506562 | AS29: 1351708588 | AT29: -313924034 | AU29: 1037784554 | AV29: -17860707 | AW29: -43930962 | AX29: -61791669 | AY29: -84391257 | AZ29: -146182926 | BA29: 146182926 | BB29: =StravisData取り込み!AB29 -> 0
B30: 非支配株主利益 Non-controlling interests profit | M30: 296814936 | N30: 299811337 | O30: 596626273 | P30: -61997314 | Q30: 534628959 | R30: 256681560 | S30: 791310519 | T30: 485641999 | U30: 323887239 | V30: 809529238 | W30: 365882247 | X30: 1175411485 | Y30: 57291143 | Z30: 1232702628 | AA30: 363754581 | AB30: 121389127 | AC30: 485143708 | AD30: -76131669 | AE30: 409012039 | AF30: -67970237 | AG30: 341041802 | AH30: -40658578 | AI30: 28923424 | AJ30: -11735154 | AK30: -74460998 | AL30: -86196152 | AM30: -172130516 | AN30: -258326668 | AO30: 48376408 | AP30: -1296080 | AQ30: 47080328 | AR30: -61971641 | AS30: -14891313 | AT30: -38801450 | AU30: -53692763 | AV30: 38964865 | AW30: 31997581 | AX30: 70962446 | AY30: 35807681 | AZ30: 106770127 | BA30: -106770127 | BB30: =StravisData取り込み!AB30 -> 0
B31: 当期純利益* Net profit* | M31: 3378355052 | N31: 3686392946 | O31: 7064747998 | P31: 4723575272 | Q31: 11788323270 | R31: 2326566284 | S31: 14114889554 | T31: 3482994720 | U31: 4171744360 | V31: 7654739080 | W31: 5737690190 | X31: 13392429270 | Y31: 3406603977 | Z31: 16799033247 | AA31: 3832650477 | AB31: 4151675648 | AC31: 7984326125 | AD31: 6423159173 | AE31: 14407485298 | AF31: 4197568478 | AG31: 18605053776 | AH31: 2287680218 | AI31: 4757858792 | AJ31: 7045539010 | AK31: 6021755367 | AL31: 13067294377 | AM31: 4263606120 | AN31: 17330900497 | AO31: 4213870466 | AP31: 5414972315 | AQ31: 9628842781 | AR31: 5390821716 | AS31: 15019664497 | AT31: 4409913237 | AU31: 19429577734 | AV31: 4245211826 | AW31: 4574943737 | AX31: 8820155563 | AY31: 5860794055 | AZ31: 14680949618 | BA31: -14680949618 | BB31: =StravisData取り込み!AB31 -> 0
B32: *当期純利益は、親会社株主に帰属する当期純利益になります *Profit attributable to owners of parent | AP32: 0 | AW32: 0
A34: 製品別売上高 Sales by product （百万円 Million yen) | F34: FY2014 | M34: 2015年3月期 FY2015 | T34: 2016年3月期 FY2016 | AA34: 2017年3月期 FY2017 | AH34: 2018年3月期 FY2018 | AO34: 2019年3月期 FY2019 | AV34: 2020年3月期 FY2020 | BC34: 2019年3月期
F35: Q1 | G35: Q2 | H35: 上期 | I35: Q3 | J35: 9ヶ月 | K35: Q4 | L35: FY2014 | M35: Q1 | N35: Q2 | O35: 上期 | P35: Q3 | Q35: 9ヶ月 | R35: Q4 | S35: FY2015 | T35: Q1 | U35: Q2 | V35: 上期 | W35: Q3 | X35: 9ヶ月 | Y35: Q4 | Z35: FY2016 | AA35: Q1 | AB35: Q2 | AC35: 上期 | AD35: Q3 | AE35: 9ヶ月 | AF35: Q4 | AG35: FY2017 | AH35: Q1 | AI35: Q2 | AJ35: 上期 | AK35: Q3 | AL35: 9ヶ月 | AM35: Q4 | AO35: Q1 | AP35: Q2 | AQ35: 上期 | AR35: Q3 | AS35: 9ヶ月 | AT35: Q4 | AV35: Q1 | AW35: Q2 | AX35: 上期 | AY35: Q3 | AZ35: 9ヶ月 | BA35: Q4 | BC35: 計画
B36: 国内スナック Domestic snack foods | F36: 36633301776 | G36: 36975430200 | I36: 41702483572 | K36: 39055985410 | L36: 157353352437 | M36: =M47+M51+M54+M55 -> 38760429373 | N36: =N47+N51+N54+N55 -> 40356707030 | O36: =M36+N36 -> 79117136403 | P36: =P47+P51+P54+P55 -> 43761201459 | Q36: =O36+P36 -> 122878337862 | R36: =R47+R51+R54+R55 -> 42023771186 | S36: =S47+S51+S54+S55 -> 164902109048 | T36: =T47+T51+T54+T55 -> 4.133596168e+10 | U36: =U47+U51+U54+U55 -> 42935733858 | V36: =T36+U36 -> 84271695536 | W36: =W47+W51+W54+W55 -> 45617132159 | X36: =V36+W36 -> 129888827695 | Y36: =Y47+Y51+Y54+Y55 -> 43324585356 | Z36: =Z47+Z51+Z54+Z55 -> 173213413051 | AA36: 40817511790 | AB36: 42320362995 | AC36: =AA36+AB36 -> 83137874785 | AD36: 46732735003 | AE36: =AC36+AD36 -> 129870609788 | AF36: 44434734953 | AG36: 174305344741 | AH36: 37898659865 | AI36: 43143731534 | AJ36: =SUM(AH36:AI36) -> 81042391399 | AK36: 48332498883 | AL36: =AJ36+AK36 -> 129374890282 | AM36: =AN36-AL36 -> 46200305407 | AN36: 175575195689 | AO36: 44608786101 | AP36: 43583334024 | AQ36: =AO36+AP36 -> 88192120125 | AR36: =AS36-AQ36 -> 47565345796 | AS36: 135757465921 | AT36: =AU36-AS36 -> 44742244749 | AU36: 180499710670 | AV36: 44634086220 | AW36: =AX36-AV36 -> 44595067971 | AX36: 89229154191 | AY36: =AZ36-AX36 -> 48369464468 | AZ36: 137598618659 | BA36: =BB36-AZ36 -> -137598618659
B37: 国内シリアル Domestic cereals | F37: 2904517511 | G37: 2729841397 | I37: 2624015964 | K37: 3333872623 | L37: 11592247495 | M37: 4217783560 | N37: 4055978165 | O37: =M37+N37 -> 8273761725 | P37: 3872027066 | Q37: 12145788791 | R37: 4200965148 | S37: 16346753939 | T37: 5647502215 | U37: 6284831016 | V37: =T37+U37 -> 11932333231 | W37: 6336834089 | X37: 18269167320 | Y37: 5871186620 | Z37: 24140353940 | AA37: 8676171426 | AB37: 8623155909 | AC37: =AA37+AB37 -> 17299327335 | AD37: 6623468757 | AE37: =AC37+AD37 -> 23922796092 | AF37: 6513507704 | AG37: 30436303796 | AH37: 6400517811 | AI37: 6415685925 | AJ37: =SUM(AH37:AI37) -> 12816203736 | AK37: 5593663614 | AL37: =AJ37+AK37 -> 18409867350 | AM37: =AN37-AL37 -> 5427127904 | AN37: 23836995254 | AO37: 6138150214 | AP37: 6270314023 | AQ37: =AO37+AP37 -> 12408464237 | AR37: =AS37-AQ37 -> 5914523086 | AS37: 18322987323 | AT37: =AU37-AS37 -> 5494069033 | AU37: 23817056356 | AV37: 6209365527 | AW37: =AX37-AV37 -> 6390106713 | AX37: 12599472240 | AY37: =AZ37-AX37 -> 6015524331 | AZ37: 18614996571 | BA37: =BB37-AZ37 -> -18614996571
B38: 国内その他食品*1 Domestic other foods*1 | F38: 3577331312 | G38: 3800158269 | I38: 4138582090 | K38: 3651421840 | L38: 15167493511 | M38: 3754072115 | N38: 3618342008 | O38: 7372414123 | P38: 3963460268 | Q38: 11335874391 | R38: 3873755404 | S38: 15209629795 | T38: 4072390107 | U38: 4056645038 | V38: 8129035145 | W38: 4189603950 | X38: 12318639095 | Y38: 3885107428 | Z38: 16203746523 | AA38: 4101517584 | AB38: 3707570829 | AC38: 7809088413 | AD38: 3777811102 | AE38: 11586899515 | AF38: 3565105346 | AG38: 15152004861 | AH38: 3691392879 | AI38: =3127093355+288481099 -> 3415574454 | AJ38: 7106967333 | AK38: =3313603199+305439198 -> 3619042397 | AL38: 10726009730 | AM38: 3637552293 | AN38: 14363562023 | AO38: 250583950 | AP38: 295639469 | AQ38: 546223419 | AR38: 452733580 | AS38: 998956999 | AT38: 286836764 | AU38: 1285793763 | AV38: 285761263 | AW38: 327677486 | AX38: 613438749 | AY38: 443278142 | AZ38: 1056716891 | BA38: -1056716891
B39: 国内食品計 Domestic foods business | F39: 43115150599 | G39: 43505429866 | I39: 48465081626 | K39: 46041279873 | L39: 181126941964 | M39: 46732285048 | N39: 48031027203 | O39: 94763312251 | P39: 51596688793 | Q39: 146360001044 | R39: 50098491738 | S39: 196458492782 | T39: 5.1055854e+10 | U39: 53277209912 | V39: 104333063912 | W39: 56143570198 | X39: 160476634110 | Y39: 53080879404 | Z39: 213557513514 | AA39: 53595200800 | AB39: 54651089733 | AC39: 108246290533 | AD39: 57134014862 | AE39: 165380305395 | AF39: 54513348003 | AG39: 219893653398 | AH39: 47990570555 | AI39: =AI36+AI37+AI38 -> 52974991913 | AJ39: 100965562468 | AK39: =SUM(AK36:AK38) -> 57545204894 | AL39: 158510767362 | AM39: 55264985604 | AN39: =AN36+AN37+AN38 -> 213775752966 | AO39: 50997520265 | AP39: 50149287516 | AQ39: 101146807781 | AR39: 53932602462 | AS39: 155079410243 | AT39: 50523150546 | AU39: 205602560789 | AV39: =SUM(AV36:AV38) -> 51129213010 | AW39: 51312852170 | AX39: 102442065180 | AY39: 54828266941 | AZ39: 157270332121 | BA39: -157270332121 | BC39: =SUM(BC36:BC38) -> 0
B40: 海外スナック Overseas snack foods | F40: 3644801047 | G40: 3858648876 | I40: 4098394422 | K40: 4190772825 | L40: 15792617170 | M40: 4619584252 | N40: 5250987694 | O40: 9870571946 | P40: 6025395967 | Q40: 15895967913 | R40: 6545127123 | S40: 22441095036 | T40: 7866089963 | U40: 7005833375 | V40: 14871923338 | W40: 7361010642 | X40: 22232933980 | Y40: 7088829126 | Z40: 29321763106 | AA40: 7303050004 | AB40: 6547157146 | AC40: 13850207150 | AD40: 7049684156 | AE40: 20899891306 | AF40: 8078908457 | AG40: 28978799763 | AH40: 7595961298 | AI40: 7959500554 | AJ40: 15555461852 | AK40: 7986536750 | AL40: 23541998602 | AM40: 7724990019 | AN40: 31266988621 | AO40: 8272724645 | AP40: 8026627322 | AQ40: 16299351967 | AR40: 9435035751 | AS40: 25734387718 | AT40: 9444247823 | AU40: 35178635541 | AV40: 8950232330 | AW40: 9908670178 | AX40: 18858902508 | AY40: 9450942339 | AZ40: 28309844847 | BA40: -28309844847
B41: 海外シリアル Overseas cereals | AI41: 524671055 | AJ41: 524671055 | AK41: 1131800422 | AL41: 1656471477 | AM41: 878003752 | AN41: 2534475229 | AO41: 1020089711 | AP41: 1160977274 | AQ41: 2181066985 | AR41: 1815972817 | AS41: 3997039802 | AT41: 1286312951 | AU41: 5283352753 | AV41: 1481872270 | AW41: 1783713782 | AX41: 3265586052 | AY41: 1816837974 | AZ41: 5082424026 | BA41: -5082424026
B42: 海外食品計 Overseas foods business | F42: 3644801047 | G42: 3858648876 | I42: 4098394422 | K42: 4190772825 | L42: 15792617170 | M42: 4619584252 | N42: 5250987694 | O42: 9870571946 | P42: 6025395967 | Q42: 15895967913 | R42: 6545127123 | S42: 22441095036 | T42: 7866089963 | U42: 7005833375 | V42: 14871923338 | W42: 7361010642 | X42: 22232933980 | Y42: 7088829126 | Z42: 29321763106 | AA42: 7303050004 | AB42: 6547157146 | AC42: 13850207150 | AD42: 7049684156 | AE42: 20899891306 | AF42: 8078908457 | AG42: 28978799763 | AH42: 7595961298 | AI42: 8484171609 | AJ42: 16080132907 | AK42: =SUM(AK40:AK41) -> 9118337172 | AL42: 25198470079 | AM42: 8602993771 | AN42: =AN40+AN41 -> 33801463850 | AO42: 9292814356 | AP42: 9187604596 | AQ42: 18480418952 | AR42: 11251008568 | AS42: 29731427520 | AT42: 10730560774 | AU42: 40461988294 | AV42: =SUM(AV40:AV41) -> 10432104600 | AW42: 11692383960 | AX42: 22124488560 | AY42: 11267780313 | AZ42: 33392268873 | BA42: -33392268873 | BC42: =BC40+BC41 -> 0
B43: 食品製造販売事業計 Snacks and other foods business | F43: 46759951646 | G43: 47364078742 | I43: 52563476048 | K43: 50232052698 | L43: 196919559134 | M43: 51351869300 | N43: 53282014897 | O43: 104633884197 | P43: 57622084760 | Q43: 162255968957 | R43: 56643618861 | S43: 218899587818 | T43: 5.892194396e+10 | U43: 60283043287 | V43: 119204987250 | W43: 63504580840 | X43: 182709568090 | Y43: 60169708530 | Z43: 242879276620 | AA43: 60898250804 | AB43: 61198246879 | AC43: 122096497683 | AD43: 64183699018 | AE43: 186280196701 | AF43: 62592256460 | AG43: 248872453161 | AH43: 55586531853 | AI43: =AI39+AI42 -> 61459163522 | AJ43: 117045695375 | AK43: =AK39+AK42 -> 66663542066 | AL43: 183709237441 | AM43: 63867979375 | AN43: =AN39+AN42 -> 247577216816 | AO43: 60290334621 | AP43: 59336892112 | AQ43: 119627226733 | AR43: 65183611030 | AS43: 184810837763 | AT43: 61253711320 | AU43: 246064549083 | AV43: =SUM(AV39,AV42) -> 61561317610 | AW43: 63005236130 | AX43: 124566553740 | AY43: 66096047254 | AZ43: 190662600994 | BA43: -190662600994 | BC43: =BC39+BC42 -> 0
B44: その他事業 Other businesses | F44: 791509330 | G44: 753166458 | I44: 692811775 | K44: 783967830 | L44: 3021455393 | M44: 917259004 | N44: 718898343 | O44: 1636157347 | P44: 747692046 | Q44: 2383849393 | R44: 866845170 | S44: 3250694563 | T44: 909628103 | U44: 828245879 | V44: 1737873982 | W44: 719534719 | X44: 2457408701 | Y44: 792454032 | Z44: 3249862733 | AA44: 858708543 | AB44: 699210141 | AC44: 1557918684 | AD44: 1106813918 | AE44: 2664732602 | AF44: 883405450 | AG44: 3548138052 | AH44: 933420324 | AI44: 843039708 | AJ44: 1776460032 | AK44: 1205716200 | AL44: 2982176232 | AM44: 1016150086 | AN44: 3998326318 | AO44: 941449745 | AP44: 498343696 | AQ44: 1439793441 | AR44: 771566656 | AS44: 2211360097 | AT44: 379373925 | AU44: 2590734022 | AV44: 351530098 | AW44: 328244151 | AX44: 679774249 | AY44: 762080929 | AZ44: 1441855178 | BA44: -1441855178
B45: 売上高合計 Total sales | F45: 47551460976 | G45: 48117245200 | I45: 53256287823 | K45: 51016020528 | L45: 199941014527 | M45: 52269128304 | N45: 54000913240 | O45: 106270041544 | P45: 58369776806 | Q45: 164639818350 | R45: 57510464031 | S45: 222150282381 | T45: 5.983157207e+10 | U45: 61111289166 | V45: 120942861232 | W45: 64224115559 | X45: 185166976791 | Y45: 60962162562 | Z45: 246129139353 | AA45: 61756959347 | AB45: 61897457020 | AC45: 123654416367 | AD45: 65290512936 | AE45: 188944929303 | AF45: 63475661910 | AG45: 252420591213 | AH45: 56519952177 | AI45: 62302203230 | AJ45: 118822155407 | AK45: =AK43+AK44 -> 67869258266 | AL45: 186691413673 | AM45: 64884129461 | AN45: 251575543134 | AO45: 61231784366 | AP45: 59835235808 | AQ45: 121067020174 | AR45: =AS45-AQ45 -> 65955177686 | AS45: 187022197860 | AT45: 61633085245 | AU45: 248655283105 | AV45: =SUM(AV43,AV44) -> 61912847708 | AW45: 63333480281 | AX45: 125246327989 | AY45: =AZ45-AX45 -> 66858128183 | AZ45: 192104456172 | BA45: -192104456172 | BC45: =BC43+BC44 -> 0
C46: ＜国内スナック内訳＞ | AM46: 0 | AO46: 0 | AT46: 0 | AV46: 0 | AW46: 0 | BA46: 0
C47: ポテト系スナック Potato-based snacks | F47: 25804572324 | G47: 27010348659 | I47: 30592046466 | K47: 28481503796 | L47: 111888471245 | M47: 27350705982 | N47: 29251608567 | O47: =M47+N47 -> 56602314549 | P47: 31667477913 | Q47: =O47+P47 -> 88269792462 | R47: 31182990627 | S47: 119452783089 | T47: 29874039692 | U47: 31398238753 | V47: =T47+U47 -> 61272278445 | W47: 33674738680 | X47: =V47+W47 -> 94947017125 | Y47: 32200513109 | Z47: 127147530234 | AA47: 29407224171 | AB47: 30736477978 | AC47: =AA47+AB47 -> 60143702149 | AD47: 34477080428 | AE47: =AC47+AD47 -> 94620782577 | AF47: 32203937700 | AG47: 126824720277 | AH47: 24095805683 | AI47: 31938491913 | AJ47: =AI47+AH47 -> 56034297596 | AK47: 35880563996 | AL47: 91914861592 | AM47: 34390892123 | AN47: 126305753715 | AO47: 32627031567 | AP47: 31977075930 | AQ47: =AO47+AP47 -> 64604107497 | AR47: 35186169548 | AS47: 99790277045 | AT47: 33278316818 | AU47: 133068593863 | AV47: =SUM(AV48:AV50) -> 32342911269 | AW47: 32561669554 | AX47: 64904580823 | AY47: =AZ47-AX47 -> 35847657337 | AZ47: 100752238160 | BA47: -100752238160
D48: ポテトチップス Potato Chips | F48: 15004200436 | G48: 15938569341 | I48: 19288653088 | K48: 17987619086 | L48: 68219041951 | M48: 16169401476 | N48: 17224490143 | O48: 33393891619 | P48: 20184132548 | Q48: 53578024167 | R48: 19473904336 | S48: 73051928503 | T48: 18379607792 | U48: 18802544714 | V48: 37182152506 | W48: 21248146393 | X48: 58430298899 | Y48: 20197219615 | Z48: 78627518514 | AA48: 17482031698 | AB48: 18200520186 | AC48: 35682551884 | AD48: 21524899107 | AE48: 57207450991 | AF48: 19375813589 | AG48: 76583264580 | AH48: 11788242065 | AI48: 19657624265 | AJ48: =AI48+AH48 -> 31445866330 | AK48: 23434389175 | AL48: 54880255505 | AM48: 22127017640 | AN48: 77007273145 | AO48: 20635035470 | AP48: 19332480540 | AQ48: 39967516010 | AR48: 23096207315 | AS48: 63063723325 | AT48: 21065642636 | AU48: 84129365961 | AV48: 20122752256 | AW48: 20253128749 | AX48: 40375881005 | AY48: 23290296777 | AZ48: 63666177782 | BA48: -63666177782
D49: じゃがりこ Jagarico | F49: 7668445568 | G49: 8016982161 | I49: 8167778225 | K49: 7863634395 | L49: 31716840349 | M49: 8172520923 | N49: 8806373456 | O49: 16978894379 | P49: 8459253509 | Q49: 25438147888 | R49: 8785657568 | S49: 34223805456 | T49: 8417512675 | U49: 9018789142 | V49: 17436301817 | W49: 8877184482 | X49: 26313486299 | Y49: 8756447402 | Z49: 35069933701 | AA49: 8569482758 | AB49: 9253832113 | AC49: 17823314871 | AD49: 9532451802 | AE49: 27355766673 | AF49: 9329634396 | AG49: 36685401069 | AH49: 8491358888 | AI49: 8729422674 | AJ49: 17220781562 | AK49: 9315468085 | AL49: 26536249647 | AM49: 9159366335 | AN49: 35695615982 | AO49: 9068730138 | AP49: 9686434799 | AQ49: 18755164937 | AR49: 9289636863 | AS49: 28044801800 | AT49: 9357298077 | AU49: 37402099877 | AV49: 9327356719 | AW49: 9277164961 | AX49: 18604521680 | AY49: 9507764495 | AZ49: 28112286175 | BA49: -28112286175
D50: Jabagee/じゃがポックル Jagabee/Jagapokkuru | F50: 3131926320 | G50: 3054797157 | I50: 3135615153 | K50: 2630250315 | L50: 11952588945 | M50: 3008783583 | N50: 3220744968 | O50: 6229528551 | P50: 3024091856 | Q50: 9253620407 | R50: 2923428723 | S50: 12177049130 | T50: 3076919225 | U50: 3576904897 | V50: 6653824122 | W50: 3549407805 | X50: 10203231927 | Y50: 3246846092 | Z50: 13450078019 | AA50: 3355709715 | AB50: 3282125679 | AC50: 6637835394 | AD50: 3419729519 | AE50: 10057564913 | AF50: 3498489715 | AG50: 13556054628 | AH50: 3816204730 | AI50: =2158363323+1393081651 -> 3551444974 | AJ50: 7367649704 | AK50: =1920790436+1209916300 -> 3130706736 | AL50: 10498356440 | AM50: 3104508148 | AN50: 13602864588 | AO50: 2923265959 | AP50: 2958160591 | AQ50: 5881426550 | AR50: 2800325370 | AS50: 8681751920 | AT50: 2855376105 | AU50: 11537128025 | AV50: 2892802294 | AW50: 3031375844 | AX50: 5924178138 | AY50: 3049596065 | AZ50: 8973774203 | BA50: -8973774203
C51: 小麦系スナック Flour-based snacks | F51: 5452203229 | G51: 5086916620 | I51: 5678773559 | K51: 5638631387 | L51: 21856524795 | M51: 5464553016 | N51: 5230887457 | O51: 10695440473 | P51: 5810807722 | Q51: 16506248195 | R51: 5466028180 | S51: 21972276375 | T51: 5421575385 | U51: 5576027312 | V51: 10997602697 | W51: 5580645055 | X51: 16578247752 | Y51: 5429700043 | Z51: 22007947795 | AA51: 5560318311 | AB51: 5372115506 | AC51: 10932433817 | AD51: 5762451868 | AE51: 16694885685 | AF51: 6100187020 | AG51: 22795072705 | AH51: 6102627925 | AI51: 5193347978 | AJ51: 11295975903 | AK51: 5756878795 | AL51: 17052854698 | AM51: 5352265998 | AN51: 22405120696 | AO51: 5103163556 | AP51: 5156285653 | AQ51: 10259449209 | AR51: 5373518806 | AS51: 15632968015 | AT51: 5142071980 | AU51: 20775039995 | AV51: =SUM(AV52:AV53) -> 5334920155 | AW51: 5460400543 | AX51: 10795320698 | AY51: 5515787293 | AZ51: 16311107991 | BA51: -16311107991
D52: かっぱえびせん Kappa Ebisen | F52: 2754567930 | G52: 2236071410 | I52: 2732512563 | K52: 2897540617 | L52: 10620692520 | M52: 2846981957 | N52: 2455616382 | O52: 5302598339 | P52: 2789396433 | Q52: 8091994772 | R52: 2734572928 | S52: 10826567700 | T52: 2630590830 | U52: 2600122911 | V52: 5230713741 | W52: 2832557293 | X52: 8063271034 | Y52: 2785235803 | Z52: 10848506837 | AA52: 2730396550 | AB52: 2564423665 | AC52: 5294820215 | AD52: 2782627899 | AE52: 8077448114 | AF52: 3052679772 | AG52: 11130127886 | AH52: 2934473844 | AI52: 2333031133 | AJ52: 5267504977 | AK52: 2793407772 | AL52: 8060912749 | AM52: 2646947313 | AN52: 10707860062 | AO52: 2365048455 | AP52: 2274440487 | AQ52: 4639488942 | AR52: 2655775721 | AS52: 7295264663 | AT52: 2410338469 | AU52: 9705603132 | AV52: 2363696858 | AW52: 2586398750 | AX52: 4950095608 | AY52: 2627520410 | AZ52: 7577616018 | BA52: -7577616018
D53: サッポロポテト等 Sapporo potato and others | F53: 2697635299 | G53: 2850845210 | I53: 2946260996 | K53: 2741090770 | L53: 11235832275 | M53: 2617571059 | N53: 2775271075 | O53: 5392842134 | P53: 3021411289 | Q53: 8414253423 | R53: 2731455252 | S53: 11145708675 | T53: 2790984555 | U53: 2975904401 | V53: 5766888956 | W53: 2748087762 | X53: 8514976718 | Y53: 2644464240 | Z53: 11159440958 | AA53: 2829921761 | AB53: 2807691841 | AC53: 5637613602 | AD53: 2979823969 | AE53: 8617437571 | AF53: 3047507248 | AG53: 11664944819 | AH53: 3168154081 | AI53: 2860316845 | AJ53: 6028470926 | AK53: 2963471023 | AL53: 8991941949 | AM53: 2705318685 | AN53: 11697260634 | AO53: 2738115101 | AP53: 2881845166 | AQ53: 5619960267 | AR53: 2717743085 | AS53: 8337703352 | AT53: 2731733511 | AU53: 11069436863 | AV53: 2971223297 | AW53: 2874001793 | AX53: 5845225090 | AY53: 2888266883 | AZ53: 8733491973 | BA53: -8733491973
C54: コーン系・豆系スナック Corn- and bean-based snacks | F54: 3870003149 | G54: 3363628436 | I54: 3943835814 | K54: 3442707380 | L54: 14620174779 | M54: 4502627733 | N54: 4358591359 | O54: 8861219092 | P54: 4921136502 | Q54: 13782355594 | R54: 4019540637 | S54: 17801896231 | T54: 4582991939 | U54: 4596369116 | V54: 9179361055 | W54: 5088066588 | X54: 14267427643 | Y54: 4282622511 | Z54: 18550050154 | AA54: 4703654644 | AB54: 4183840267 | AC54: 8887494911 | AD54: 4254630676 | AE54: 13142125587 | AF54: 4018723182 | AG54: 17160848769 | AH54: 5040137962 | AI54: 3711639341 | AJ54: 8751777303 | AK54: 4202670500 | AL54: 12954447803 | AM54: 3831313253 | AN54: 16785761056 | AO54: 4138577356 | AP54: 3769151150 | AQ54: 7907728506 | AR54: 4247986373 | AS54: 12155714879 | AT54: 3727070163 | AU54: 15882785042 | AV54: 4099204390 | AW54: 3729872255 | AX54: 7829076645 | AY54: 4102855216 | AZ54: 11931931861 | BA54: -11931931861
C55: その他スナック*2 Other snacks*2 | F55: 1506523074 | G55: 1514536485 | I55: 1487827733 | K55: 1493142847 | L55: 6002030139 | M55: 1442542642 | N55: 1515619647 | O55: 2958162289 | P55: 1361779322 | Q55: 4319941611 | R55: 1355211742 | S55: 5675153353 | T55: 1457354662 | U55: 1365098677 | V55: 2822453339 | W55: 1273681836 | X55: 4096135175 | Y55: 1411749693 | Z55: 5507884868 | AA55: 1146314664 | AB55: 2027929244 | AC55: 3174243908 | AD55: 2238572031 | AE55: 5412815939 | AF55: 2111887051 | AG55: 7524702990 | AH55: 2660088295 | AI55: 2300252302 | AJ55: 4960340597 | AK55: 2492385592 | AL55: 7452726189 | AM55: 2625834033 | AN55: 10078560222 | AO55: 2740013622 | AP55: 2680821291 | AQ55: 5420834913 | AR55: 2757671069 | AS55: 8178505982 | AT55: 2594785788 | AU55: 10773291770 | AV55: 2857050406 | AW55: 2843125619 | AX55: 5700176025 | AY55: 2903164622 | AZ55: 8603340647 | BA55: -8603340647
B56: *1 「シリアル、ベーカリー等」の「ベーカリー」と「その他」を「国内その他食品」にまとめて表記 *1 "Bread" and "Others" of "Cereals, Bread and Others" have been summarized in "Other domestic foods".
B57: *2 「その他新規スナック等」の名称を「その他スナック」に変更 *2 "Other new snacks" have been restated as "Other snacks".
A59: 海外国別売上高 Sales by country | M59: 2015年3月期 FY2015 | T59: 2016年3月期 FY2016 | AA59: 2017年3月期 FY2017 | AH59: 2018年3月期 FY2018 | AO59: 2019年3月期 FY2019 | AV59: 2020年3月期 FY2020 | BC59: 2019年3月期
M60: Q1 | N60: Q2 | O60: 上期 | P60: Q3 | Q60: 9ヶ月 | R60: Q4 | S60: FY2015 | T60: Q1 | U60: Q2 | V60: 上期 | W60: Q3 | X60: 9ヶ月 | Y60: Q4 | Z60: FY2016 | AA60: Q1 | AB60: Q2 | AC60: 上期 | AD60: Q3 | AE60: 9ヶ月 | AF60: Q4 | AG60: FY2017 | AH60: Q1 | AI60: Q2 | AJ60: 上期 | AK60: Q3 | AL60: 9ヶ月 | AM60: Q4 | AO60: Q1 | AP60: Q2 | AQ60: 上期 | AR60: Q3 | AS60: 9ヶ月 | AT60: Q4 | AV60: Q1 | AW60: Q2 | AX60: 上期 | AY60: Q3 | AZ60: 9ヶ月 | BA60: Q4 | BC60: 計画
B61: 北米 North America | E61: M JPY | M61: =M62 -> 1996793824 | N61: 2247466989 | O61: 4244260813 | P61: 2645306892 | Q61: 6889567705 | R61: 2779205843 | S61: 9668773548 | T61: 3364878985 | U61: 2835972657 | V61: 6200851642 | W61: 3281150706 | X61: 9482002348 | Y61: 3035778183 | Z61: 12517780531 | AA61: =AA62 -> 3162824076 | AB61: 2405977236 | AC61: 5568801312 | AD61: 2556614632 | AE61: 8125415944 | AF61: 3480952682 | AG61: 11606368626 | AH61: =G62 -> 1010674632 | AI61: 2287870971 | AJ61: 3298545603 | AK61: 2237007250 | AL61: 5535552853 | AM61: =AN61-AL61 -> 4308383367 | AN61: 9843936220 | AO61: 2759866911 | AP61: 2418526198 | AQ61: 5178393109 | AR61: 2144713728 | AS61: 7323106837 | AT61: =AU61-AS61 -> 2618892524 | AU61: 9941999361 | AV61: 2258283443 | AW61: =AX61-AV61 -> 2625824745 | AX61: 4884108188 | AY61: 2226238032 | AZ61: 7110346220 | BA61: =BB61-AZ61 -> -7110346220 | BB61: =StravisData取り込み!AB61 -> 0 | BC61: 12297144205
C62: 北米 North America | E62: M JPY | F62: 933574852 | G62: 1010674632 | I62: 1249522651 | K62: 1812606720 | L62: 5006378855 | M62: 1996793824 | N62: 2247466989 | O62: =M62+N62 -> 4244260813 | P62: 2645306892 | Q62: =O62+P62 -> 6889567705 | R62: 2779205843 | S62: 9668773548 | T62: 3364878985 | U62: 2835972657 | V62: =T62+U62 -> 6200851642 | W62: 3281150706 | X62: =V62+W62 -> 9482002348 | Y62: 3035778183 | Z62: 12517780531 | AA62: 3162824076 | AB62: 2405977236 | AC62: =AA62+AB62 -> 5568801312 | AD62: 2556614632 | AE62: =AC62+AD62 -> 8125415944 | AF62: 3480952682 | AG62: 11606368626 | AH62: 2714629649 | AI62: 2287870971 | AJ62: =G62+AI62 -> 3298545603 | AK62: 2237007250 | AL62: =AJ62+AK62 -> 5535552853 | AM62: =AN62-AL62 -> 4308383367 | AN62: 9843936220 | AO62: 2759866911 | AP62: 2418526198 | AQ62: =AO62+AP62 -> 5178393109 | AR62: =AS62-AQ62 -> 2144713728 | AS62: 7323106837 | AT62: 2618892524 | AU62: 9941999361 | AV62: 2258283443 | AW62: =AX62-AV62 -> 2625824745 | AX62: 4884108188 | AY62: =AZ62-AX62 -> 2226238032 | AZ62: 7110346220 | BB62: =StravisData取り込み!AB62 -> 0 | BC62: 12297144205
E63: K USD | F63: 9395115.006 | G63: 10308783 | I63: 12203323 | K63: 17661504.01 | L63: 49568725.01 | M63: 19599206.02 | N63: 21335840.55 | O63: =M63+N63 -> 40935046.57 | P63: 22803578.01 | Q63: =O63+P63 -> 63738624.57 | R63: 23304711.01 | S63: 87043335.58 | T63: 27733281.01 | U63: 23302534.97 | V63: =T63+U63 -> 51035815.98 | W63: 27009801.66 | X63: =V63+W63 -> 78045617.65 | Y63: 26138989.35 | Z63: 104184607 | AA63: 28998112 | AB63: 23330410.01 | AC63: =AA63+AB63 -> 52328522.01 | AD63: 22997481 | AE63: =AC63+AD63 -> 75326003 | AF63: 31134908 | AG63: 106460911 | AH63: 24322459 | AI63: 20575231 | AJ63: =G63+AI63 -> 30884014 | AK63: 19850613 | AL63: =AJ63+AK63 -> 50734627 | AM63: 38101545.01 | AN63: 88836172.01 | AO63: 25389759.99 | AP63: 21660877.02 | AQ63: =AO63+AP63 -> 47050637.01 | AR63: 19030456.99 | AS63: 66081094 | AT63: =AU63-AS63 -> 23737312.01 | AU63: 89818406.01 | AV63: 20531716 | AW63: 24276616 | AX63: 44808332 | AY63: 20364410.62 | AZ63: 65172742.62 | BA63: =BB63-AZ63 ->  | BB63: =StravisData取り込み!AB63 ->  | BC63: 108824285
B64: 中華圏 Greater China | E64: M JPY | M64: =M65+M67+M69 -> 1437201725 | N64: 1470523910 | O64: 2907725635 | P64: 1352996141 | Q64: 4260721776 | R64: 1467816243 | S64: 5728538019 | T64: 1375160235 | U64: 1516185321 | V64: 2891345556 | W64: 1243912093 | X64: 4135257649 | Y64: 1275555961 | Z64: 5410813610 | AA64: =AA65+AA67+AA69 -> 1353826086 | AB64: 1256997881 | AC64: 2610823967 | AD64: 1395635347 | AE64: 4006459314 | AF64: 1210713305 | AG64: 5217172619 | AH64: =G65+G67+G69 -> 1494094380 | AI64: 2113052874 | AJ64: 3607147254 | AK64: 2862128287 | AL64: 6469275541 | AM64: 2249184736 | AN64: 8718460277 | AO64: 2574436879 | AP64: 2603183498 | AQ64: =AQ65+AQ67+AQ69 -> 5177620377 | AR64: =AR65+AR67+AR69 -> 3578012858 | AS64: 8755633235 | AT64: 2583961450 | AU64: 11339594685 | AV64: 2789359327 | AW64: 3341948535 | AX64: 6131307862 | AY64: =AY65+AY67+AY69 -> 3540174804 | AZ64: 9671482666 | BB64: =StravisData取り込み!AB64 ->  | BC64: 12945951874
C65: 中国 China | E65: M JPY | F65: 577383627 | G65: 597384571 | I65: 891210151 | K65: 452475272 | L65: 2518453621 | M65: 489078959 | N65: 639483557 | O65: =M65+N65 -> 1128562516 | P65: 530749294 | Q65: =O65+P65 -> 1659311810 | R65: 568227024 | S65: 2227538834 | T65: 491882516 | U65: 601012722 | V65: =T65+U65 -> 1092895238 | W65: 389117983 | X65: =V65+W65 -> 1482013221 | Y65: 427216052 | Z65: 1909229273 | AA65: 391349676 | AB65: 425342544 | AC65: =AA65+AB65 -> 816692220 | AD65: 387676273 | AE65: =AC65+AD65 -> 1204368493 | AF65: 361145268 | AG65: 1565513761 | AH65: 367223577 | AI65: 454468359 | AJ65: =G65+AI65 -> 1051852930 | AK65: 437531338 | AL65: =AJ65+AK65 -> 1489384268 | AM65: 147027528 | AN65: 1636411796 | AO65: 532674965 | AP65: 853646644 | AQ65: =AO65+AP65 -> 1386321609 | AR65: =AS65-AQ65 -> 1377922313 | AS65: 2764243922 | AT65: 1053919696 | AU65: 3818163618 | AV65: 1025755141 | AW65: =AX65-AV65 -> 1611782332 | AX65: 2637537473 | AY65: =AZ65-AX65 -> 1783707426 | AZ65: 4421244899 | BA65: -4421244899 | BB65: =StravisData取り込み!AB65 -> 0 | BC65: 4141076717
E66: K RMB | F66: 35701161.73 | G66: 37311919.15 | I66: 53932626.97 | K66: 26819093.5 | L66: 153764801.4 | M66: 29942700.64 | N66: 36990110.17 | O66: =M66+N66 -> 66932810.81 | P66: 28385950.51 | Q66: 95318761.32 | R66: 29652600.05 | S66: 124971361.4 | T66: 25147367.89 | U66: 31129420.88 | V66: =T66+U66 -> 56276788.77 | W66: 20224427.39 | X66: =V66+W66 -> 76501216.17 | Y66: 24450024.21 | Z66: 100951240.4 | AA66: 23532752.62 | AB66: 27161984.81 | AC66: =AA66+AB66 -> 50694737.43 | AD66: 24017948.24 | AE66: =AC66+AD66 -> 74712685.67 | AF66: 21983655.33 | AG66: 96696341 | AH66: 22542883 | AI66: 27377646 | AJ66: 64689565.15 | AK66: 25708495 | AL66: 90398060.15 | AM66: 7356527.426 | AN66: 97754587.57 | AO66: 31407721.99 | AP66: 51705084.3 | AQ66: =AO66+AP66 -> 83112806.29 | AR66: =AS66-AQ66 -> 83910995.64 | AS66: 167023801.9 | AT66: 64099903.76 | AU66: 231123705.7 | AV66: 63632452.92 | AW66: 103830243.8 | AX66: 167462696.7 | AY66: =AZ66-AX66 -> 114145258.7 | AZ66: 281607955.4 | BB66: =StravisData取り込み!AB66 ->  | BC66: 242878399
C67: 香港* Hong Kong* | E67: M JPY | F67: 613238533 | G67: 659301388 | I67: 628074602 | K67: 598562929 | L67: 2499177452 | M67: 744680984 | N67: 675373850 | O67: 1420054834 | P67: 747353003 | Q67: 2167407837 | R67: 763002149 | S67: 2930409986 | T67: 769227162 | U67: 827230773 | V67: 1596457935 | W67: 815180700 | X67: 2411638635 | Y67: 827997981 | Z67: 3239636616 | AA67: 958255861 | AB67: 831724800 | AC67: 1789980661 | AD67: 980775425 | AE67: 2770756086 | AF67: 830643671 | AG67: 3601399757 | AH67: 905253215 | AI67: 1547163746 | AJ67: 2206465134 | AK67: 2264833636 | AL67: 4471298770 | AM67: 1989795400 | AN67: 6461094170 | AO67: 1803528089 | AP67: 1649613219 | AQ67: 3453141308 | AR67: 2125312224 | AS67: 5578453532 | AT67: 1504870309 | AU67: 7083323841 | AV67: 1763604186 | AW67: 1730166203 | AX67: 3493770389 | AY67: 1756467378 | AZ67: 5250237767 | BA67: -5250237767 | BB67: =StravisData取り込み!AB67 -> 0 | BC67: 7825524729
E68: K HKD | F68: 47890103.72 | G68: 52127654.24 | I68: 47738078.26 | K68: 45268719.95 | L68: 193024556.2 | M68: 56690243.87 | N68: 49652014.66 | O68: 106342258.5 | P68: 49849028.81 | Q68: 156191287.4 | R68: 49598211.95 | S68: 205789499.3 | T68: 49151895.34 | U68: 52727998.41 | V68: 101879893.7 | W68: 52021742.18 | X68: 153901635.9 | Y68: 55242109.46 | Z68: 209143745.4 | AA68: 68203264.13 | AB68: 62356959.14 | AC68: 130560223.3 | AD68: 68774746.95 | AE68: 199334970.2 | AF68: 56992413.78 | AG68: 256327384 | AH68: 63171891 | AI68: 108565990 | AJ68: 160693644.2 | AK68: 157449180 | AL68: 318142824.2 | AM68: 137184460.5 | AN68: 455327284.7 | AO68: 130218634.6 | AP68: 115906904.1 | AQ68: 246125538.7 | AR68: 148669474.2 | AS68: 394795012.9 | AT68: 107212346.5 | AU68: 502007359.4 | AV68: 125702365.4 | AW68: 125648022.3 | AX68: 251350387.7 | AY68: 125551103.1 | AZ68: 376901490.8 | BB68: =StravisData取り込み!AB68 ->  | BC68: 539319416
C69: 台湾 Taiwan | E69: M JPY | F69: 237583939 | G69: 237408421 | I69: 143426700 | K69: 196180422 | L69: 814599482 | M69: 203441782 | N69: 155666503 | O69: 359108285 | P69: 74893844 | Q69: 434002129 | R69: 136587070 | S69: 570589199 | T69: 114050557 | U69: 87941826 | V69: 201992383 | W69: 39613410 | X69: 241605793 | Y69: 20341928 | Z69: 261947721 | AA69: 4220549 | AB69: -69463 | AC69: 4151086 | AD69: 27183649 | AE69: 31334735 | AF69: 18924366 | AG69: 50259101 | AH69: 65765579 | AI69: 111420769 | AJ69: 348829190 | AK69: 159763313 | AL69: 508592503 | AM69: 112361808 | AN69: 620954311 | AO69: 238233825 | AP69: 99923635 | AQ69: 338157460 | AR69: 74778321 | AS69: 412935781 | AT69: 25171445 | AU69: 438107226 | AV69: 0 | AW69: 0 | AX69: 0 | AY69: 0 | AZ69: 0 | BB69: =StravisData取り込み!#REF! ->  | BC69: 979350428
E70: K TWD | F70: 71374331.96 | G70: 72352014.27 | I70: 41479150.34 | K70: 58126520.09 | L70: 243332016.7 | M70: 60012325.07 | N70: 44848644.86 | O70: 104860969.9 | P70: 19821906.46 | Q70: 124682876.4 | R70: 36134475.86 | S70: 160817352.2 | T70: 29020497.96 | U70: 23445056.06 | V70: 52465554.03 | W70: 10397220.47 | X70: 62862774.5 | Y70: 7364496.547 | Z70: 70227271.05 | AA70: 1248683.136 | AB70: 1643.972339 | AC70: 1250327.108 | AD70: 8047813.841 | AE70: 9298140.95 | AF70: 5312062.05 | AG70: 14610203 | AH70: 17822650 | AI70: 30325814.13 | AJ70: 102677828.4 | AK70: 42919011 | AL70: 145596839.4 | AM70: 22683461.68 | AN70: 168280301.1 | AO70: 65448853.02 | AP70: 27451548.08 | AQ70: 92900401.1 | AR70: 20543494.78 | AS70: 113443895.9 | AT70: 7246799.989 | AU70: 120690695.9 | AV70: 0 | AW70: 0 | AX70: 0 | AY70: 0 | AZ70: 0 | BB70: =StravisData取り込み!#REF! ->  | BC70: 261160114
B71: 欧州 Europe | E71: M JPY | M71: =M72+M74 -> 0 | N71: 0 | O71: 0 | P71: 0 | Q71: 0 | R71: 0 | S71: 0 | T71: 113950 | U71: 8404714 | V71: 8518664 | W71: 71346407 | X71: 79865071 | Y71: 214995289 | Z71: 294860360 | AA71: =AA72+AA74 -> 244480508 | AB71: 216854097 | AC71: 461334605 | AD71: 207901486 | AE71: 669236091 | AF71: 350536023 | AG71: 1019772114 | AH71: =G72+G74 -> 0 | AI71: 367628146 | AJ71: 367628146 | AK71: 351517622 | AL71: 719145768 | AM71: =AN71-AL71 -> 685402528 | AN71: 1404548296 | AO71: 401305615 | AP71: 425846123 | AQ71: =AQ72+AQ74 -> 827151738 | AR71: =AS71-AQ71 -> 1686121348 | AS71: 2513273086 | AT71: =AU71-AS71 -> 1680454635 | AU71: 4193727721 | AW71: =AX71-AV71 -> 2931355439 | AX71: 2931355439 | AY71: =AZ71-AX71 -> 1570088755 | AZ71: 4501444194 | BA71: =BB71-AZ71 -> -4501444194 | BB71: =StravisData取り込み!AB69 -> 0 | BC71: 2336077981
C72: UK United Kingdom | E72: M JPY | O72: =M72+N72 -> 0 | Q72: 0 | T72: 113950 | U72: 8404714 | V72: =T72+U72 -> 8518664 | W72: 71346407 | X72: =V72+W72 -> 79865071 | Y72: 214995289 | Z72: 294860360 | AA72: 232235839 | AB72: 199481841 | AC72: =AA72+AB72 -> 431717680 | AD72: 195224498 | AE72: =AC72+AD72 -> 626942178 | AF72: 320167752 | AG72: 947109930 | AH72: 321814932 | AI72: 367363148 | AJ72: =G72+AI72 -> 367363148 | AK72: 351517622 | AL72: =AJ72+AK72 -> 718880770 | AM72: 672090829 | AN72: 1390971599 | AO72: 401305615 | AP72: 425846123 | AQ72: =AO72+AP72 -> 827151738 | AR72: =AS72-AQ72 -> 1686121348 | AS72: 2513273086 | AT72: 1680454635 | AU72: 4193727721 | AV72: 1436127354 | AW72: 1495228085 | AX72: 2931355439 | AY72: =AZ72-AX72 -> 1570088755 | AZ72: 4501444194 | BA72: -4501444194 | BB72: =StravisData取り込み!AB70 -> 0 | BC72: 2336077981
E73: K GBP | O73: 0 | Q73: 0 | T73: 612.5026876 | U73: 45034.60909 | V73: 45647.11178 | W73: 384596.0164 | X73: 430243.1282 | Y73: 1202246.962 | Z73: 1632490.09 | AA73: 1492326.43 | AB73: 1453345.513 | AC73: 2945671.943 | AD73: 1416878.874 | AE73: 4362550.818 | AF73: 2259206.182 | AG73: 6621757 | AH73: 2251713 | AI73: 2521649 | AJ73: 2521649 | AK73: 2343479 | AL73: 4865128 | AM73: 4580557 | AN73: 9445685 | AO73: 2719978.413 | AP73: 2907286.966 | AQ73: 5627265.379 | AR73: 11607001.14 | AS73: 17234266.52 | AT73: 11554967.51 | AU73: 28789234.03 | AV73: 10193976.11 | AW73: 11229362.63 | AX73: 21423338.73 | AY73: 11118005.83 | AZ73: 32541344.57 | BB73: =StravisData取り込み!AB71 ->  | BC73: 15633259
C74: スペイン Spain | E74: M JPY | O74: 0 | Q74: 0 | V74: 0 | X74: 0 | AA74: 12244669 | AB74: 17372256 | AC74: 29616925 | AD74: 12676988 | AE74: 42293913 | AF74: 30368271 | AG74: 72662184 | AH74: 13311699 | AI74: 264998 | AJ74: 264998 | AK74: 0 | AL74: 264998 | AM74: 13311699 | AN74: 13576697 | AO74: 0 | AP74: 0 | AQ74: 0 | AR74: 0 | AS74: 0 | AT74: 0 | AU74: =StravisData取り込み!U86 -> 0 | AV74: 0 | AW74: 0 | AX74: 0 | AY74: 0 | AZ74: 0 | BA74: 0 | BB74: =StravisData取り込み!AB86 -> 0 | BC74: 0
E75: K EUR | O75: 0 | Q75: 0 | V75: 0 | X75: 0 | AA75: 99989.13114 | AB75: 148641.8712 | AC75: 248631.0024 | AD75: 106421.9946 | AE75: 355052.997 | AF75: 253660.003 | AG75: 608713 | AH75: 108102 | AI75: -879 | AJ75: -879 | AK75: 0 | AL75: -879 | AM75: 108102 | AN75: 107223 | AO75: 0 | AP75: 0 | AQ75: 0 | AR75: 0 | AS75: 0 | AT75: 0 | AU75: =StravisData取り込み!U87 -> 0 | AV75: 0 | AW75: 0 | AX75: 0 | AY75: 0 | AZ75: 0 | BB75: =StravisData取り込み!AB87 ->  | BC75: 0
C76: インドネシア Indonesia | E76: M JPY | O76: =M76+N76 -> 0 | Q76: =O76+P76 -> 0 | U76: 0 | V76: =T76+U76 -> 0 | X76: =V76+W76 -> 0 | Y76: 0 | AB76: 103419669 | AC76: =AA76+AB76 -> 103419669 | AD76: 494059518 | AE76: =AC76+AD76 -> 597479187 | AF76: 548427358 | AG76: 1145906545 | AH76: 705503482 | AI76: 881567054 | AJ76: 881567054 | AK76: 809040512 | AL76: 1690607566 | AM76: 1274734202 | AN76: 2965341768 | AO76: 897075822 | AP76: 958248748 | AQ76: =AO76+AP76 -> 1855324570 | AR76: =AS76-AQ76 -> 1012976686 | AS76: 2868301256 | AT76: 986651208 | AU76: 3854952464 | AV76: 1200121982 | AW76: 1235837555 | AX76: 2435959537 | AY76: =AZ76-AX76 -> 957243678 | AZ76: 3393203215 | BA76: -3393203215 | BB76: =StravisData取り込み!AB73 -> 0 | BC76: 5298182400
E77: M IDR | O77: =M77+N77 -> 0 | Q77: =O77+P77 -> 0 | V77: =T77+U77 -> 0 | X77: =V77+W77 -> 0 | AB77: 12927458625 | AC77: =AA77+AB77 -> 12927458625 | AD77: 6.083540397e+10 | AE77: =AC77+AD77 -> 7.376286259e+10 | AF77: 6.598183802e+10 | AG77: 139744700609 | AH77: 85000419518 | AI77: 106212898072 | AJ77: 106212898072 | AK77: 97474760482 | AL77: 203687658554 | AM77: 1.579393863e+11 | AN77: 3.616270449e+11 | AO77: 1.150097208e+11 | AP77: 1.259415221e+11 | AQ77: =AO77+AP77 -> 2.409512429e+11 | AR77: =AS77-AQ77 -> 1.315554138e+11 | AS77: 3.725066566e+11 | AT77: 1.281365205e+11 | AU77: 5.006431771e+11 | AV77: 1.558599977e+11 | AW77: 1.604983838e+11 | AX77: 3.163583814e+11 | AY77: =AZ77-AX77 -> 1.243173608e+11 | AZ77: 4.406757422e+11 | BB77: =StravisData取り込み!AB74 ->  | BC77: 630736000000
AO78: =AO79+AO81+AO85+AO87+AO83 -> 2660129129 | AP78: =AP79+AP81+AP85+AP87+AP83 -> 2781800029 | AQ78: 5441929158 | AR78: =AR79+AR81+AR85+AR87 -> 2829183948 | AS78: 7913959447 | AT78: 2860600957 | AU78: 10774560404 | AV78: =AV79+AV81+AV85+AV87 -> 2748212494 | AW78: =AW79+AW81+AW85+AW87 -> 2993545040 | AY78: =AZ78-AX78 -> 0
C79: 韓国 South Korea | E79: M JPY | F79: 667837189 | G79: 679290944 | I79: 579458087 | K79: 498462362 | L79: 2425048582 | M79: 545302874 | N79: 824603509 | O79: =M79+N79 -> 1369906383 | P79: 1201324808 | Q79: 2571231191 | R79: 1504266621 | S79: 4075497812 | T79: 1832827255 | U79: 1406148522 | V79: =T79+U79 -> 3238975777 | W79: 1421641649 | X79: =V79+W79 -> 4660617426 | Y79: 1411787010 | Z79: 6072404436 | AA79: 1448945612 | AB79: 1427678956 | AC79: =AA79+AB79 -> 2876624568 | AD79: 1182053067 | AE79: =AC79+AD79 -> 4058677635 | AF79: 1278202669 | AG79: 5336880304 | AH79: 1256330551 | AI79: 1451987447 | AJ79: =G79+AI79 -> 2131278391 | AK79: 1381639627 | AL79: =AJ79+AK79 -> 3512918018 | AM79: 1770345265 | AN79: 5283263283 | AO79: 1062233236 | AP79: 1129295001 | AQ79: =AO79+AP79 -> 2191528237 | AR79: =AS79-AQ79 -> 1206488497 | AS79: 3398016734 | AT79: 1238156911 | AU79: 4636173645 | AV79: 959729265 | AW79: =AX79-AV79 -> 983386155 | AX79: 1943115420 | AY79: 905995779 | AZ79: 2849111199 | BA79: -2849111199 | BB79: =StravisData取り込み!AB76 -> 0 | BC79: 5202000400
E80: M KRW | F80: 7549344170 | G80: 7617276960 | I80: 6000891853 | K80: 5194732124 | L80: 2.636224511e+10 | M80: 5451923928 | N80: 8065243811 | O80: 1.351716774e+10 | P80: 1.120146118e+10 | Q80: 2.471862892e+10 | R80: 1.386646289e+10 | S80: 3.858509181e+10 | T80: 1.660169615e+10 | U80: 1.358447139e+10 | V80: 3.018616754e+10 | W80: 1.332372679e+10 | X80: 4.350989433e+10 | Y80: 1.465489911e+10 | Z80: 5.816479345e+10 | AA80: 1.53652769e+10 | AB80: 1.543370134e+10 | AC80: 3.079897824e+10 | AD80: 1.242442575e+10 | AE80: 4.322340399e+10 | AF80: 1.289521119e+10 | AG80: 56118615184 | AH80: 12690207585 | AI80: 14721917900 | AJ80: =G80+AI80 -> 2.233919486e+10 | AK80: 13405814884 | AL80: =AJ80+AK80 -> 3.574500974e+10 | AM80: 1.692959926e+10 | AN80: 5.2674609e+10 | AO80: 1.058001231e+10 | AP80: 1.124795818e+10 | AQ80: 2.182797049e+10 | AR80: =AS80-AQ80 -> 1.205056126e+10 | AS80: 3.387853174e+10 | AT80: 1.252961285e+10 | AU80: 4.640814459e+10 | AV80: 1.011305864e+10 | AW80: =AX80-AV80 -> 1.082568511e+10 | AX80: 20938743750 | AY80: 9663954413 | AZ80: 3.060269816e+10 | BB80: =StravisData取り込み!AB77 ->  | BC80: 51556000000
C81: タイ Thailand | E81: M JPY | F81: 615182907 | G81: 674588920 | I81: 606702231 | K81: 632485120 | L81: 2528959178 | M81: 640285829 | N81: 708393286 | O81: =M81+N81 -> 1348679115 | P81: 825768126 | Q81: 2174447241 | R81: 721706939 | S81: 2896154180 | T81: 714897691 | U81: 764348390 | V81: =T81+U81 -> 1479246081 | W81: 822028842 | X81: =V81+W81 -> 2301274923 | Y81: 754577561 | Z81: 3055852484 | AA81: 633211758 | AB81: 698632022 | AC81: =AA81+AB81 -> 1331843780 | AD81: 758596848 | AE81: =AC81+AD81 -> 2090440628 | AF81: 784487647 | AG81: 2874928275 | AH81: 732688719 | AI81: 819425794 | AJ81: =G81+AI81 -> 1494014714 | AK81: 916729857 | AL81: =AJ81+AK81 -> 2410744571 | AM81: 914938960 | AN81: 3325683531 | AO81: 817798187 | AP81: 771534251 | AQ81: =AO81+AP81 -> 1589332438 | AR81: =AS81-AQ81 -> 911593428 | AS81: 2500925866 | AT81: 859003382 | AU81: 3359929248 | AV81: 908711638 | AW81: 948659612 | AX81: 1857371250 | AY81: 1024257458 | AZ81: 2881628708 | BA81: -2881628708 | BB81: =StravisData取り込み!AB78 -> 0 | BC81: 3608937428
E82: K THB | F82: 186973202.3 | G82: 217828547.3 | I82: 190192061.4 | K82: 201449472.7 | L82: 796443283.7 | M82: 204215503.4 | N82: 216160452 | O82: 420375955.4 | P82: 233353643.5 | Q82: 653729598.9 | R82: 196961553.3 | S82: 850691152.2 | T82: 195862381.1 | U82: 222003743.5 | V82: 417866124.6 | W82: 235538350.1 | X82: 653404474.7 | Y82: 237514616.8 | Z82: 890919091.5 | AA82: 205588233.1 | AB82: 233964169.5 | AC82: 439552402.6 | AD82: 243598129.4 | AE82: 683150532 | AF82: 244245685 | AG82: 927396217 | AH82: 225442682 | AI82: 246324647 | AJ82: 464153194.3 | AK82: 269627376 | AL82: 733780570.3 | AM82: 258960782.2 | AN82: 992741352.5 | AO82: 241238403.2 | AP82: 227591224.5 | AQ82: 468829627.7 | AR82: 266736803.4 | AS82: 735566431.2 | AT82: 246869021.5 | AU82: 982435452.6 | AV82: 261876552.7 | AW82: 270321513.2 | AX82: 532198065.9 | AY82: 284127347.1 | AZ82: 816325413 | BB82: =StravisData取り込み!AB79 ->  | BC82: 1058339421
C83: フィリピン Philippines | E83: M JPY | O83: 0 | Q83: 0 | R83: 72131477 | S83: 72131477 | T83: 219695012 | U83: 116203417 | V83: 335898429 | W83: 163660684 | X83: 499559113 | Y83: 93818478 | Z83: 593377591 | AA83: 122214269 | AB83: 116278495 | AC83: 238492764 | AD83: 134263219 | AE83: 372755983 | AF83: 116515101 | AG83: 489271084 | AH83: 115750941 | AI83: 125409232 | AJ83: =AI83+AH83 -> 241160173 | AK83: 120921835 | AL83: =AJ83+AK83 -> 362082008 | AM83: =AN83-AL83 -> 156965612 | AN83: 519047620 | AO83: 183418388 | AP83: 173735271 | AQ83: 357153659 | AR83: 0 | AS83: 357153659 | AT83: 0 | AU83: 357153659 | AW83: 0 | AY83: 0 | BA83: 0 | BB83: =StravisData取り込み!AB84 -> 0 | BC83: 573232023
E84: K PHP | O84: 0 | Q84: 0 | R84: 26536471.64 | S84: 26536471.64 | T84: 80474363.37 | U84: 44394941.09 | V84: 124869304.5 | W84: 61526572.93 | X84: 186395877.4 | Y84: 40951858.62 | Z84: 227347736 | AA84: 52228320.09 | AB84: 52834571.54 | AC84: 105062891.6 | AD84: 59873384.03 | AE84: 164936275.7 | AF84: 51555354.34 | AG84: 216491630 | AH84: 51906251 | AI84: 57215999.23 | AJ84: =AI84+AH84 -> 109122250.2 | AK84: 53977753 | AL84: =AJ84+AK84 -> 163100003.2 | AM84: 73908042.44 | AN84: 237008045.7 | AO84: 88181917.31 | AP84: 82705000.87 | AQ84: 170886918.2 | AR84: 0 | AS84: 170886918.2 | AT84: -1619781.215 | AU84: 169267137 | AW84: 0 | AY84: 0 | BB84: =StravisData取り込み!AB85 ->  | BC84: 259381005
C85: シンガポール Singapore | E85: M JPY | O85: 0 | Q85: 0 | T85: 358516835 | U85: 358570354 | V85: 717087189 | W85: 357270261 | X85: 1074357450 | Y85: 302316644 | Z85: 1376674094 | AA85: 337547695 | AB85: 321318790 | AC85: 658866485 | AD85: 320560039 | AE85: 979426524 | AF85: 293326087 | AG85: 1272752611 | AH85: 324433860 | AI85: 342428066 | AJ85: 342428066 | AK85: 328466803 | AL85: 670894869 | AM85: 632817931 | AN85: 1303712800 | AO85: 351037485 | AP85: 347506861 | AQ85: 698544346 | AR85: 339257927 | AS85: 1037802273 | AT85: 303726816 | AU85: 1341529089 | AV85: 338470487 | AW85: 352807096 | AX85: 691277583 | AY85: 360558328 | AZ85: 1051835911 | BA85: -1051835911 | BB85: =StravisData取り込み!AB80 -> 0 | BC85: 1413720000
E86: K SPD | O86: 0 | Q86: 0 | T86: 3979099.168 | U86: 4108958.457 | V86: 8088057.625 | W86: 4063121.358 | X86: 12151178.98 | Y86: 3716433.904 | Z86: 15867612.89 | AA86: 4197832.297 | AB86: 4209293.963 | AC86: 8407126.26 | AD86: 4093531.353 | AE86: 12500657.61 | AF86: 3659227.387 | AG86: 16159885 | AH86: 4039266 | AI86: 4193597 | AJ86: 4193597 | AK86: 3937945 | AL86: 8131542 | AM86: 7814064.654 | AN86: 15945606.65 | AO86: 4316742.314 | AP86: 4245948.86 | AQ86: 8562691.174 | AR86: 4144573.097 | AS86: 12707264.27 | AT86: 3718952.075 | AU86: 16426216.35 | AV86: 4193662.334 | AW86: 4496187.861 | AX86: 8689850.195 | AY86: 4489399.41 | AZ86: 13179249.61 | BB86: =StravisData取り込み!AB81 ->  | BC86: 17000000
C87: オーストラリア Australia | E87: M JPY | O87: 0 | Q87: 0 | V87: 0 | X87: 0 | AC87: 0 | AE87: 0 | AF87: 15747585 | AG87: 15747585 | AH87: 73255094 | AI87: 94802025 | AJ87: 94802025 | AK87: 110885379 | AL87: 205687404 | AM87: 231782651 | AN87: 437470055 | AO87: 245641833 | AP87: 359728645 | AQ87: 605370478 | AR87: =AS87-AQ87 -> 371844096 | AS87: 977214574 | AT87: 459713848 | AU87: 1436928422 | AV87: 541301104 | AW87: 708692177 | AX87: 1249993281 | AY87: 683223479 | AZ87: 1933216760 | BA87: -1933216760 | BB87: =StravisData取り込み!AB82 -> 0 | BC87: 853483549
E88: K AUD | O88: 0 | Q88: 0 | V88: 0 | X88: 0 | AC88: 0 | AE88: 0 | AF88: 192114 | AG88: 192114 | AH88: 866514 | AI88: 1087865 | AJ88: 1087865 | AK88: 1281988 | AL88: 2369853 | AM88: 2730648.982 | AN88: 5100501.982 | AO88: 2997825.641 | AP88: 4405506.608 | AQ88: 7403332.249 | AR88: =AS88-AQ88 -> 4603235.806 | AS88: 12006568.06 | AT88: 5770599.111 | AU88: 17777167.17 | AV88: 7028971.614 | AW88: 9571204.76 | AX88: 16600176.37 | AY88: 9073352.975 | AZ88: 25673529.35 | BB88: =StravisData取り込み!AB83 ->  | BC88: 9815796
B89: その他アジア・豪州 Other Asian regions and Australia | E89: M JPY | M89: =M81+M83+M85+M76+M87 -> 640285829 | N89: 708393286 | O89: 1348679115 | P89: 825768126 | Q89: 2174447241 | R89: 793838416 | S89: 2968285657 | T89: 1293109538 | U89: 1239122161 | V89: 2532231699 | W89: 1342959787 | X89: 3875191486 | Y89: 1150712683 | Z89: 5025904169 | AA89: 1092973722 | AB89: 1239648976 | AC89: 2332622698 | AD89: 1707479624 | AE89: 4040102322 | AF89: 1758503778 | AG89: 5798606100 | AH89: =G81+G83+G85+G76+G87 -> 674588920 | AI89: =AI81+AI83+AI85+AI76+AI87 -> 2263632171 | AJ89: =AJ81+AJ83+AJ85+AJ76+AJ87 -> 3053972032 | AK89: =AK81+AK83+AK85+AK76+AK87 -> 2286044386 | AL89: =AL81+AL83+AL85+AL76+AL87 -> 5340016418 | AM89: =AN89-AL89 -> 3211239356 | AN89: 8551255774 | AO89: 2494971715 | AP89: 2610753776 | AQ89: =AQ81+AQ83+AQ85+AQ76+AQ87 -> 5105725491 | AR89: =AR81+AR83+AR85+AR76+AR87 -> 2635672137 | AS89: 7741397628 | AT89: =AU89-AS89 -> 3390316435 | AU89: 11131714063 | AW89: =AX89-AV89 -> 0 | AY89: =AY81+AY83+AY85+AY79+AY87 -> 2974035044 | AZ89: =AZ81+AZ83+AZ85+AZ79+AZ87 -> 8715792578 | BA89: -8715792578 | BB89: =StravisData取り込み!AB75 -> 0 | BC89: =BC81+BC83+BC85+BC76+BC87 -> 11747555400
B90: *香港のうち、カルビーイーコマースの採用通貨はJPY *Within Hong Kong, Calbee E-commerce uses JPY
A92: 国内営業利益、海外営業利益 Domestic operating income, Overseas operating income | M92: 2015年3月期 FY2015 | T92: 2016年3月期 FY2016 | AA92: 2017年3月期 FY2017 | AH92: 2018年3月期 FY2018 | AO92: 2019年3月期 FY2019 | AV92: 2020年3月期 FY2020 | BC92: 2019年3月期
M93: Q1 | N93: Q2 | O93: 上期 | P93: Q3 | Q93: 9ヶ月 | R93: Q4 | S93: FY2015 | T93: Q1 | U93: Q2 | V93: 上期 | W93: Q3 | X93: 9ヶ月 | Y93: Q4 | Z93: FY2016 | AA93: Q1 | AB93: Q2 | AC93: 上期 | AD93: Q3 | AE93: 9ヶ月 | AF93: Q4 | AG93: FY2017 | AH93: Q1 | AI93: Q2 | AJ93: 上期 | AK93: Q3 | AL93: 9ヶ月 | AM93: Q4 | AO93: Q1 | AP93: Q2 | AQ93: 上期 | AR93: Q3 | AS93: 9ヶ月 | AT93: Q4 | AV93: Q1 | AW93: Q2 | AX93: 上期 | AY93: Q3 | AZ93: 9ヶ月 | BA93: Q4 | BC93: 計画
B94: 国内営業利益 Domestic operating income | M94: 5255692951 | N94: 5010568531 | O94: =M94+N94 -> 10266261482 | P94: 7064853303 | Q94: =O94+P94 -> 17331114785 | R94: 4479913881 | S94: 21811028666 | T94: 4926500316 | U94: 6058577228 | V94: =T94+U94 -> 10985077544 | W94: 8260242475 | X94: =V94+W94 -> 19245320019 | Y94: 5965578758 | Z94: 25210898777 | AA94: 6520195393 | AB94: 6386272751 | AC94: =AA94+AB94 -> 12906468144 | AD94: 8645225960 | AE94: =AC94+AD94 -> 21551694104 | AF94: 6444566709 | AG94: 27996260813 | AH94: 3504901501 | AI94: 7095220777 | AJ94: =G94+AI94 -> 7095220777 | AK94: 9284944619 | AL94: =AJ94+AK94 -> 16380165396 | AM94: =AN94-AL94 -> 11897252259 | AN94: 28277417655 | AO94: 5790561089 | AP94: 5991013997 | AQ94: =AO94+AP94 -> 11781575086 | AR94: =AS94-AQ94 -> 8871716099 | AS94: 20653291185 | AT94: =AU94-AS94 -> 6416593160 | AU94: 27069884345 | AV94: 6135018640 | AW94: =AX94-AV94 -> 6462088339 | AX94: 12597106979 | AY94: =AZ94-AX94 -> 8523255683 | AZ94: 21120362662 | BA94: =BB94-AZ94 ->  | BB94: =StravisData取り込み!AB92 -> 
B95: 海外営業利益 Overseas operating income | M95: 612046378 | N95: 588825360 | O95: =M95+N95 -> 1200871738 | P95: 779295007 | Q95: 1980166745 | R95: 392040319 | S95: 2372207064 | T95: 1171744861 | U95: 651516652 | V95: =T95+U95 -> 1823261513 | W95: 841324244 | X95: =V95+W95 -> 2664585757 | Y95: 250007484 | Z95: 2914593241 | AA95: 610358730 | AB95: 236961868 | AC95: =AA95+AB95 -> 847320598 | AD95: -154294866 | AE95: =AC95+AD95 -> 693025732 | AF95: 151858982 | AG95: 844884714 | AH95: -91499802 | AI95: -170488883 | AJ95: =G95+AI95 -> -170488883 | AK95: =AK96+AK97+AK104+AK110+AK111 -> -226109648 | AL95: =AJ95+AK95 -> -396598531 | AM95: =AN95-AL95 -> -1051981347 | AN95: -1448579878 | AO95: -16272122 | AP95: -24341664 | AQ95: =AO95+AP95 -> -40613786 | AR95: =AS95-AQ95 -> -172194711 | AS95: -212808497 | AT95: 107188246 | AU95: -105620251 | AV95: 313843463 | AW95: =AX95-AV95 -> 347508856 | AX95: 661352319 | AY95: =AZ95-AX95 -> 97603205 | AZ95: 758955524 | BA95: =BB95-AZ95 ->  | BB95: =StravisData取り込み!AB93 -> 
C96: 北米 North America | M96: 666474600 | N96: 574500919 | O96: 1240975519 | P96: 755538751 | Q96: 1996514270 | R96: 834662882 | S96: 2831177152 | T96: 959860036 | U96: 594021335 | V96: 1553881371 | W96: 805875372 | X96: 2359756743 | Y96: 488477523 | Z96: 2848234266 | AA96: 607619506 | AB96: 224972114 | AC96: 832591620 | AD96: 227770655 | AE96: 1060362275 | AF96: 482721978 | AG96: 1543084253 | AH96: 53577310 | AI96: -249292346 | AJ96: -249292346 | AK96: -231779392 | AL96: =AJ96+AK96 -> -481071738 | AM96: -225645255 | AN96: -706716993 | AO96: 159244464 | AP96: 20888285 | AQ96: 180132749 | AR96: =AS96-AQ96 -> -123411420 | AS96: 56721329 | AT96: 14825083 | AU96: 71546412 | AV96: -21111829 | AW96: =AX96-AV96 -> 25219573 | AX96: 4107744 | AY96: =AZ96-AX96 -> -416927406 | AZ96: -412819662 | BA96: 412819662 | BB96: =StravisData取り込み!AB94 -> 0
C97: 中華圏 Greater China | M97: -32979050 | N97: -54493081 | O97: -87472131 | P97: -91956155 | Q97: -179428286 | R97: -454421704 | S97: -633849990 | T97: -51822152 | U97: 35182089 | V97: -16640063 | W97: 98628797 | X97: 81988734 | Y97: 70068104 | Z97: 152056838 | AA97: 143044575 | AB97: 109396396 | AC97: 252440971 | AD97: 170789674 | AE97: 423230645 | AF97: 73738634 | AG97: 496969279 | AH97: 94988979 | AI97: =SUM(AI98:AI100) -> 237121572 | AJ97: 237121572 | AK97: =SUM(AK98:AK100) -> 139034494 | AL97: 376156066 | AM97: -215014924 | AN97: 161141142 | AO97: -58866923 | AP97: 156807716 | AQ97: 97940793 | AR97: 238379986 | AS97: 336320779 | AT97: 24802881 | AU97: 361123660 | AV97: 176175077 | AW97: 233748675 | AX97: 409923752 | AY97: =SUM(AY98:AY100) -> 324395470 | AZ97: 734319222 | BA97: -734319222 | BB97: =StravisData取り込み!AB95 -> 0
D98: 中国 | M98: -119692337 | N98: -101807580 | O98: -221499917 | P98: -32924611 | Q98: -254424528 | R98: -485297982 | S98: -739722510 | T98: -76532365 | U98: -15154992 | V98: -91687357 | W98: 110040981 | X98: 18353624 | Y98: -1747831 | Z98: 16605793 | AA98: 59608543 | AB98: 70124514 | AC98: 129733057 | AD98: 92896885 | AE98: 222629942 | AF98: 21646668 | AG98: 244276610 | AH98: 49953482 | AI98: 75941102 | AJ98: 75941102 | AK98: 55619679 | AL98: 131560781 | AM98: 26886511 | AN98: 158447292 | AO98: -15030691 | AP98: 13825917 | AQ98: -1204774 | AR98: 119626321 | AS98: 118421547 | AT98: -16046112 | AU98: 102375435 | AV98: 23949486 | AW98: 113266974 | AX98: 137216460 | AY98: =AZ98-AX98 -> 198712388 | AZ98: 335928848 | BA98: -335928848 | BB98: =StravisData取り込み!AB96 -> 0
D99: 香港 | M99: 82633860 | N99: 53370144 | O99: 136004004 | P99: 34842747 | Q99: 170846751 | R99: 77388479 | S99: 248235230 | T99: 73452170 | U99: 89514149 | V99: 162966319 | W99: 101855026 | X99: 264821345 | Y99: 119278159 | Z99: 384099504 | AA99: 118960864 | AB99: 37151127 | AC99: 156111991 | AD99: 91637022 | AE99: 247749013 | AF99: 87122514 | AG99: 334871527 | AH99: 65781574 | AI99: 187807904 | AJ99: 187807904 | AK99: 161888149 | AL99: 349696053 | AM99: 4656863 | AN99: 354352916 | AO99: 132051194 | AP99: 134184298 | AQ99: =AO99+AP99 -> 266235492 | AR99: 128648883 | AS99: 394884375 | AT99: 36545984 | AU99: 431430359 | AV99: 152240199 | AW99: 120553467 | AX99: 272793666 | AY99: =AZ99-AX99 -> 125689117 | AZ99: 398482783 | BA99: -398482783 | BB99: =StravisData取り込み!AB97 -> 0
D100: 台湾 | M100: 4079427 | N100: -6055645 | O100: -1976218 | P100: -93874291 | Q100: -95850509 | R100: -46512201 | S100: -142362710 | T100: -48741957 | U100: -39177068 | V100: -87919025 | W100: -113267210 | X100: -201186235 | Y100: -47462224 | Z100: -248648459 | AA100: -35524832 | AB100: 2120755 | AC100: -33404077 | AD100: -13744233 | AE100: -47148310 | AF100: -35030548 | AG100: -82178858 | AH100: -20746077 | AI100: -26627434 | AJ100: -26627434 | AK100: -78473334 | AL100: -105100768 | AM100: -246558298 | AN100: -351659066 | AO100: -175887426 | AP100: 8797501 | AQ100: =AO100+AP100 -> -167089925 | AR100: -9895218 | AS100: -176985143 | AT100: 4303009 | AU100: -172682134 | AV100: -14608 | AW100: -71766 | AX100: -86374 | AY100: =AZ100-AX100 -> -6035 | AZ100: -92409 | BA100: 92409 | BB100: =StravisData取り込み!AB98 -> 0
C101: UK | O101: =M101+N101 -> 0 | Q101: =O101+P101 -> 0 | T101: 113950 | U101: -201780238 | V101: =T101+U101 -> -201666288 | W101: -205608894 | X101: =V101+W101 -> -407275182 | Y101: -276035937 | Z101: -683311119 | AA101: -188452424 | AB101: -102728232 | AC101: =AA101+AB101 -> -291180656 | AD101: -136673046 | AE101: =AC101+AD101 -> -427853702 | AF101: -99101439 | AG101: -526955141 | AH101: -138813062 | AI101: -55752990 | AJ101: =G101+AI101 -> -55752990 | AK101: -91048411 | AL101: =AJ101+AK101 -> -146801401 | AM101: =AN101-AL101 -> -249615643 | AN101: -396417044 | AO101: -109685208 | AP101: -142919911 | AQ101: =AO101+AP101 -> -252605119 | AR101: -133103940 | AS101: -385709059 | AT101: -58439619 | AU101: -444148678 | AV101: 9616453 | AW101: =AX101-AV101 -> 27826732 | AX101: 37443185 | AY101: -32238114 | AZ101: 5205071 | BA101: =BB101-AZ101 ->  | BB101: =StravisData取り込み!AB99 -> 
C102: インドネシア | M102: -579357 | N102: -2376787 | O102: =M102+N102 -> -2956144 | Q102: =O102+P102 -> -2956144 | V102: =T102+U102 -> 0 | X102: =V102+W102 -> 0 | AB102: -56342774 | AC102: =AA102+AB102 -> -56342774 | AD102: -300014859 | AE102: =AC102+AD102 -> -356357633 | AF102: -216637677 | AG102: -572995310 | AH102: -159962085 | AI102: -160000153 | AJ102: =G102+AI102 -> -160000153 | AK102: -206515213 | AL102: =AJ102+AK102 -> -366515366 | AM102: =AN102-AL102 -> -353861052 | AN102: -720376418 | AO102: -153923191 | AP102: -152479340 | AQ102: =AO102+AP102 -> -306402531 | AR102: -292058482 | AS102: -598461013 | AT102: -187403483 | AU102: -785864496 | AV102: -144186192 | AW102: =AX102-AV102 -> -135639263 | AX102: -279825455 | AY102: -119625789 | AZ102: -399451244 | BA102: =BB102-AZ102 -> 399451244 | BB102: =StravisData取り込み!AB100 -> 0
C103: その他アジア・豪州 Other Asian reagions and Australia | AO103: =SUM(AO104:AO109) -> 146958736 | AP103: =SUM(AP104:AP109) -> 93361586 | AQ103: =AO103+AP103 -> 240320322 | AR103: 137999145 | AS103: 378319467 | AT103: =SUM(AT104:AT109) -> 313403384 | AU103: =SUM(AU104:AU109) -> 691722851 | AV103: =SUM(AV104:AV109) -> 293349954 | AW103: =SUM(AW104:AW109) -> 196353139 | AX103: 489703093 | AY103: 341999044 | AZ103: 831702137
D104: 韓国 South Korea | M104: -16685429 | N104: 55515563 | O104: 38830134 | P104: 74575673 | Q104: 113405807 | R104: 107089449 | S104: 220495256 | T104: 251053561 | U104: 140418926 | V104: 391472487 | W104: 104812802 | X104: 496285289 | Y104: -10314100 | Z104: 485971189 | AA104: 46954012 | AB104: 19100918 | AC104: 66054930 | AD104: -95240988 | AE104: -29186058 | AF104: -43395536 | AG104: -72581594 | AH104: 8962413 | AI104: 816241 | AJ104: 816241 | AK104: -57909869 | AL104: -57093628 | AM104: 14966735 | AN104: -42126893 | AO104: -14181275 | AP104: -8705666 | AQ104: -22886941 | AR104: 6082265 | AS104: -16804676 | AT104: =AU104-AS104 -> 48338053 | AU104: 31533377 | AV104: 7568558 | AW104: 372077 | AX104: 7940635 | AY104: 7824820 | AZ104: 15765455 | BA104: -15765455 | BB104: =StravisData取り込み!AB102 -> 0
D105: タイ | M105: -4184386 | N105: 15678746 | O105: 11494360 | P105: 41136738 | Q105: 52631098 | R105: 78838599 | S105: 131469697 | T105: 14628466 | U105: 89551022 | V105: 104179488 | W105: 56014207 | X105: 160193695 | Y105: 11825101 | Z105: 172018796 | AA105: 80754257 | AB105: 108446967 | AC105: 189201224 | AD105: 66254379 | AE105: 255455603 | AF105: 58651489 | AG105: 314107092 | AH105: 135144303 | AI105: 94434740 | AJ105: 94434740 | AK105: 57244837 | AL105: 151679577 | AM105: 270104447 | AN105: 421784024 | AO105: 144832940 | AP105: 75766705 | AQ105: 220599645 | AR105: 54192569 | AS105: 274792214 | AT105: =AU105-AS105 -> 199688131 | AU105: 474480345 | AV105: 161822582 | AW105: 72449672 | AX105: 234272254 | AY105: 156883860 | AZ105: 391156114 | BA105: -391156114 | BB105: =StravisData取り込み!AB103 -> 0
D106: フィリピン | O106: 0 | Q106: 0 | R106: -174128907 | S106: -177085051 | T106: -39275779 | U106: -18830659 | V106: -58106438 | W106: -36231606 | X106: -94338044 | Y106: -88833570 | Z106: -183171614 | AA106: -40717780 | AB106: -38739159 | AC106: -79456939 | AD106: -66236135 | AE106: -145693074 | AF106: -44378344 | AG106: -190071418 | AH106: -68876201 | AI106: -50511963 | AJ106: -50511963 | AK106: -58375602 | AL106: -108887565 | AM106: -91816982 | AN106: -200704547 | AO106: -9182272 | AP106: -27165125 | AQ106: -36347397 | AR106: 0 | AS106: -36347397 | AT106: =AU106-AS106 -> 0 | AU106: -36347397 | AV106: 0 | AW106: 0 | AX106: 0 | AY106: =AZ106-AX106 -> 0 | AZ106: 0 | BA106: 0 | BB106: =StravisData取り込み!AB104 -> 0
D107: シンガポール | O107: 0 | Q107: 0 | T107: 37186779 | U107: 12954177 | V107: 50140956 | W107: 17833566 | X107: 67974522 | Y107: 54820363 | Z107: 122794885 | AA107: 4803556 | AB107: 21356927 | AC107: 26160483 | AD107: 55245331 | AE107: 81405814 | AF107: 18496104 | AG107: 99901918 | AH107: 21886091 | AI107: 22097466 | AJ107: 22097466 | AK107: 17379217 | AL107: 39476683 | AM107: 29145167 | AN107: 68621850 | AO107: 19897294 | AP107: 26774806 | AQ107: 46672100 | AR107: 12900776 | AS107: 59572876 | AT107: =AU107-AS107 -> 13030404 | AU107: 72603280 | AV107: 28860918 | AW107: 26692576 | AX107: 55553494 | AY107: =AZ107-AX107 -> 25921105 | AZ107: 81474599 | BA107: -81474599 | BB107: =StravisData取り込み!AB105 -> 0
D108: オーストラリア | O108: 0 | Q108: 0 | V108: 0 | X108: 0 | AC108: 0 | AE108: 0 | AF108: -22312642 | AG108: -22312642 | AH108: -3024021 | AI108: -5262522 | AJ108: -5262522 | AK108: -836858 | AL108: -6099380 | AM108: 11836838 | AN108: 5737458 | AO108: 5592049 | AP108: 26690866 | AQ108: 32282915 | AR108: 64823535 | AS108: 97106450 | AT108: =AU108-AS108 -> 52346796 | AU108: 149453246 | AV108: 95097896 | AW108: 96838814 | AX108: 191936710 | AY108: =AZ108-AX108 -> 151369259 | AZ108: 343305969 | BA108: -343305969 | BB108: =StravisData取り込み!AB106 -> 0
D109: スペイン | O109: 0 | Q109: 0 | V109: 0 | X109: 0 | AA109: -43646972 | AB109: -48501289 | AC109: -92148261 | AD109: -76189877 | AE109: -168338138 | AF109: -55923585 | AG109: -224261723 | AH109: -35383529 | AI109: -4138928 | AJ109: -4138928 | AK109: 181936 | AL109: -3956992 | AM109: -35565465 | AN109: -39522457 | AO109: 0 | AP109: 0 | AQ109: 0 | AR109: 0 | AS109: 0 | AT109: 0 | AU109: 0 | AW109: 0 | BA109: 0 | BB109: =StravisData取り込み!AB108 -> 0
C110: その他アジア・豪州 Other Asian reagions and Australia | M110: -4763743 | N110: 13301959 | O110: =M110+N110 -> 8538216 | P110: 41136738 | Q110: =O110+P110 -> 49674954 | R110: -95290308 | S110: -45615354 | T110: 12539466 | U110: 83674540 | V110: =T110+U110 -> 96214006 | W110: 37616167 | X110: =V110+W110 -> 133830173 | Y110: -22188106 | Z110: 111642067 | AA110: 44840033 | AB110: 34721961 | AC110: =AA110+AB110 -> 79561994 | AD110: -244751284 | AE110: =AC110+AD110 -> -165189290 | AF110: -206181070 | AG110: -371370360 | AH110: -74831913 | AI110: =SUM(AI105:AI108) -> 60757721 | AJ110: =G110+AI110 -> 60757721 | AK110: =SUM(AK105:AK108) -> 15411594 | AL110: =AJ110+AK110 -> 76169315 | AM110: =AN110-AL110 -> -501106948 | AN110: -424937633 | AO110: 7216820 | AP110: -50412088 | AQ110: =AO110+AP110 -> -43195268 | AR110: -160141602 | AS110: -203336870 | AT110: =AU110-AS110 -> 77661848 | AU110: -125675022 | AW110: =AX110-AV110 -> 0 | AY110: =SUM(AY105:AY108) -> 334174224 | BA110: =BB110-AZ110 -> 0 | BB110: =StravisData取り込み!AB101 -> 0
C111: 欧州 Europe | M111: 0 | N111: 0 | O111: =M111+N111 -> 0 | P111: 0 | Q111: =O111+P111 -> 0 | R111: 0 | S111: 0 | T111: 113950 | U111: -201780238 | V111: =T111+U111 -> -201666288 | W111: -205608894 | X111: =V111+W111 -> -407275182 | Y111: -276035937 | Z111: -683311119 | AA111: -232099396 | AB111: -151229521 | AC111: =AA111+AB111 -> -383328917 | AD111: -212862923 | AE111: =AC111+AD111 -> -596191840 | AF111: -155025024 | AG111: -751216864 | AH111: -174196591 | AI111: =SUM(AI101:AI109) -> -158318109 | AJ111: =G111+AI111 -> -158318109 | AK111: =AK101+AK109 -> -90866475 | AL111: =AJ111+AK111 -> -249184584 | AM111: =AN111-AL111 -> -186754917 | AN111: -435939501 | AO111: -109685208 | AP111: -142919911 | AQ111: =AO111+AP111 -> -252605119 | AR111: -133103940 | AS111: -385709059 | AT111: =AU111-AS111 -> 132580630 | AU111: -253128429 | AV111: 9616453 | AW111: =AX111-AV111 -> -9616453 | AY111: =AY101+AY109 -> -32238114 | BA111: =BB111-AZ111 -> 0 | BB111: =StravisData取り込み!AB107 -> 0
B112: 連結営業利益 | M112: 5867739329 | N112: 5599393891 | O112: 11467133220 | P112: 7844148310 | Q112: 19311281530 | R112: 4871954200 | S112: 24183235730 | T112: 6098245177 | U112: 6710093880 | V112: 12808339057 | W112: 9101566719 | X112: 21909905776 | Y112: 6215586242 | Z112: 28125492018 | AA112: 7130554123 | AB112: 6623234619 | AC112: 13753788742 | AD112: 8490931094 | AE112: 22244719836 | AF112: 6596425691 | AG112: 28841145527 | AH112: 3413401699
A114: 為替レート Exchange rate | M114: 2015年3月期 FY2015 | T114: 2016年3月期 FY2016 | AA114: 2017年3月期 FY2017 | AH114: 2018年3月期 FY2018 | AO114: 2019年3月期 FY2019 | AV114: 2020年3月期 FY2020 | BC114: 2019年3月期
M115: Q1 | N115: Q2 | P115: Q3 | R115: Q4 | S115: FY2015 | T115: Q1 | U115: Q2 | W115: Q3 | Y115: Q4 | Z115: FY2016 | AA115: Q1 | AB115: Q2 | AD115: Q3 | AF115: Q4 | AG115: FY2017 | AH115: Q1 | AI115: Q2 | AJ115: 上期 | AK115: Q3 | AL115: 9ヶ月 | AM115: Q4 | AO115: Q1 | AP115: Q2 | AQ115: 上期 | AR115: Q3 | AS115: 9ヶ月 | AT115: Q4 | AV115: Q1 | AW115: Q2 | AX115: 上期 | AY115: Q3 | AZ115: 9ヶ月 | BA115: Q4 | BC115: 計画
B116: 期中平均レート Average rate during the period
C117: USD/JPY | M117: 102.13 | N117: 103.51 | P117: 107.27 | R117: 110.03 | S117: 110.03 | T117: 121.33 | U117: 121.5 | W117: 121.48 | Y117: 120.15 | Z117: 120.15 | AA117: 109.07 | AB117: 106.42 | AD117: 107.87 | AF117: 109.02 | AG117: 109.02 | AH117: 111.61 | AJ117: 111.42 | AL117: 111.81 | AN117: 110.81 | AO117: 108.7 | AP117: 110.06 | AR117: =StravisData取り込み!U114 -> 109.1 | AS117: 110.82 | AU117: 110.69 | AV117: 109.99 | AY117: =StravisData取り込み!AB114 -> 0 | BB117: =StravisData取り込み!AB114 -> 0
C118: RMB/JPY | M118: 16.39 | N118: 16.69 | P118: 17.33 | R118: 17.73 | S118: 17.73 | T118: 19.56 | U118: 19.42 | W118: 19.24 | Y118: 18.87 | Z118: 18.87 | AA118: 16.63 | AB118: 16.11 | AD118: 16.12 | AF118: 16.19 | AG118: 16.19 | AH118: 16.29 | AJ118: 16.46 | AL118: 16.65 | AN118: 16.74 | AO118: 16.96 | AP118: 16.68 | AR118: =StravisData取り込み!U115 -> 15.66 | AS118: 16.55 | AU118: 16.52 | AV118: 16.12 | AY118: =StravisData取り込み!AB115 -> 0 | BB118: =StravisData取り込み!AB115 -> 0
C119: HKD/JPY | M119: 13.17 | N119: 13.34 | P119: 13.83 | R119: 14.18 | S119: 14.18 | T119: 15.65 | U119: 15.67 | W119: 15.67 | Y119: 15.49 | Z119: 15.49 | AA119: 14.05 | AB119: 13.71 | AD119: 13.9 | AF119: 14.05 | AG119: 14.05 | AH119: 14.33 | AJ119: 14.28 | AL119: 14.33 | AN119: 14.19 | AO119: 13.85 | AP119: 14.03 | AR119: =StravisData取り込み!U116 -> 13.95 | AS119: 14.13 | AU119: 14.11 | AV119: 14.03 | AY119: =StravisData取り込み!AB116 -> 0 | BB119: =StravisData取り込み!AB116 -> 0
C120: TWD/JPY | M120: 3.38 | N120: 3.43 | P120: 3.52 | R120: 3.58 | S120: 3.58 | T120: 3.93 | U120: 3.85 | W120: 3.81 | Y120: 3.73 | Z120: 3.73 | AA120: 3.38 | AB120: 3.32 | AD120: 3.37 | AF120: 3.44 | AG120: 3.44 | AH120: 3.69 | AJ120: 3.68 | AL120: 3.7 | AN120: 3.69 | AO120: 3.64 | AP120: 3.64 | AR120: =StravisData取り込み!U117 -> 3.54 | AS120: 3.64 | AU120: 3.63 | AV120: 3.53 | AY120: =StravisData取り込み!AB117 -> 0 | BB120: =StravisData取り込み!AB117 -> 0
C121: KRW/JPY | M121: 0.0991 | N121: 0.1004 | P121: 0.1024 | R121: 0.1038 | S121: 0.1038 | T121: 0.1104 | U121: 0.1073 | W121: 0.1067 | Y121: 0.1044 | Z121: 0.1044 | AA121: 0.0943 | AB121: 0.0934 | AD121: 0.0939 | AF121: 0.0951 | AG121: 0.0951 | AH121: 0.099 | AJ121: 0.0988 | AL121: 0.1002 | AN121: 0.1003 | AO121: 0.1004 | AP121: 0.1004 | AR121: =StravisData取り込み!U118 -> 0.0925 | AS121: 0.1003 | AU121: 0.0999 | AV121: 0.0949 | AY121: =StravisData取り込み!AB118 -> 0 | BB121: =StravisData取り込み!AB118 -> 0
C122: THB/JPY | M122: 3.14 | N122: 3.2 | P122: 3.3 | R122: 3.39 | S122: 3.39 | T122: 3.65 | U122: 3.54 | W122: 3.49 | Y122: 3.43 | Z122: 3.43 | AA122: 3.08 | AB122: 3.03 | AD122: 3.06 | AF122: 3.1 | AG122: 3.1 | AH122: 3.25 | AJ122: 3.29 | AL122: 3.33 | AN122: 3.35 | AO122: 3.39 | AP122: 3.39 | AR122: =StravisData取り込み!U119 -> 3.5 | AS122: 3.4 | AU122: 3.42 | AV122: 3.47 | AY122: =StravisData取り込み!AB119 -> 0 | BB122: =StravisData取り込み!AB119 -> 0
C123: PHP/JPY | M123: － | N123: － | P123: － | R123: 2.5 | S123: 2.5 | T123: 2.73 | U123: 2.69 | W123: 2.66 | Y123: 2.61 | Z123: 2.61 | AA123: 2.34 | AB123: 2.27 | AD123: 2.26 | AF123: 2.26 | AG123: 2.26 | AH123: 2.23 | AJ123: 2.21 | AL123: 2.22 | AN123: 2.19 | AO123: 2.08 | AP123: 2.09 | AR123: =StravisData取り込み!U120 -> 2.14 | AS123: 2.11 | AU123: 2.11 | AV123: 2.12 | AY123: =StravisData取り込み!AB120 -> 0 | BB123: =StravisData取り込み!AB120 -> 0
C124: SGD/JPY | M124: － | N124: － | P124: － | R124: － | S124: － | T124: 90.1 | U124: 88.66 | W124: 87.93 | Y124: 86.76 | Z124: 86.76 | AA124: 80.41 | AB124: 78.37 | AD124: 78.35 | AF124: 78.76 | AG124: 78.76 | AH124: 80.32 | AJ124: 81 | AL124: 81.78 | AN124: 81.76 | AO124: 81.32 | AP124: 81.58 | AR124: =StravisData取り込み!U121 -> 79.47 | AS124: 81.67 | AU124: 81.67 | AV124: 80.71 | AY124: =StravisData取り込み!AB121 -> 0 | BB124: =StravisData取り込み!AB121 -> 0
C125: IDR/JPY | M125: － | N125: － | P125: － | R125: － | S125: － | T125: － | U125: － | W125: 0.0089 | Y125: 0.0088 | Z125: 0.0088 | AA125: 0.0082 | AB125: 0.008 | AD125: 0.0081 | AF125: 0.0082 | AG125: 0.0082 | AH125: 0.0083 | AJ125: 0.0083 | AL125: 0.0083 | AN125: 0.0082 | AO125: 0.0078 | AP125: 0.0077 | AR125: =StravisData取り込み!U122 -> 0.0076 | AS125: 0.0077 | AU125: 0.0077 | AV125: 0.0077 | AY125: =StravisData取り込み!AB122 -> 0 | BB125: =StravisData取り込み!AB122 -> 0
C126: AUD/JPY | M126: － | N126: － | P126: － | R126: － | S126: － | T126: － | U126: － | W126: － | Y126: － | Z126: － | AA126: － | AB126: － | AD126: － | AF126: 81.97 | AG126: 81.97 | AH126: 84.54 | AJ126: 85.99 | AL126: 86.19 | AN126: 85.77 | AO126: 81.94 | AP126: 81.77 | AR126: =StravisData取り込み!U123 -> 74.18 | AS126: 81.39 | AU126: 80.83 | AV126: 77.01 | AY126: =StravisData取り込み!AB123 -> 0 | BB126: =StravisData取り込み!AB123 -> 0
C127: GBP/JPY | M127: － | N127: － | P127: － | R127: － | S127: － | T127: 186.04 | U127: 186.62 | W127: 185.51 | Y127: 180.62 | Z127: 180.62 | AA127: 155.62 | AB127: 146.56 | AD127: 143.71 | AF127: 143.03 | AG127: 143.03 | AH127: 142.92 | AJ127: 144.38 | AL127: 146.23 | AN127: 147.26 | AO127: 147.54 | AP127: 146.99 | AR127: =StravisData取り込み!U124 -> 138.51 | AS127: 145.83 | AU127: 145.67 | AV127: 140.88 | AY127: =StravisData取り込み!AB124 -> 0 | BB127: =StravisData取り込み!AB124 -> 0
C128: EUR/JPY | M128: － | N128: － | P128: － | R128: － | S128: － | T128: － | U128: － | W128: － | Y128: － | Z128: － | AA128: 122.46 | AB128: 119.12 | AD128: 119.12 | AF128: 119.37 | AG128: 119.37 | AH128: 123.14 | AJ128: 126.62 | AL128: 128.59 | AN128: 126.62 | AO128: 129.38 | AP128: 129.88 | AR128: =StravisData取り込み!U125 -> 121.13 | AS128: 129.38 | AU128: 128.43 | AV128: 123.29 | AY128: =StravisData取り込み!AB125 -> 0 | BB128: =StravisData取り込み!AB125 -> 0
B129: 期末日レート Current rate
C130: USD/JPY | R130: 110.03 | T130: 122.45 | U130: 119.96 | W130: 120.61 | Z130: 112.68 | AA130: 102.91 | AB130: 101.12 | AD130: 116.49 | AG130: 112.19 | AH130: 112 | AJ130: 112.73 | AL130: 113 | AN130: 106.24 | AO130: 110.54 | AP130: 113.57 | AR130: =StravisData取り込み!U127 -> 108.83 | AS130: 111 | AU130: 110.99 | AV130: 107.79 | AY130: =StravisData取り込み!AB127 -> 0 | BB130: =StravisData取り込み!AB127 -> 0
C131: GBP/JPY | R131: － | T131: 192.72 | U131: 181.86 | W131: 178.78 | Z131: 161.92 | AA131: 138.41 | AB131: 131 | AD131: 143 | AG131: 140.08 | AH131: 145.79 | AJ131: 151.37 | AL131: 151.95 | AN131: 148.84 | AO131: 144.59 | AP131: 148.53 | AR131: =StravisData取り込み!U129 -> 133.32 | AS131: 140.46 | AU131: 144.98 | AV131: 136.57 | AY131: =StravisData取り込み!AB129 -> 0 | BB131: =StravisData取り込み!AB129 -> 0
C132: RMB/JPY | AV132: 15.69
C133: IDR/JPY | AV133: 0.0077
A135: 設備投資・減価償却 Capex and depreciation （百万円 Million yen） | M135: 2015年3月期 FY2015 | T135: 2016年3月期 FY2016 | AA135: 2017年3月期 FY2017 | AH135: 2018年3月期 FY2018 | AO135: 2019年3月期 FY2019 | AV135: 2020年3月期 FY2020 | BC135: 2019年3月期
M136: Q1 | N136: Q2 | P136: Q3 | R136: Q4 | S136: FY2015 | T136: Q1 | U136: Q2 | W136: Q3 | Y136: Q4 | Z136: FY2016 | AA136: Q1 | AB136: Q2 | AD136: Q3 | AF136: Q4 | AG136: FY2017 | AH136: Q1 | AI136: Q2 | AJ136: 上期 | AK136: Q3 | AL136: 9ヶ月 | AM136: Q4 | AO136: Q1 | AP136: Q2 | AQ136: 上期 | AR136: Q3 | AS136: 9ヶ月 | AT136: Q4 | AV136: Q1 | AW136: Q2 | AX136: 上期 | AY136: Q3 | AZ136: 9ヶ月 | BA136: Q4 | BC136: 計画
B137: 設備投資 Capex | S137: =S144+S145 -> 15290880160 | Z137: =Z144 -> 21229511127 | AG137: 9763084062 | AH137: 1495 | AN137: 11009445337 | AU137: 9945000000 | BC137: 12000000000
C138: 国内 Domestic | S138: =S137-S139 -> 10856880160 | Z138: 14070570399 | AG138: 7200453433 | AH138: 967 | AN138: 9338712073 | AU138: 7757000000 | BC138: =BC137-BC139 -> 9049000000
C139: 海外 Overseas | S139: 4434000000 | Z139: 7158940728 | AG139: 2562630629 | AH139: 527 | AN139: 1670733264 | AU139: 2188000000 | BC139: 2951000000
B140: 減価償却費 Depreciation | S140: 6232346501 | Z140: 7570265674 | AG140: 7297107638 | AH140: 1932 | AN140: 7845712180 | AU140: 8023956174 | BC140: 8000000000
C141: 国内 Domestic | Z141: 5993488321 | AG141: 5664053417 | AN141: 6241545320 | AU141: 6198345139
C142: 海外 Overseas | Z142: =Z140-Z141 -> 1576777353 | AG142: =AG140-AG141 -> 1633054221 | AN142: 1604166860 | AU142: 1825611035
A144: @ | B144: 有形固定資産取得 | S144: 14318918353 | T144: 6197365248 | Z144: 21229511127 | AN144: 10583571350 | AO144: 3305912994 | AP144: 6017792823 | AS144: 7404199518 | AU144: 9390346115
A145: @ | B145: 無形固定資産取得 | S145: 971961807 | T145: 716310506 | AN145: 425873987 | AO145: 144072131 | AP145: 279105782 | AS145: 463443412 | AU145: 555207814
A146: 研究開発費 Research and development costs（百万円 Million yen) | L146: FY2014 | M146: 2015年3月期 FY2015 | T146: 2016年3月期 FY2016 | AA146: 2017年3月期 FY2017 | AH146: 2018年3月期 FY2018 | AO146: 2019年3月期 FY2019 | AV146: 2020年3月期 FY2020 | BC146: 2019年3月期
S147: FY2015 | Z147: FY2016 | AG147: FY2017 | AH147: Q1 | AI147: Q2 | AJ147: 上期 | AK147: Q3 | AL147: 9ヶ月 | AM147: Q4 | AO147: Q1 | AP147: Q2 | AQ147: 上期 | AR147: Q3 | AS147: 9ヶ月 | AT147: Q4 | AV147: Q1 | AW147: Q2 | AX147: 上期 | AY147: Q3 | AZ147: 9ヶ月 | BA147: Q4 | BC147: 計画
B148: 研究開発費 | S148: 2052000000 | Z148: 2195239994 | AG148: 2168303035 | AN148: 2469539399 | AU148: 2660631540
A150: 配当状況 Dividends | L150: FY2014 | M150: 2015年3月期 FY2015 | T150: 2016年3月期 FY2016 | AA150: 2017年3月期 FY2017 | AH150: 2018年3月期 FY2018 | AO150: 2019年3月期 FY2019 | AV150: 2020年3月期 FY2020 | BC150: 2019年3月期
S151: FY2015 | Z151: FY2016 | AG151: FY2017 | AH151: Q1 | AI151: Q2 | AJ151: 上期 | AK151: Q3 | AL151: 9ヶ月 | AM151: Q4 | AO151: Q1 | AP151: Q2 | AQ151: 上期 | AR151: Q3 | AS151: 9ヶ月 | AT151: Q4 | AV151: Q1 | AW151: Q2 | AX151: 上期 | AY151: Q3 | AZ151: 9ヶ月 | BA151: Q4 | BC151: 計画
B152: 1株当たり年間配当金 Annual dividend per share (円 Yen) | S152: 28 | Z152: 35 | AG152: 42 | AN152: 42 | AU152: 48
B153: 配当性向 Dividend payout ratio (%) | S153: 26.46124424 | Z153: 27.80425802 | AG153: 30.16427017 | AN153: 32.4 | AU153: 33
B154: 配当金総額 Total dividend amount (百万円 Million yen) | S154: 3741611104 | Z154: 4681913880 | AG154: 5620480656 | AN154: 5622748656 | AO154: 5622748656 | AU154: 6428206464

Sheet のれん202103 (hidden)
B1: のれん
F2: 201901M | G2: 201902M | H2: 201903M | I2: 201904M | J2: 201905M | K2: 201906M | L2: 201907M | M2: 201908M | N2: 201909M | O2: 201910M | P2: 201911M | Q2: 201912M
C4: 2020年3月期 | D4: 追加分 | E4: 償却 | F4: 月次償却額 | R4: のれん償却費 | S4: 2020年3月期
C5: a | E5: 年数 | F5: 4月 | G5: 5月 | H5: 6月 | I5: 7月 | J5: 8月 | K5: 9月 | L5: 10月 | M5: 11月 | N5: 12月 | O5: 1月 | P5: 2月 | Q5: 3月 | R5: b | S5: a + b + c
A6: 連結分 | B6: 9120 ポテトかいつか | C6: =C7 -> 11294371975 | E6: 15年 | F6: -61224313 | G6: -61224387 | H6: =-61224313-4566519 -> -65790832 | R6: =SUM(F6:Q6) -> -188239532 | S6: =+C6+R6 -> 11106132443
B7: 2020.4取得 | C7: =11020380828+273991147 -> 11294371975
A8: 単体分 | B8: 9120 ポテトかいつか | C8: =3222193409+18001080 -> 3240194489 | E8: 15年 | F8: -18001080 | G8: -18001080 | H8: -18001080 | R8: =SUM(F8:Q8) -> -54003240 | S8: =+C8+R8 -> 3186191249 | V8: SGD
B9: 2020.4取得 | C9: 3240194489 | V9: CR
T10: 為替による増減 | V10: AR
B14: 992800 Seabrook | C14: 4720286453 | E14: 15年 | F14: =F15*F16 -> -29030468.05 | G14: =G15*G16 -> -29030502.58 | H14: -29030468.05 | I14: 0 | J14: 0 | K14: 0 | L14: 0 | M14: 0 | N14: 0 | O14: 0 | P14: 0 | Q14: 0 | R14: =SUM(F14:Q14) -> -87091438.68 | S14: =S15*W21 -> 4604726218 | T14: =S14-(C14+R14) -> -28468796.57 | V14: USD
B15: 外貨ﾍﾞｰｽ(GBP) | C15: 35405688.97 | F15: -218553.55 | G15: -218553.81 | H15: -218553.55 | R15: =SUM(F15:Q15) -> -655660.91 | S15: =SUM(C15:Q15) -> 34750028.06 | V15: CR | W15: 107.74
B16: 2018.10取得 | C16: =C14/C15 -> 133.32 | E16: Rate | F16: =$W$22 -> 132.83 | G16: 132.83 | H16: 132.83 | I16: 132.83 | J16: 132.83 | K16: 132.83 | L16: 132.83 | M16: 132.83 | N16: 132.83 | O16: 132.83 | P16: 132.83 | Q16: 132.83 | T16: 為替による増減 | V16: AR | W16: 107.74
B17: 992900 Warnock | C17: 6233390080 | E17: 15年 | F17: =F18*F19 -> -35262608.15 | G17: =G18*G19 -> -35453457.71 | H17: =H18*H19 -> -35289866.37 | I17: 0 | J17: 0 | K17: 0 | L17: 0 | M17: 0 | N17: 0 | O17: 0 | P17: 0 | Q17: 0 | R17: =SUM(F17:Q17) -> -106005932.2 | S17: =S18*W15 -> 6069859357 | T17: =S17-(C17+R17) -> -57524791.07
B18: 外貨ﾍﾞｰｽ(USD) | C18: 57276395.11 | D18: 45540 | F18: -327293.56 | G18: =-327293.95-1771 -> -329064.95 | H18: -327546.56 | R18: =SUM(F18:Q18) -> -983905.07 | S18: =SUM(C18:Q18) -> 56338030.04
B19: 2019.11取得 | C19: 108.88 | E19: Rate | F19: =$W$16 -> 107.74 | G19: 107.74 | H19: 107.74 | I19: 107.74 | J19: 107.74 | K19: 107.74 | L19: 107.74 | M19: 107.74 | N19: 107.74 | O19: 107.74 | P19: 107.74 | Q19: 107.74
B20: 合計 | C20: =C6+C14+C11 -> 1.601465843e+10 | F20: =F6+F8+F11+F14+F17 -> -143518469.2 | G20: -143709427.3 | H20: -148112246.4 | I20: 0 | J20: 0 | K20: 0 | L20: 0 | M20: 0 | N20: 0 | O20: 0 | P20: 0 | Q20: 0 | R20: -435340142.9 | S20: 2.496690927e+10 | V20: GBP
Q21: T/B | R21: -435340143 | S21: 24966909267 | V21: CR | W21: 132.51
R22: =R20-R21 -> 0.0829000473 | S22: =S20-S21 -> -0.2597999573 | V22: AR | W22: 132.83
B23: 連結ベース | C23: 発生額
B24: =B6 -> 9120 ポテトかいつか | C24: =C6+C8 -> 14534566464 | F24: =F6+F8 -> -79225393 | G24: -79225467 | H24: -83791912 | I24: 0 | J24: 0 | K24: 0 | L24: 0 | M24: 0 | N24: 0 | O24: 0 | P24: 0 | Q24: 0 | R24: -242242772 | S24: 14292323692
